Department Family,Entity,Date,Expense Type,Expense Area,Supplier,Post Code,Transaction Number,Total
Ministry of Defence,Ministry of Defence,01/08/2011,IT and communication services,Central TLB,OFFICE OF COMMUNICATIONS (OFCOM),SE1 9HA,826489,38179600
Ministry of Defence,Ministry of Defence,17/08/2011,Property leases,Defence Infrastructure Organisation ,ASPIRE DEFENCE LIMITED,SP9 7QD,832607,20087637
Ministry of Defence,Ministry of Defence,16/08/2011,"Purchase of munitions, other inventory or fuel",Defence Equipment & Support,SHELL MARINE PRODUCTS LIMITED,SE1 7NA,2000012481,18031013.73
Ministry of Defence,Ministry of Defence,09/08/2011,"Purchase of munitions, other inventory or fuel",Defence Equipment & Support,BP OIL INTERNATIONAL LIMITED,E14 5NJ,2000012398,15508658.71
Ministry of Defence,Ministry of Defence,11/08/2011,"Purchase of munitions, other inventory or fuel",Defence Equipment & Support,MOTOR OIL (HELLAS) CORINTH  REFINERIES SA (MOH),,2000012433,12217813.57
Ministry of Defence,Ministry of Defence,30/08/2011,Payments made in advance,Central TLB,Commonwealth War Graves Commission,SL6 7DX,5000061803,9513274.34
Ministry of Defence,Ministry of Defence,17/08/2011,Government Procurement Card,Ministry of Defence,BARCLAYS BANK PLC,TS17 6YG,10856,9141979.21
Ministry of Defence,Ministry of Defence,22/08/2011,Purchase of buildings and military equipment ,Land Forces,HOLDFAST TRAINING SERVICES LTD,ME4 4UG,834533,8379331.65
Ministry of Defence,Ministry of Defence,19/08/2011,Food and clothing,Defence Equipment & Support,PURPLE FOODSERVICE SOLUTIONS LIMITED,GU32 3QD,834119,8377562
Ministry of Defence,Ministry of Defence,26/08/2011,Estate management,Defence Infrastructure Organisation ,LANDMARC SUPPORT SERVICES LIMITED,SP3 4RS,836837,8098703.01
Ministry of Defence,Ministry of Defence,19/08/2011,Estate management,Defence Infrastructure Organisation ,MODERN HOUSING SOLUTIONS (PRIME)LIMITED,PE28 4QG,834023,7208159.43
Ministry of Defence,Ministry of Defence,15/08/2011,Estate management,Defence Infrastructure Organisation ,DEBUT SERVICES (SOUTH WEST)LIMITED,BA1 5AB,831677,7206504.96
Ministry of Defence,Ministry of Defence,17/08/2011,Government Procurement Card,Ministry of Defence,BARCLAYS BANK PLC,TS17 6YG,10857,7185973.78
Ministry of Defence,Ministry of Defence,08/08/2011,Estate management,Central TLB,MODUS SERVICES LIMITED,SW1A 2HB,829115,6917330.97
Ministry of Defence,Ministry of Defence,24/08/2011,Design services and minor equipment purchases,Central TLB,METEOROLOGICAL OFFICE,EX1 3PB,835736,5673666.66
Ministry of Defence,Ministry of Defence,16/08/2011,Estate management,Land Forces,HOLDFAST TRAINING SERVICES LTD,ME4 4UG,832263,5510081.19
Ministry of Defence,Ministry of Defence,05/08/2011,Property leases,Defence Infrastructure Organisation ,RMPA SERVICES PLC,CO2 7ST,828667,5479023.48
Ministry of Defence,Ministry of Defence,19/08/2011,Grants to NDPBs,Land Forces,COUNCIL OF RESERVE FORCES' AND CADETS' ASSOCIATIONS,EC2A 4EY,833847,5027915
Ministry of Defence,Ministry of Defence,12/08/2011,Purchase of buildings and military equipment ,Defence Infrastructure Organisation ,SKANSKA UK PLC,GU21 6HR,831441,4822572.2
Ministry of Defence,Ministry of Defence,25/08/2011,Payments made in advance,Central TLB,NATO CONSULTATION COMMAND AND CONTROL AGENCY,,836348,4351000
Ministry of Defence,Ministry of Defence,15/08/2011,Estate management,Defence Infrastructure Organisation ,INTERSERVE (DEFENCE) LTD,BS34 8YU,5000061154,4195660.29
Ministry of Defence,Ministry of Defence,25/08/2011,"Purchase of munitions, other inventory or fuel",Defence Equipment & Support,CHEVRON ALKHALIJ,,2000012559,3934638.5
Ministry of Defence,Ministry of Defence,08/08/2011,Purchase of buildings and military equipment ,Defence Infrastructure Organisation ,DEBUT SERVICES LIMITED,B75 7RL,828932,3822004.86
Ministry of Defence,Ministry of Defence,01/08/2011,Property leases,Defence Infrastructure Organisation ,COAST TO COAST WATER LTD,B26 3JZ,826258,3502817.16
Ministry of Defence,Ministry of Defence,01/08/2011,Property leases,Defence Infrastructure Organisation ,KELDA WATER SERVICES (ESTATES) LIMITED,S35 2PQ,826388,3470733.48
Ministry of Defence,Ministry of Defence,08/08/2011,Estate management,Defence Infrastructure Organisation ,BABCOCK DYNCORP LIMITED,PE28 2EA,828841,3447008.09
Ministry of Defence,Ministry of Defence,01/08/2011,Rental of plant and machinery,Defence Equipment & Support,ALC (SPC) LIMITED,OX25 2LD,826151,3400190.98
Ministry of Defence,Ministry of Defence,22/08/2011,Property leases,Defence Infrastructure Organisation ,COAST TO COAST WATER LTD,B26 3JZ,834403,3161097.56
Ministry of Defence,Ministry of Defence,11/08/2011,Property leases,Defence Infrastructure Organisation ,KELDA WATER SERVICES (ESTATES) LIMITED,S35 2PQ,830647,2836667.04
Ministry of Defence,Ministry of Defence,18/08/2011,Estate management,Defence Infrastructure Organisation ,CARILLIONENTERPRISE LIMITED,B75 7RL,833194,2757476.75
Ministry of Defence,Ministry of Defence,23/08/2011,"Purchase of munitions, other inventory or fuel",Defence Equipment & Support,MOTOR OIL (HELLAS) CORINTH  REFINERIES SA (MOH),,2000012541,2583018.05
Ministry of Defence,Ministry of Defence,26/08/2011,Purchase of buildings and military equipment ,Defence Infrastructure Organisation ,TURNER ESTATE SOLUTIONS LIMITED,KY11 2BL,837126,2546453.8
Ministry of Defence,Ministry of Defence,22/08/2011,Fees for professional services,Land Forces,HP ENTERPRISE SERVICES DEFENCE & SECURITY UK LIMITED,RG27 9XA,834537,2512088
Ministry of Defence,Ministry of Defence,16/08/2011,Transport hire charges,Land Forces,BABCOCK LAND (WHITEFLEET MANAGEMENT) LIMITED,BH23 6BS,832089,2488232.2
Ministry of Defence,Ministry of Defence,30/08/2011,Payments made in advance,Central TLB,Commonwealth War Graves Commission,SL6 7DX,837289,2473980.5
Ministry of Defence,Ministry of Defence,24/08/2011,Transport hire charges,Air Command,FBS LIMITED,RG24 8AG,835636,2473618.69
Ministry of Defence,Ministry of Defence,08/08/2011,Purchase of information and communications technology,Defence Equipment & Support,HP ENTERPRISE SERVICES DEFENCE & SECURITY UK LIMITED,OX25 1LP,829039,2394538
Ministry of Defence,Ministry of Defence,04/08/2011,Fees for professional services,Central TLB,DEFENCE MANAGEMENT (WATCHFIELD) LIMITED,SN6 8TS,827783,2295251.98
Ministry of Defence,Ministry of Defence,24/08/2011,"Transporation of personnel, freight and travel expenses",Land Forces,BUSVERKEHR OSTWESTFALEN GMBH,,4000005564,2237126.21
Ministry of Defence,Ministry of Defence,03/08/2011,Fees for professional services,Central TLB,CABINET OFFICE,FY5 3TA,2.00E+11,2172817
Ministry of Defence,Ministry of Defence,26/08/2011,Medical treatment & stores and welfare services,Land Forces,SSAFA GSTT CARE LLP,SE1 2LP,837075,2131857.69
Ministry of Defence,Ministry of Defence,18/08/2011,Purchase of buildings and military equipment ,Defence Infrastructure Organisation ,CARILLION CONSTRUCTION LIMITED,WV1 4HY,833192,2091543.4
Ministry of Defence,Ministry of Defence,04/08/2011,IT and communication services,Defence Equipment & Support,LOCKHEED MARTIN UK LIMITED,GU14 6TQ,827950,2062713
Ministry of Defence,Ministry of Defence,12/08/2011,Medical treatment & stores and welfare services,Central TLB,SERVICES SOUND & VISION CORPORATION,SL9 8TN,831435,1992314
Ministry of Defence,Ministry of Defence,01/08/2011,Estate management,Defence Infrastructure Organisation ,LEND LEASE CONSTRUCTION (EMEA) LIMITED,BA1 5AB,826400,1991984.23
Ministry of Defence,Ministry of Defence,08/08/2011,Food and clothing,Defence Equipment & Support,PURPLE FOODSERVICE SOLUTIONS LIMITED,GU32 3QD,829245,1965457.39
Ministry of Defence,Ministry of Defence,16/08/2011,Fees for professional services,Central TLB,CRANFIELD UNIVERSITY,MK43 0AL,832171,1938851.16
Ministry of Defence,Ministry of Defence,16/08/2011,Transport hire charges,Air Command,BABCOCK LAND (WHITEFLEET MANAGEMENT) LIMITED,BH23 6BS,832089,1937135.64
Ministry of Defence,Ministry of Defence,04/08/2011,Estate management,Defence Equipment & Support,ISS MEDICLEAN LIMITED,GU21 5RW,827905,1844920.06
Ministry of Defence,Ministry of Defence,23/08/2011,Property leases,Land Forces,DEFENCE TRAINING SERVICES LIMITED,BA2 3RH,835118,1749639.16
Ministry of Defence,Ministry of Defence,26/08/2011,Payments made in advance,Central TLB,GOVERNMENT FOR THE CZECH REPUBLIC,,2010056,1708452.82
Ministry of Defence,Ministry of Defence,05/08/2011,Purchase of buildings and military equipment ,Defence Infrastructure Organisation ,BABCOCK DYNCORP LIMITED,PE28 2EA,828308,1705469.23
Ministry of Defence,Ministry of Defence,02/08/2011,Transport hire charges,Air Command,BABCOCK AEROSPACE LIMITED,BH23 6BS,826710,1639028
Ministry of Defence,Defence Science and Technology Laboratory,19/08/2011,Facility Management Costs,Infrastructure,SERCO LIMITED,,V - 9000135402 - 00115847,1618226.26
Ministry of Defence,Ministry of Defence,26/08/2011,Food and clothing,Defence Equipment & Support,PURPLE FOODSERVICE SOLUTIONS LIMITED,GU32 3QD,837001,1534847.72
Ministry of Defence,Ministry of Defence,09/08/2011,Design services and minor equipment purchases,Air Command,SERCO LIMITED,RG27 9UY,829805,1482866.79
Ministry of Defence,Ministry of Defence,17/08/2011,Purchase of buildings and military equipment ,Defence Equipment & Support,DEVONPORT ROYAL DOCKYARD LIMITED,PL1 4SG,832681,1471920.21
Ministry of Defence,Ministry of Defence,01/08/2011,Estate management,Air Command,VT FLAGSHIP LTD,PO6 4PR,826663,1429942.9
Ministry of Defence,Ministry of Defence,11/08/2011,Food and clothing,Defence Equipment & Support,PURPLE FOODSERVICE SOLUTIONS LIMITED,GU32 3QD,830788,1423757.98
Ministry of Defence,Ministry of Defence,03/08/2011,Property leases,Defence Infrastructure Organisation ,FALCON SUPPORT SERVICES LIMITED,RG10 9JU,827283,1423178.17
Ministry of Defence,Ministry of Defence,22/08/2011,Purchase of buildings and military equipment ,Defence Infrastructure Organisation ,TURNER ESTATE SOLUTIONS LIMITED,KY11 2BL,834957,1421179
Ministry of Defence,Ministry of Defence,15/08/2011,Estate management,Defence Infrastructure Organisation ,MODERN HOUSING SOLUTIONS (PRIME)LIMITED,PE28 4QG,831822,1411551.88
Ministry of Defence,Ministry of Defence,12/08/2011,Fees for professional services,Central TLB,SERCO LIMITED,RG27 9UY,831433,1370637.85
Ministry of Defence,Ministry of Defence,01/08/2011,Purchase of buildings and military equipment ,Defence Infrastructure Organisation ,LEND LEASE CONSTRUCTION (EMEA) LIMITED,BA1 5AB,826400,1349501.09
Ministry of Defence,Ministry of Defence,25/08/2011,Payments made in advance,Central TLB,NATO MAINTENANCE AND SUPPLY AGENCY,,5000061686,1319976.99
Ministry of Defence,Ministry of Defence,25/08/2011,Payments made in advance,Central TLB,EUROPEAN DEFENCE AGENCY,,5000061634,1309154.59
Ministry of Defence,Ministry of Defence,19/08/2011,Grants to Reserves Forces and Cadets Association,Defence Infrastructure Organisation ,COUNCIL OF RESERVE FORCES' AND CADETS' ASSOCIATIONS,EC2A 4EY,833847,1288276.17
Ministry of Defence,Ministry of Defence,05/08/2011,Estate management,Defence Infrastructure Organisation ,BABCOCK DYNCORP LIMITED,PE28 2EA,828308,1259118.32
Ministry of Defence,Ministry of Defence,24/08/2011,Design services and minor equipment purchases,Defence Equipment & Support,POLAR SHIP INVEST II AS,N5809,3000005858,1257490
Ministry of Defence,Ministry of Defence,18/08/2011,Estate management,Defence Infrastructure Organisation ,TURNER FACILITIES MANAGEMENT LTD,G51 3EQ,833670,1218214.66
Ministry of Defence,Ministry of Defence,10/08/2011,Estate management,Defence Infrastructure Organisation ,CARILLIONENTERPRISE LIMITED,B75 7RL,830004,1200000
Ministry of Defence,Ministry of Defence,09/08/2011,Grants to NDPBs,Land Forces,THE GURKHA WELFARE TRUST,SP2 2EX,829859,1172000
Ministry of Defence,Ministry of Defence,26/08/2011,Payment of utilities,Defence Infrastructure Organisation ,SSE ENERGY SUPPLY LIMITED,PH1 3AQ,837078,1128498.02
Ministry of Defence,Ministry of Defence,17/08/2011,Estate management,Defence Infrastructure Organisation ,SODEXO LTD,M50 0AL,832974,1123396.21
Ministry of Defence,Ministry of Defence,30/08/2011,Property leases,Defence Infrastructure Organisation ,ASPIRE DEFENCE LIMITED,SP9 7QD,837201,1111322.36
Ministry of Defence,Ministry of Defence,05/08/2011,Estate management,Defence Infrastructure Organisation ,MODERN HOUSING SOLUTIONS (PRIME)LIMITED,PE28 4QG,828561,1108475.65
Ministry of Defence,Ministry of Defence,11/08/2011,Purchase of buildings and military equipment ,Defence Infrastructure Organisation ,TURNER ESTATE SOLUTIONS LIMITED,KY11 2BL,830907,1060688.4
Ministry of Defence,Ministry of Defence,18/08/2011,Property leases,Central TLB,MINERVA EDUCATION AND TRAINING  LIMITED,RG10 9JU,833437,1048467.34
Ministry of Defence,Ministry of Defence,12/08/2011,Payment of utilities,Defence Infrastructure Organisation ,SSE ENERGY SUPPLY LIMITED,PH1 3AQ,831461,1018188.04
Ministry of Defence,Ministry of Defence,11/08/2011,Property leases,Defence Infrastructure Organisation ,VEOLIA WATER NEVIS LIMITED,KY11 8UU,830925,991572.15
Ministry of Defence,Ministry of Defence,22/08/2011,Medical treatment & stores and welfare services,Central TLB,FRIMLEY PARK HOSPITAL NHS FOUNDATION TRUST,GU16 7UJ,834487,960118.67
Ministry of Defence,Ministry of Defence,03/08/2011,Purchase of buildings and military equipment ,Defence Infrastructure Organisation ,BABCOCK DYNCORP LIMITED,PE28 2EA,827134,956492.2
Ministry of Defence,Ministry of Defence,01/08/2011,Payment of utilities,Defence Infrastructure Organisation ,SSE ENERGY SUPPLY LIMITED,PH1 3AQ,826600,952253.41
Ministry of Defence,Ministry of Defence,03/08/2011,Grants to NDPBs,Navy Command,SEA CADET CORPS,SE1 7JF,827525,940998
Ministry of Defence,Ministry of Defence,18/08/2011,General services and support,Defence Equipment & Support,MARSHALL OF CAMBRIDGE AEROSPACE LIMITED,CB5 8RX,833423,931307.4
Ministry of Defence,Defence Science and Technology Laboratory,05/08/2011,IS Support Service,Infrastructure,STERIA LIMITED,,V - 9000134961 - 00114677,922072.26
Ministry of Defence,Ministry of Defence,09/08/2011,Grants to NDPBs,Land Forces,ROYAL HOSPITAL,SW3 4SR,829790,916750
Ministry of Defence,Ministry of Defence,04/08/2011,Design services and minor equipment purchases,Defence Equipment & Support,CENTERPRISE INTERNATIONAL LTD,RG24 8GQ,827749,908354.6
Ministry of Defence,Ministry of Defence,05/08/2011,Estate management,Defence Infrastructure Organisation ,SODEXO LTD,M50 0AL,828701,893346.11
Ministry of Defence,Ministry of Defence,22/08/2011,Estate management,Defence Infrastructure Organisation ,MODERN HOUSING SOLUTIONS (PRIME)LIMITED,PE28 4QG,834614,833495.99
Ministry of Defence,Defence Science and Technology Laboratory,26/08/2011,Repairs & Maintenance,Infrastructure,SERCO LIMITED,,V - 9000135576 - 00116661,822844.79
Ministry of Defence,Ministry of Defence,24/08/2011,General services and support,Land Forces,FBS LIMITED,RG24 8AG,835636,810662.45
Ministry of Defence,Ministry of Defence,31/08/2011,Payment of utilities,Defence Infrastructure Organisation ,SSE ENERGY SUPPLY LIMITED,PH1 3AQ,838182,802436.11
Ministry of Defence,Ministry of Defence,03/08/2011,General services and support,Defence Equipment & Support,MARSHALL OF CAMBRIDGE AEROSPACE LIMITED,CB5 8RX,827397,799505.4
Ministry of Defence,Ministry of Defence,09/08/2011,Purchase of information and communications technology,Defence Equipment & Support,LOCKHEED MARTIN UK LIMITED,GU14 6TQ,2000012401,783320.86
Ministry of Defence,Ministry of Defence,02/08/2011,Design services and minor equipment purchases,Air Command,SERCO LIMITED,RG27 9UY,827011,780395.76
Ministry of Defence,Ministry of Defence,31/08/2011,IT and communication services,Defence Equipment & Support,CAPGEMINI UK PLC,GU21 6DB,837885,765811.94
Ministry of Defence,Ministry of Defence,17/08/2011,"Purchase of munitions, other inventory or fuel",Air Command,BP INTERNATIONAL LIMITED,HP2 4UL,2000012488,761270.32
Ministry of Defence,Ministry of Defence,19/08/2011,Rental of plant and machinery,Defence Equipment & Support,BARLOWORLD HANDLING LTD,WA3 3JD,833777,758945.29
Ministry of Defence,Ministry of Defence,01/08/2011,Medical treatment & stores and welfare services,Land Forces,SSAFA GSTT CARE LLP,SE1 2LP,826598,755917.69
Ministry of Defence,Ministry of Defence,19/08/2011,Research and development,Central TLB,DEFENCE SCIENCE & TECHNOLOGY LABORATORY,PO14 9HL,833857,753861.74
Ministry of Defence,Ministry of Defence,16/08/2011,"Purchase of munitions, other inventory or fuel",Defence Equipment & Support,H M REVENUE & CUSTOMS,M50 3XN,832252,752828.07
Ministry of Defence,Ministry of Defence,30/08/2011,Design services and minor equipment purchases,Air Command,T.G. POWER LTD,G51 3EQ,837725,748765.28
Ministry of Defence,Defence Science and Technology Laboratory,05/08/2011,Repairs & Maintenance,Infrastructure,SERCO LIMITED,,V - 9000134990 - 00114604,740209.53
Ministry of Defence,Ministry of Defence,19/08/2011,Property leases,Defence Infrastructure Organisation ,TRICOMM HOUSING LIMITED,EH3 7HL,834238,736237.27
Ministry of Defence,Ministry of Defence,22/08/2011,Purchase of buildings and military equipment ,Defence Infrastructure Organisation ,MODERN HOUSING SOLUTIONS (PRIME)LIMITED,PE28 4QG,834614,735170.21
Ministry of Defence,Ministry of Defence,01/08/2011,Fees for professional services,Defence Equipment & Support,LOCKHEED MARTIN UK LIMITED,GU14 6TQ,2000012328,731408.13
Ministry of Defence,Ministry of Defence,17/08/2011,Estate management,Central TLB,SODEXO LTD,M50 0AL,832974,728540.76
Ministry of Defence,Ministry of Defence,03/08/2011,Externally delivered education and training,Air Command,BABCOCK LAND LIMITED,BH23 9BS,827138,722161.16
Ministry of Defence,Ministry of Defence,11/08/2011,Rent and rates,Defence Infrastructure Organisation ,WILTSHIRE COUNCIL,BA14 4DS,830952,716098.31
Ministry of Defence,Ministry of Defence,05/08/2011,Estate management,Air Command,VT FLAGSHIP LTD,PO6 4PR,828773,715668.33
Ministry of Defence,Ministry of Defence,11/08/2011,Fees for professional services,Defence Equipment & Support,ALIXPARTNERS LTD,W1K 6WE,830399,713310
Ministry of Defence,Ministry of Defence,16/08/2011,Transport hire charges,Defence Equipment & Support,BABCOCK LAND (WHITEFLEET MANAGEMENT) LIMITED,BH23 6BS,832089,700057.45
Ministry of Defence,Ministry of Defence,12/08/2011,Grants to NDPBs,Air Command,ROYAL AIR FORCE MUSEUM,NW9 5LL,831407,700000
Ministry of Defence,Ministry of Defence,18/08/2011,"Purchase of munitions, other inventory or fuel",Defence Equipment & Support,THE MAERSK COMPANY LTD,NE1 2HJ,833650,698450
Ministry of Defence,Ministry of Defence,03/08/2011,Design services and minor equipment purchases,Air Command,SERCO LIMITED,RG27 9UY,827531,694942.38
Ministry of Defence,Ministry of Defence,19/08/2011,Purchase of buildings and military equipment ,Defence Infrastructure Organisation ,BABCOCK DYNCORP LIMITED,PE28 2EA,833761,678598
Ministry of Defence,Ministry of Defence,30/08/2011,Purchase of buildings - Non Dwellings,Navy Command,VT FLAGSHIP LTD,PO6 4PR,837776,677962.8
Ministry of Defence,Ministry of Defence,18/08/2011,Purchase of buildings and military equipment ,Defence Infrastructure Organisation ,CARILLIONENTERPRISE LIMITED,B75 7RL,833194,677335.77
Ministry of Defence,Ministry of Defence,31/08/2011,Fees for professional services,Defence Equipment & Support,ALIXPARTNERS LTD,W1K 6WE,837818,677254.5
Ministry of Defence,Ministry of Defence,03/08/2011,"Purchase of munitions, other inventory or fuel",Defence Equipment & Support,BP OIL INTERNATIONAL LIMITED,TW16 7BP,2000012352,673636.76
Ministry of Defence,Ministry of Defence,02/08/2011,Grants to NDPBs,Navy Command,THE NATIONAL MUSEUM OF THE ROYAL NAVY,PO1 3NH,827050,650000
Ministry of Defence,Ministry of Defence,10/08/2011,Purchase of buildings and military equipment ,Defence Infrastructure Organisation ,DEBUT SERVICES LIMITED,B75 7RL,830048,645264.54
Ministry of Defence,Ministry of Defence,23/08/2011,IT and communication services,Central TLB,LOGICA UK LIMITED,CF31 9AP,835223,620128.37
Ministry of Defence,Ministry of Defence,11/08/2011,Estate management,Defence Infrastructure Organisation ,SODEXO LTD,M50 0AL,830843,617388.54
Ministry of Defence,Ministry of Defence,30/08/2011,"Purchase of munitions, other inventory or fuel",Air Command,BP INTERNATIONAL LIMITED,HP2 4UL,2000012589,616505.4
Ministry of Defence,Ministry of Defence,08/08/2011,Externally delivered education and training,Air Command,BABCOCK LAND LIMITED,BH23 9BS,828843,610803.49
Ministry of Defence,Ministry of Defence,10/08/2011,Purchase of buildings and military equipment ,Defence Infrastructure Organisation ,CARILLIONENTERPRISE LIMITED,B75 7RL,830004,600000
Ministry of Defence,Ministry of Defence,09/08/2011,Purchase of buildings and military equipment ,Defence Infrastructure Organisation ,TURNER FACILITIES MANAGEMENT LTD,G51 3EQ,829874,589544.69
Ministry of Defence,Ministry of Defence,11/08/2011,Fees for professional services,Land Forces,BABCOCK LAND LIMITED,BH23 9BS,830433,584359
Ministry of Defence,Ministry of Defence,08/08/2011,Development costs for military equipment,Defence Equipment & Support,ORACLE CORPORATION U K LTD,RG6 1RA,829206,580520.9
Ministry of Defence,Defence Science and Technology Laboratory,19/08/2011,Sub Contracted Research,Programme Office,BAE SYSTEMS (OPERATIONS) LIMITED,,V - 9000135308 - 00114243,572112.13
Ministry of Defence,Ministry of Defence,16/08/2011,Purchase of buildings and military equipment ,Defence Equipment & Support,HOLYHEAD MARINE SERVICES LIMITED,LL65 1YB,832265,571946.73
Ministry of Defence,Ministry of Defence,24/08/2011,Design services and minor equipment purchases,Air Command,FBS LIMITED,RG24 8AG,835636,564494.28
Ministry of Defence,Ministry of Defence,04/08/2011,Fuel for military use,Land Forces,ARVAL UK LTD,SN5 6PE,827673,558197.97
Ministry of Defence,Ministry of Defence,03/08/2011,Estate management,Defence Infrastructure Organisation ,MODERN HOUSING SOLUTIONS (PRIME)LIMITED,PE28 4QG,827409,556627.97
Ministry of Defence,Ministry of Defence,26/08/2011,Design services and minor equipment purchases,Defence Equipment & Support,REPLY LIMITED,SL7 3HJ,162838,550254
Ministry of Defence,Ministry of Defence,15/08/2011,Transport hire charges,Land Forces,BABCOCK LAND (WHITEFLEET MANAGEMENT) LIMITED,BH23 6BS,831589,539956.57
Ministry of Defence,Ministry of Defence,23/08/2011,Property leases,Defence Infrastructure Organisation ,VEOLIA WATER NEVIS LIMITED,KY11 8UU,835462,537755.76
Ministry of Defence,Ministry of Defence,05/08/2011,Food and clothing,Defence Equipment & Support,PURPLE FOODSERVICE SOLUTIONS LIMITED,GU32 3QD,828653,535529.29
Ministry of Defence,Ministry of Defence,01/08/2011,Estate management,Air Command,SERCO LIMITED,RG27 9UY,826576,530669.89
Ministry of Defence,Ministry of Defence,10/08/2011,IT and communication services,Central TLB,IBM UNITED KINGDOM LIMITED,PO6 3AE,830134,515948.86
Ministry of Defence,Ministry of Defence,19/08/2011,Food and clothing,Defence Infrastructure Organisation ,COMPASS CONTRACT SERVICES (U K)LIMITED,B45 9PZ,833838,513923.39
Ministry of Defence,Ministry of Defence,25/08/2011,Purchase of buildings and military equipment ,Defence Equipment & Support,DEVONPORT ROYAL DOCKYARD LIMITED,PL1 4SG,836178,512169.03
Ministry of Defence,Ministry of Defence,04/08/2011,Payment of utilities,Defence Infrastructure Organisation ,ELECTRICITY AUTHORITY OF CYPRUS,BFPO 53,4000005514,508352.53
Ministry of Defence,Ministry of Defence,04/08/2011,Estate management,Defence Infrastructure Organisation ,TURNER FACILITIES MANAGEMENT LTD,G51 3EQ,828232,508141.21
Ministry of Defence,Ministry of Defence,10/08/2011,Estate management,Defence Infrastructure Organisation ,SODEXO LTD,M50 0AL,830298,507361.03
Ministry of Defence,Ministry of Defence,19/08/2011,Food and clothing,Defence Infrastructure Organisation ,SODEXO LTD,M50 0AL,834173,506087.42
Ministry of Defence,Ministry of Defence,05/08/2011,Purchase of buildings and military equipment ,Defence Infrastructure Organisation ,MODERN HOUSING SOLUTIONS (PRIME)LIMITED,PE28 4QG,828561,500438.51
Ministry of Defence,Ministry of Defence,31/08/2011,"Purchase of munitions, other inventory or fuel",Defence Equipment & Support,BP OIL INTERNATIONAL LIMITED,TW16 7BP,2000012599,498793.15
Ministry of Defence,Ministry of Defence,18/08/2011,Medical treatment & stores and welfare services,Central TLB,FRIMLEY PARK HOSPITAL NHS FOUNDATION TRUST,GU16 7UJ,833320,495881.55
Ministry of Defence,Defence Science and Technology Laboratory,31/08/2011,Sub Contracted Research,Programme Office,BAE SYSTEMS SURFACE SHIPS SUPPORT LIMITED,,V - 9000135692 - 00116859,489285.25
Ministry of Defence,Ministry of Defence,22/08/2011,Rental of plant and machinery,Defence Equipment & Support,BARLOWORLD HANDLING LTD,WA3 3JD,834331,475136.39
Ministry of Defence,Ministry of Defence,03/08/2011,Transport hire charges,Land Forces,BABCOCK LAND (WHITEFLEET MANAGEMENT) LIMITED,BH23 6BS,827137,474441.72
Ministry of Defence,Ministry of Defence,04/08/2011,Estate management,Air Command,SERCO LIMITED,RG27 9UY,828165,467236.82
Ministry of Defence,Ministry of Defence,17/08/2011,Government Procurement Card,Ministry of Defence,BARCLAYS BANK PLC,TS17 6YG,10858,462609.07
Ministry of Defence,Ministry of Defence,09/08/2011,Estate management,Defence Infrastructure Organisation ,TURNER FACILITIES MANAGEMENT LTD,G51 3EQ,829874,461385.03
Ministry of Defence,Ministry of Defence,10/08/2011,"Transporation of personnel, freight and travel expenses",Land Forces,HOEBER-REISEN KG,,5000060985,459341.59
Ministry of Defence,Ministry of Defence,18/08/2011,Payment of utilities,Defence Infrastructure Organisation ,SSE ENERGY SUPPLY LIMITED,PH1 3AQ,833621,454486.66
Ministry of Defence,Ministry of Defence,10/08/2011,Food and clothing,Defence Infrastructure Organisation ,ARAMARK LTD,LS16 6QY,829933,452342.68
Ministry of Defence,Ministry of Defence,26/08/2011,Purchase of inventory and services ,Land Forces,AAH PHARMACEUTICALS LTD,CV2 2TX,836577,445825.01
Ministry of Defence,Ministry of Defence,12/08/2011,Design services and minor equipment purchases,Air Command,COMPASS GROUP UK AND IRELAND LIMITED,B45 9PZ,831087,439825.43
Ministry of Defence,Ministry of Defence,16/08/2011,Design services and minor equipment purchases,Defence Equipment & Support,MARSHALL OF CAMBRIDGE AEROSPACE LIMITED,CB5 8RX,832314,436443
Ministry of Defence,Ministry of Defence,25/08/2011,Purchase of buildings and military equipment ,Navy Command,VT FLAGSHIP LTD,PO6 4PR,836557,423492
Ministry of Defence,Ministry of Defence,12/08/2011,Design services and minor equipment purchases,Air Command,SERCO LIMITED,RG27 9UY,831433,419178.78
Ministry of Defence,Ministry of Defence,25/08/2011,Transport hire charges,Land Forces,BABCOCK LAND (WHITEFLEET MANAGEMENT) LIMITED,BH23 6BS,836066,418328.51
Ministry of Defence,Ministry of Defence,02/08/2011,Design services and minor equipment purchases,Defence Equipment & Support,MARSHALL SPECIALIST VEHICLES  LIMITED,CB5 8RX,826877,416667
Ministry of Defence,Ministry of Defence,26/08/2011,Food and clothing,Defence Infrastructure Organisation ,NAVY ARMY AND AIR FORCE INSTITUES (THE),DL1 1YN,5000061771,410347.1
Ministry of Defence,Ministry of Defence,17/08/2011,Fuel for military use,Land Forces,ARVAL UK LTD,SN5 6PE,832605,403249.12
Ministry of Defence,Ministry of Defence,24/08/2011,Food and clothing,Defence Infrastructure Organisation ,ISS MEDICLEAN LIMITED,GU21 5RW,835691,396175.06
Ministry of Defence,Ministry of Defence,25/08/2011,Food and clothing,Land Forces,TECHNOGYM U K LIMITED,RG12 8PE,836509,389418.3
Ministry of Defence,Ministry of Defence,10/08/2011,Property leases,Defence Infrastructure Organisation ,COVESEA LIMITED,EH2 2PJ,830035,382685.96
Ministry of Defence,Ministry of Defence,01/08/2011,Property leases,Defence Infrastructure Organisation ,ROSELEAD LIMITED,CB1 2JD,826555,379959.54
Ministry of Defence,Ministry of Defence,09/08/2011,Design services and minor equipment purchases,Defence Equipment & Support,BAE SYSTEMS INTEGRATED SYSTEM TECHNOLOGIES LIMITED,PO31 8PF,829460,377914
Ministry of Defence,Ministry of Defence,08/08/2011,Purchase of plant and machinery,Defence Equipment & Support,RUBB BUILDINGS LTD,NE11 0QE,829277,373860
Ministry of Defence,Ministry of Defence,04/08/2011,Purchase of buildings and military equipment ,Defence Infrastructure Organisation ,VSM ESTATES LIMITED,B32 1AF,828249,366363.6
Ministry of Defence,Ministry of Defence,04/08/2011,"Purchase of munitions, other inventory or fuel",Air Command,BP INTERNATIONAL LIMITED,HP2 4UL,2000012364,365632.29
Ministry of Defence,Ministry of Defence,18/08/2011,Medical treatment & stores and welfare services,Central TLB,UNIVERSITY HOSPITAL BIRMINGHAM NHS FOUNDATION TRUST,B29 6JS,833680,364056
Ministry of Defence,Defence Science and Technology Laboratory,26/08/2011,Sub Contracted Research,Programme Office,MBDA FRANCE S.A.S.,,V - 0000001758 - 00115942,363241
Ministry of Defence,Ministry of Defence,08/08/2011,Design services and minor equipment purchases,Defence Equipment & Support,VAN WIJNGAARDEN MARINE SERVICES B V,,3000005806,358354
Ministry of Defence,Ministry of Defence,11/08/2011,Property leases,Defence Infrastructure Organisation ,ASPIRE DEFENCE LIMITED,SP9 7QD,830419,352401.35
Ministry of Defence,Ministry of Defence,11/08/2011,Estate management,Defence Infrastructure Organisation ,INTERSERVE (DEFENCE) LTD,BS34 8YU,5000061049,351355.23
Ministry of Defence,Defence Science and Technology Laboratory,12/08/2011,Sub Contracted Research,Programme Office,QINETIQ LIMITED,,V - 9000135174 - 00112860,345536
Ministry of Defence,Ministry of Defence,15/08/2011,Estate management,Defence Infrastructure Organisation ,COMPASS CONTRACT SERVICES (U K)LIMITED,B45 9PZ,831662,343873.87
Ministry of Defence,Defence Science and Technology Laboratory,05/08/2011,IT Hardware,Infrastructure,STERIA LIMITED,,V - 9000134961 - 00114679,342212.08
Ministry of Defence,Ministry of Defence,01/08/2011,Fees for professional services,Central TLB,TNT UK LIMITED,BL0 9AR,826637,336598.59
Ministry of Defence,Ministry of Defence,16/08/2011,Transport hire charges,Navy Command,BABCOCK LAND (WHITEFLEET MANAGEMENT) LIMITED,BH23 6BS,832089,334309.11
Ministry of Defence,Ministry of Defence,31/08/2011,Fuel for military use,Land Forces,ARVAL UK LTD,SN5 6PE,837832,334129.91
Ministry of Defence,Ministry of Defence,01/08/2011,Design services and minor equipment purchases,Air Command,T.G. POWER LTD,G51 3EQ,826614,333499
Ministry of Defence,Ministry of Defence,23/08/2011,Design services and minor equipment purchases,Defence Equipment & Support,COBHAM FLIGHT INSPECTION  LIMITED,DL2 1NJ,835100,332965
Ministry of Defence,Defence Science and Technology Laboratory,19/08/2011,Sub Contracted Research,Programme Office,QINETIQ LIMITED,,V - 9000135400 - 00113822,332917
Ministry of Defence,Ministry of Defence,01/08/2011,Medical treatment & stores and welfare services,Land Forces,SSAFA GSTT CARE LLP,SE1 2LP,5000060451,332642.35
Ministry of Defence,Ministry of Defence,12/08/2011,Externally delivered education and training,Land Forces,DEFLOG VQ TRUST LIMITED,HU17 8DY,831105,330344.28
Ministry of Defence,Ministry of Defence,19/08/2011,Transport hire charges,Land Forces,BABCOCK LAND (WHITEFLEET MANAGEMENT) LIMITED,BH23 6BS,833763,327529.26
Ministry of Defence,Ministry of Defence,26/08/2011,Medical treatment & stores and welfare services,Land Forces,SSAFA GSTT CARE LLP,SE1 2LP,5000061784,321097.78
Ministry of Defence,Ministry of Defence,05/08/2011,Purchase of information and communications technology,Defence Equipment & Support,HP ENTERPRISE SERVICES DEFENCE & SECURITY UK LIMITED,OX25 1LP,828499,319332.93
Ministry of Defence,Ministry of Defence,25/08/2011,Design services and minor equipment purchases,Defence Equipment & Support,BABCOCK INTEGRATED TECHNOLOGY  LIMITED,BS3 2HQ,836064,317238.6
Ministry of Defence,Ministry of Defence,18/08/2011,Payment of utilities,Central TLB,SSE ENERGY SUPPLY LIMITED,PH1 3AQ,833621,316186.14
Ministry of Defence,Ministry of Defence,11/08/2011,Property leases,Defence Infrastructure Organisation ,BANNOCKBURN HOMES LIMITED,EH2 1DF,830443,308780
Ministry of Defence,Ministry of Defence,08/08/2011,Design services and minor equipment purchases,Air Command,BABCOCK SUPPORT SERVICES LIMITED,BH23 6BS,828846,306690.92
Ministry of Defence,Ministry of Defence,25/08/2011,Purchase of buildings and military equipment ,Defence Infrastructure Organisation ,VT FLAGSHIP LTD,PO6 4PR,836557,304168.8
Ministry of Defence,Ministry of Defence,19/08/2011,Payment of utilities,Defence Infrastructure Organisation ,NEW ENERGIE GMBH,,5000061360,303088.69
Ministry of Defence,Defence Science and Technology Laboratory,05/08/2011,Sub Contracted Research,Programme Office,QINETIQ LIMITED,,V - 9000134988 - 00114186,300000
Ministry of Defence,Ministry of Defence,22/08/2011,Medical treatment & stores and welfare services,Central TLB,SOUTH TEES HOSPITALS NHS TRUST,TS4 3BW,834888,299926
Ministry of Defence,Ministry of Defence,04/08/2011,Purchase of inventory and services ,Defence Equipment & Support,AAH PHARMACEUTICALS LTD,CV2 2TX,827642,299001.24
Ministry of Defence,Ministry of Defence,04/08/2011,Transport hire charges,Land Forces,BABCOCK LAND (WHITEFLEET MANAGEMENT) LIMITED,BH23 6BS,827691,298629.71
Ministry of Defence,Ministry of Defence,23/08/2011,Medical treatment & stores and welfare services,Land Forces,WRVS SERVICES WELFARE LIMITED,CF23 8RP,835471,295619.28
Ministry of Defence,Ministry of Defence,25/08/2011,Medical treatment & stores and welfare services,Central TLB,CHAS.A.BLATCHFORD & SONS LIMITED,RG22 4AH,836134,293079.29
Ministry of Defence,Ministry of Defence,19/08/2011,Purchase of buildings and military equipment ,Defence Infrastructure Organisation ,DEBUT SERVICES (SOUTH WEST)LIMITED,BA1 5AB,833856,290501.28
Ministry of Defence,Ministry of Defence,04/08/2011,Estate management,Defence Infrastructure Organisation ,BEZIRKSREGIERUNG DUESSELDORF,,5000060668,290191.37
Ministry of Defence,Ministry of Defence,31/08/2011,Payment of utilities,Defence Infrastructure Organisation ,SVO VERTRIEB GMBH,,5000061879,290019.5
Ministry of Defence,Ministry of Defence,22/08/2011,Purchase of buildings and military equipment ,Defence Infrastructure Organisation ,DEBUT SERVICES LIMITED,B75 7RL,834425,289918
Ministry of Defence,Ministry of Defence,09/08/2011,Purchase of buildings and military equipment ,Defence Infrastructure Organisation ,TURNER ESTATE SOLUTIONS LIMITED,KY11 2BL,829873,287695
Ministry of Defence,Ministry of Defence,19/08/2011,Purchase of plant and machinery,Defence Equipment & Support,G3 SYSTEMS LIMITED,DT5 1PY,833923,287159.04
Ministry of Defence,Ministry of Defence,16/08/2011,Purchase of inventory and services ,Defence Equipment & Support,AUSTIN HAYES LTD,LS19 7BD,832080,286255.98
Ministry of Defence,Ministry of Defence,08/08/2011,General services and support,Air Command,DEFENCE SCIENCE & TECHNOLOGY LABORATORY,PO14 9HL,828933,286070.79
Ministry of Defence,Ministry of Defence,03/08/2011,Payment of utilities,Defence Infrastructure Organisation ,STADT MUENSTER,,5000060641,285984.8
Ministry of Defence,Ministry of Defence,12/08/2011,Payment of utilities,Land Forces,SSE ENERGY SUPPLY LIMITED,PH1 3AQ,831461,285085.39
Ministry of Defence,Defence Science and Technology Laboratory,19/08/2011,Materials & Equipment,Operations,BARCLAYCARD,,G - 9000135415 - 00116696,283318.9
Ministry of Defence,Defence Science and Technology Laboratory,05/08/2011,Sub Contracted Work,Operations,MORF PRODUCTS LIMITED,,V - 0000000640 - 00114693,280408.77
Ministry of Defence,Ministry of Defence,09/08/2011,Rent and rates,Defence Infrastructure Organisation ,EDEN DISTRICT COUNCIL,CA11 7QF,829558,279552.59
Ministry of Defence,Ministry of Defence,03/08/2011,IT and communication services,Defence Equipment & Support,AEP NETWORKS LIMITED,HP2 7BW,827089,279174.48
Ministry of Defence,Defence Science and Technology Laboratory,12/08/2011,Sub Contracted Research,Programme Office,MBDA UK LIMITED,,V - 9000135107 - 00114547,278806.2
Ministry of Defence,Defence Science and Technology Laboratory,19/08/2011,Sub Contracted Research,Programme Office,MBDA UK LIMITED,,V - 9000135312 - 00116106,278806.2
Ministry of Defence,Ministry of Defence,17/08/2011,Estate management,Defence Infrastructure Organisation ,BEZIRKSREGIERUNG DUESSELDORF,,5000061227,278014.72
Ministry of Defence,Ministry of Defence,04/08/2011,Payment of utilities,Defence Infrastructure Organisation ,SVO VERTRIEB GMBH,,5000060731,272700.01
Ministry of Defence,United Kingdom Hydrographic Office,10/08/2011,Insurance,Finance Branch,Willis Limited,,2000055398,272600.01
Ministry of Defence,Ministry of Defence,26/08/2011,Estate management,Defence Infrastructure Organisation ,TURNER FACILITIES MANAGEMENT LTD,G51 3EQ,837127,272316.22
Ministry of Defence,Ministry of Defence,25/08/2011,Food and clothing,Defence Infrastructure Organisation ,COMPASS SERVICES (U.K.) LIMITED,B45 9PZ,836151,272269.85
Ministry of Defence,United Kingdom Hydrographic Office,22/08/2011,Assets under construction,ICT Delivery Business Group,CARIS B.V.,,1500012556,270314.33
Ministry of Defence,Ministry of Defence,11/08/2011,Payment of utilities,Defence Infrastructure Organisation ,ELECTRICITY AUTHORITY OF CYPRUS,BFPO 53,4000005540,268619.52
Ministry of Defence,Defence Science and Technology Laboratory,26/08/2011,Sub Contracted Work,Operations,ROKE MANOR RESEARCH LIMITED,,V - 9000135513 - 00115040,268100
Ministry of Defence,Ministry of Defence,09/08/2011,Estate management,Air Command,SERCO LIMITED,RG27 9UY,829805,267282.34
Ministry of Defence,Ministry of Defence,26/08/2011,Estate management,Defence Infrastructure Organisation ,PRIDE (SERP) LTD,GU11 2ER,836998,265535.5
Ministry of Defence,United Kingdom Hydrographic Office,04/08/2011,"Computers, peripherals, software",ICT Delivery Business Group,Insight Direct UK Ltd,,2000055345,265110
Ministry of Defence,Ministry of Defence,30/08/2011,Estate management,Defence Infrastructure Organisation ,TURNER FACILITIES MANAGEMENT LTD,G51 3EQ,837759,263630.78
Ministry of Defence,Ministry of Defence,17/08/2011,Estate management,Defence Infrastructure Organisation ,MODERN HOUSING SOLUTIONS (PRIME)LIMITED,PE28 4QG,832797,261233.63
Ministry of Defence,Ministry of Defence,23/08/2011,Purchase of information and communications technology,Defence Equipment & Support,IBM UNITED KINGDOM LIMITED,PO6 3AE,835194,258788.59
Ministry of Defence,Defence Science and Technology Laboratory,26/08/2011,Local Authority Rates,Infrastructure,WILTSHIRE COUNTY COUNCIL,,V - 9000135534 - 00116407,257635
Ministry of Defence,Ministry of Defence,24/08/2011,Transport hire charges,Land Forces,BABCOCK LAND (WHITEFLEET MANAGEMENT) LIMITED,BH23 6BS,835517,257454.66
Ministry of Defence,Ministry of Defence,25/08/2011,Design services and minor equipment purchases,Central TLB,AKHTER COMPUTERS PUBLIC LIMITED COMPANY,CM18 7PN,836030,256000
Ministry of Defence,Ministry of Defence,17/08/2011,Food and clothing,Defence Infrastructure Organisation ,AVENANCE PLC,SK11 6ET,832611,255374.02
Ministry of Defence,Ministry of Defence,01/08/2011,Purchase of buildings and military equipment ,Defence Infrastructure Organisation ,RMPA SERVICES PLC,CO2 7ST,826546,255020.96
Ministry of Defence,Ministry of Defence,12/08/2011,Estate management,Defence Infrastructure Organisation ,INTERSERVE (DEFENCE) LTD,BS34 8YU,5000061105,254698.37
Ministry of Defence,Ministry of Defence,31/08/2011,Payment of utilities,Defence Infrastructure Organisation ,TOTAL GAS & POWER LIMITED,RH1 1RX,838213,254584.14
Ministry of Defence,Ministry of Defence,19/08/2011,Property leases,Defence Infrastructure Organisation ,TRICOMM HOUSING (PORTSMOUTH) LIMITED,EH3 7HL,834237,251671.08
Ministry of Defence,Ministry of Defence,19/08/2011,Payment of utilities,Defence Infrastructure Organisation ,STADTWERKE HERFORD GMBH,,5000061371,251327.44
Ministry of Defence,Ministry of Defence,15/08/2011,Purchase of inventory and services ,Defence Equipment & Support,AUSTIN HAYES LTD,LS19 7BD,831582,250317.71
Ministry of Defence,Ministry of Defence,16/08/2011,Transport hire charges,Defence Infrastructure Organisation ,BABCOCK LAND (WHITEFLEET MANAGEMENT) LIMITED,BH23 6BS,832089,248775.46
Ministry of Defence,Ministry of Defence,19/08/2011,Fees for professional services,Land Forces,CENTRAL OFFICE OF INFORMATION,SE1 7DU,833822,248628.4
Ministry of Defence,Ministry of Defence,26/08/2011,Food and clothing,Defence Equipment & Support,ITURRI SA,OX16 3TA,3000005867,248245.56
Ministry of Defence,Ministry of Defence,22/08/2011,Rent and rates,Defence Infrastructure Organisation ,RUSHMOOR BOROUGH COUNCIL,GU14 7JU,834834,245347.89
Ministry of Defence,Ministry of Defence,23/08/2011,Medical treatment & stores and welfare services,Defence Equipment & Support,MARKET & OPINION RESEARCH INTERNATIONAL,W1U 6NS,835239,244800
Ministry of Defence,Ministry of Defence,09/08/2011,Payment of utilities,Defence Infrastructure Organisation ,ELECTRICITY AUTHORITY OF CYPRUS,BFPO 53,4000005531,243400.32
Ministry of Defence,Defence Science and Technology Laboratory,31/08/2011,Repairs & Maintenance,Infrastructure,SERCO LIMITED,,V - 9000135677 - 00116700,243034.38
Ministry of Defence,Ministry of Defence,09/08/2011,Food and clothing,Defence Infrastructure Organisation ,ARAMARK LTD,LS16 6QY,829440,242477.71
Ministry of Defence,Ministry of Defence,31/08/2011,Design services and minor equipment purchases,Defence Infrastructure Organisation ,TURNER FACILITIES MANAGEMENT LTD,G51 3EQ,838217,240862.68
Ministry of Defence,Ministry of Defence,03/08/2011,Medical treatment & stores and welfare services,Air Command,THE SOLDIERS  SAILORS  AIRMEN AND FAMILIES ASS - FORCES HELP,SE1 2LP,827588,240485.25
Ministry of Defence,Ministry of Defence,05/08/2011,Medical treatment & stores and welfare services,Central TLB,PLYMOUTH HOSPITALS NHS TRUST,PL3 5QZ,162310,240000
Ministry of Defence,Ministry of Defence,24/08/2011,"Purchase of major spares armaments, medical & general stores",Defence Equipment & Support,DEVONPORT ROYAL DOCKYARD LIMITED,PL1 4SG,835606,239302.38
Ministry of Defence,Ministry of Defence,01/08/2011,Payment of utilities,Defence Equipment & Support,SSE ENERGY SUPPLY LIMITED,PH1 3AQ,826600,238897.99
Ministry of Defence,Ministry of Defence,22/08/2011,Rent and rates,Defence Infrastructure Organisation ,RICHMONDSHIRE DISTRICT COUNCIL,DL10 7AF,834815,236416.14
Ministry of Defence,Ministry of Defence,15/08/2011,Purchase of buildings and military equipment ,Defence Infrastructure Organisation ,CARILLIONENTERPRISE LIMITED,B75 7RL,831639,235959.89
Ministry of Defence,Ministry of Defence,04/08/2011,Property leases,Defence Infrastructure Organisation ,KELDA WATER SERVICES (ESTATES) LIMITED,S35 2PQ,827926,233857
Ministry of Defence,Ministry of Defence,03/08/2011,General services and support,Defence Equipment & Support,LOCKHEED MARTIN OVERSEAS CORPORATION,,2000012356,233593.25
Ministry of Defence,Ministry of Defence,30/08/2011,Design services and minor equipment purchases,Defence Equipment & Support,FLIR SYSTEMS LTD,ME19 4AQ,837358,231080.76
Ministry of Defence,Ministry of Defence,19/08/2011,Purchase of buildings and military equipment ,Defence Equipment & Support,AIRCRAFT MAINTENANCE SUPPORT SERVICES LTD,CF33 6NU,833730,228084
Ministry of Defence,Ministry of Defence,03/08/2011,Externally delivered education and training,Land Forces,SHAPE,,5000060630,227260.29
Ministry of Defence,Defence Science and Technology Laboratory,12/08/2011,Sub Contracted Research,Programme Office,MBDA UK LIMITED,,V - 0000000715 - 00114596,226399.53
Ministry of Defence,Ministry of Defence,17/08/2011,Design services and minor equipment purchases,Defence Equipment & Support,SAGEM DEFENSE SECURITE SA.,,5000061277,226193.91
Ministry of Defence,Ministry of Defence,01/08/2011,Purchase of buildings and military equipment ,Defence Equipment & Support,MBDA UK LIMITED,SG1 2DA,826422,225910.8
Ministry of Defence,Ministry of Defence,10/08/2011,Food and clothing,Defence Equipment & Support,ITURRI SA,OX16 3TA,3000005817,224966.89
Ministry of Defence,Ministry of Defence,16/08/2011,Fees for professional services,Central TLB,GIFFORD OWEN LTD,BA11 2WH,832244,224727
Ministry of Defence,Defence Science and Technology Laboratory,05/08/2011,Repairs & Maintenance,Infrastructure,SERCO LIMITED,,V - 9000134990 - 00114607,223857.7
Ministry of Defence,Ministry of Defence,22/08/2011,Fees for professional services,Land Forces,G4S CARE AND JUSTICE SERVICES (UK) LIMITED,S81 7QF,834493,222041.43
Ministry of Defence,Ministry of Defence,01/08/2011,Payment of utilities,Defence Infrastructure Organisation ,STADTWERKE DETMOLD GMBH,,5000060452,218750.01
Ministry of Defence,Ministry of Defence,30/08/2011,"Purchase of munitions, other inventory or fuel",Defence Equipment & Support,ENERSYS LTD.,,837339,218199.38
Ministry of Defence,Ministry of Defence,03/08/2011,Purchase of buildings and military equipment ,Defence Equipment & Support,MBDA UK LIMITED,SG1 2DA,827401,217095.25
Ministry of Defence,Defence Science and Technology Laboratory,12/08/2011,Sub Contracted Research,Programme Office,MBDA UK LIMITED,,V - 0000000715 - 00115504,216248.84
Ministry of Defence,Ministry of Defence,22/08/2011,Payment of utilities,Defence Infrastructure Organisation ,SSE ENERGY SUPPLY LIMITED,PH1 3AQ,834901,213051.88
Ministry of Defence,Ministry of Defence,08/08/2011,Food and clothing,Defence Infrastructure Organisation ,ARAMARK LTD,LS16 6QY,828824,212570.96
Ministry of Defence,Ministry of Defence,16/08/2011,Purchase of inventory and services ,Defence Equipment & Support,THE MAERSK COMPANY LTD,E1 8EP,2000012483,211539.61
Ministry of Defence,Ministry of Defence,08/08/2011,Purchase of buildings and military equipment ,Defence Infrastructure Organisation ,TURNER FACILITIES MANAGEMENT LTD,G51 3EQ,829358,211300.53
Ministry of Defence,Ministry of Defence,01/08/2011,Externally delivered education and training,Land Forces,BABCOCK TRAINING LIMITED,PO6 4PR,162175,207618.78
Ministry of Defence,Ministry of Defence,04/08/2011,Design services and minor equipment purchases,Defence Equipment & Support,KELLOGG BROWN & ROOT LIMITED,KT22 7NL,827927,206302.09
Ministry of Defence,Ministry of Defence,08/08/2011,Estate management,Defence Infrastructure Organisation ,TURNER FACILITIES MANAGEMENT LTD,G51 3EQ,829358,204184.38
Ministry of Defence,Ministry of Defence,10/08/2011,International contributions,Central TLB,WORLD ORGANISATION FOR ANIMAL HEALTH,,3000005820,204000
Ministry of Defence,Ministry of Defence,09/08/2011,Payment of utilities,Air Command,SSE ENERGY SUPPLY LIMITED,PH1 3AQ,829835,203644.38
Ministry of Defence,Ministry of Defence,30/08/2011,Food and clothing,Defence Equipment & Support,ITURRI SA,OX16 3TA,3000005874,201239.75
Ministry of Defence,Ministry of Defence,09/08/2011,Estate management,Defence Infrastructure Organisation ,ARAMARK LTD,LS16 6QY,829440,200852.25
Ministry of Defence,Ministry of Defence,15/08/2011,Estate management,Defence Infrastructure Organisation ,INTERSERVE (DEFENCE) LTD,BS34 8YU,831763,200845.39
Ministry of Defence,Defence Science and Technology Laboratory,05/08/2011,Sub Contracted Research,Programme Office,MBDA UK LIMITED,,V - 9000134922 - 00112840,200000
Ministry of Defence,Ministry of Defence,25/08/2011,Payment of utilities,Defence Infrastructure Organisation ,SSE ENERGY SUPPLY LIMITED,PH1 3AQ,836501,199014.17
Ministry of Defence,Ministry of Defence,03/08/2011,Externally delivered education and training,Central TLB,COMMUNICAID GROUP LIMITED,EC3A 5BU,827218,197505
Ministry of Defence,Ministry of Defence,09/08/2011,Purchase of buildings and military equipment ,Defence Infrastructure Organisation ,BEZIRKSREGIERUNG DUESSELDORF,,5000060923,196953.98
Ministry of Defence,Ministry of Defence,17/08/2011,Fees for professional services,Defence Infrastructure Organisation ,WYG MANAGEMENT SERVICES LIMITED,L2 6RE,833042,195000
Ministry of Defence,Ministry of Defence,04/08/2011,Payment of utilities,Defence Infrastructure Organisation ,STADT HARSEWINKEL,,5000060726,194517.82
Ministry of Defence,Ministry of Defence,10/08/2011,Fuel for military use,Land Forces,MOBENE GMBH & CO. KG,,5000060996,194434.81
Ministry of Defence,Ministry of Defence,18/08/2011,Transport hire charges,Land Forces,BABCOCK LAND (WHITEFLEET MANAGEMENT) LIMITED,BH23 6BS,833114,193835.47
Ministry of Defence,Ministry of Defence,15/08/2011,Estate management,Defence Equipment & Support,INTERSERVE (DEFENCE) LTD,BS34 8YU,5000061154,193396.46
Ministry of Defence,Ministry of Defence,30/08/2011,Estate management,Defence Infrastructure Organisation ,SODEXO LTD,M50 0AL,837704,192787.47
Ministry of Defence,Ministry of Defence,22/08/2011,Property leases,Defence Infrastructure Organisation ,ASPIRE DEFENCE LIMITED,SP9 7QD,834307,191352.27
Ministry of Defence,Ministry of Defence,04/08/2011,Medical treatment & stores and welfare services,Central TLB,ST JOHN & RED CROSS DEFENCE MEDICAL WELFARE SERVICE,EC4M 7HQ,828188,190071.08
Ministry of Defence,Ministry of Defence,16/08/2011,IT and communication services,Defence Equipment & Support,S.COM GROUP LTD,LU1 3BA,832485,189900
Ministry of Defence,Ministry of Defence,05/08/2011,Design services and minor equipment purchases,Land Forces,SELEX GALILEO LTD,LU1 3PG,828691,188750
Ministry of Defence,Ministry of Defence,15/08/2011,IT and communication services,Defence Equipment & Support,IBM UNITED KINGDOM LIMITED,PO6 3AE,831758,188078.47
Ministry of Defence,Ministry of Defence,22/08/2011,Payment of utilities,Defence Infrastructure Organisation ,STADTWERKE GUETERSLOH GMBH,,5000061460,187741.75
Ministry of Defence,Ministry of Defence,17/08/2011,Food and clothing,Air Command,AVENANCE PLC,SK11 6ET,832611,186671.87
Ministry of Defence,Ministry of Defence,04/08/2011,Estate management,Defence Infrastructure Organisation ,INTERSERVE (DEFENCE) LTD,BS34 8YU,5000060690,186526.78
Ministry of Defence,Defence Science and Technology Laboratory,26/08/2011,Sub Contracted Research,Programme Office,MBDA FRANCE S.A.S.,,V - 0000001758 - 00115941,186435
Ministry of Defence,Ministry of Defence,02/08/2011,Payment of utilities,Defence Infrastructure Organisation ,STADTWERKE GUETERSLOH GMBH,,5000060499,186260.13
Ministry of Defence,Ministry of Defence,08/08/2011,"Transporation of personnel, freight and travel expenses",Land Forces,HOEBER-REISEN KG,,5000060848,186022.15
Ministry of Defence,Ministry of Defence,01/08/2011,Purchase of inventory and services ,Defence Equipment & Support,AUSTIN HAYES LTD,LS19 7BD,826177,185771.42
Ministry of Defence,Ministry of Defence,11/08/2011,Estate management,Defence Infrastructure Organisation ,BEZIRKSREGIERUNG DUESSELDORF,,5000061033,184938.54
Ministry of Defence,Ministry of Defence,05/08/2011,Externally delivered education and training,Navy Command,VT FLAGSHIP LTD,PO6 4PR,828772,184645
Ministry of Defence,Ministry of Defence,19/08/2011,Payment of utilities,Defence Infrastructure Organisation ,SSE ENERGY SUPPLY LIMITED,PH1 3AQ,834196,183373.61
Ministry of Defence,Ministry of Defence,05/08/2011,Payment of utilities,Land Forces,GB OILS LIMITED,FK5 4RB,828463,182522.43
Ministry of Defence,Ministry of Defence,11/08/2011,Food and clothing,Defence Infrastructure Organisation ,AVENANCE PLC,SK11 6ET,830423,182223.73
Ministry of Defence,Ministry of Defence,22/08/2011,Design services and minor equipment purchases,Defence Equipment & Support,MBDA UK LIMITED,SG1 2DA,834600,180912.71
Ministry of Defence,Ministry of Defence,30/08/2011,Purchase of buildings and military equipment ,Defence Infrastructure Organisation ,VT FLAGSHIP LTD,PO6 4PR,837776,178872
Ministry of Defence,Ministry of Defence,05/08/2011,Property leases,Defence Infrastructure Organisation ,THE RIVERSIDE GROUP LIMITED,L24 8RF,828748,178025.74
Ministry of Defence,Ministry of Defence,30/08/2011,Estate management,Defence Infrastructure Organisation ,INTERSERVE (DEFENCE) LTD,BS34 8YU,5000061817,176991.15
Ministry of Defence,Ministry of Defence,01/08/2011,Design services and minor equipment purchases,Land Forces,SERCO LIMITED,RG27 9UY,826576,176625.38
Ministry of Defence,Defence Science and Technology Laboratory,26/08/2011,Capital Asset expenditure,Infrastructure,STERIA LIMITED,,V - 9000135547 - 00115355,176532.87
Ministry of Defence,Ministry of Defence,04/08/2011,Design services and minor equipment purchases,Air Command,SERCO LIMITED,RG27 9UY,828165,174797.51
Ministry of Defence,Ministry of Defence,12/08/2011,Purchase of buildings and military equipment ,Defence Infrastructure Organisation ,VOLKER STEVIN LIMITED,EN11 9BX,831526,174208.8
Ministry of Defence,Ministry of Defence,12/08/2011,Medical treatment & stores and welfare services,Land Forces,WRVS SERVICES WELFARE LIMITED,CF23 8RP,831540,173876.35
Ministry of Defence,Ministry of Defence,01/08/2011,Estate management,Defence Infrastructure Organisation ,TURNER FACILITIES MANAGEMENT LTD,G51 3EQ,826644,173742.75
Ministry of Defence,Ministry of Defence,23/08/2011,Estate management,Defence Infrastructure Organisation ,COUNCIL OF RESERVE FORCES' AND CADETS' ASSOCIATIONS,EC2A 4EY,835106,173274.32
Ministry of Defence,Ministry of Defence,04/08/2011,General services and support,Defence Equipment & Support,SOFTWARE BOX LTD,YO61 1ET,828176,172578.34
Ministry of Defence,Ministry of Defence,10/08/2011,Transport hire charges,Land Forces,BABCOCK LAND (WHITEFLEET MANAGEMENT) LIMITED,BH23 6BS,829948,171530.35
Ministry of Defence,Defence Science and Technology Laboratory,19/08/2011,Energy & Utility,Infrastructure,SCOTTISH HYDRO ELECTRIC GAS LIMITED,,V - 9000135399 - 00115693,171127.94
Ministry of Defence,Ministry of Defence,22/08/2011,Payment of utilities,Defence Infrastructure Organisation ,STADT BIELEFELD,,5000061458,170621.24
Ministry of Defence,Ministry of Defence,15/08/2011,Food and clothing,Defence Infrastructure Organisation ,AVENANCE PLC,SK11 6ET,831583,169865.01
Ministry of Defence,Defence Science and Technology Laboratory,19/08/2011,Sub Contracted Research,Programme Office,QINETIQ LIMITED,,V - 9000135400 - 00115317,168853
Ministry of Defence,Ministry of Defence,03/08/2011,Medical treatment & stores and welfare services,Land Forces,GUY'S & ST THOMAS NHS FOUNDATION TRUST,,5000060557,167713.76
Ministry of Defence,Defence Science and Technology Laboratory,19/08/2011,Sub Contracted Work,Operations,QINETIQ LIMITED,,V - 9000135400 - 00114816,167364.67
Ministry of Defence,Ministry of Defence,25/08/2011,Purchase of buildings and military equipment ,Defence Infrastructure Organisation ,JEWSON LIMITED,G51 3LH,836293,167253.76
Ministry of Defence,Ministry of Defence,24/08/2011,Purchase of buildings and military equipment ,Command Joint Operations,SECURITY SERVICES GROUP,SN6 8LA,2.00E+11,166129.61
Ministry of Defence,Ministry of Defence,04/08/2011,Payment of utilities,Defence Infrastructure Organisation ,STADTWERKE BIELEFELD GMBH,,5000060727,166103.54
Ministry of Defence,Ministry of Defence,25/08/2011,Payment of utilities,Defence Infrastructure Organisation ,STADTWERKE BIELEFELD GMBH,,5000061708,166038.94
Ministry of Defence,Ministry of Defence,17/08/2011,Purchase of buildings and military equipment ,Defence Infrastructure Organisation ,MODERN HOUSING SOLUTIONS (PRIME)LIMITED,PE28 4QG,832797,165868.63
Ministry of Defence,Ministry of Defence,08/08/2011,Payment of utilities,Defence Infrastructure Organisation ,ELECTRICITY AUTHORITY OF CYPRUS,BFPO 53,4000005520,165473.5
Ministry of Defence,Defence Science and Technology Laboratory,05/08/2011,Communications,Infrastructure,BT - DFTS,,V - 9000134929 - 00114848,165036.03
Ministry of Defence,Ministry of Defence,23/08/2011,Externally delivered education and training,Air Command,COMPASS GROUP UK AND IRELAND LIMITED,B45 9PZ,835102,164997.6
Ministry of Defence,Ministry of Defence,24/08/2011,Rent and rates,Air Command,NATIONAL ASSEMBLY FOR WALES,CF10 3NQ,2.00E+11,163255.13
Ministry of Defence,Ministry of Defence,22/08/2011,"Purchase of munitions, other inventory or fuel",Defence Equipment & Support,FUCHS LUBRICANTS (UK) PLC,ST1 5HU,834488,162100.43
Ministry of Defence,Defence Science and Technology Laboratory,05/08/2011,Sub Contracted Work,Operations,QINETIQ LIMITED,,V - 9000134988 - 00114361,162007.46
Ministry of Defence,Ministry of Defence,17/08/2011,Purchase of buildings and military equipment ,Defence Infrastructure Organisation ,VOLKER STEVIN LIMITED,EN11 9BX,833034,161583
Ministry of Defence,Ministry of Defence,08/08/2011,Externally delivered education and training,Air Command,COMPASS GROUP UK AND IRELAND LIMITED,B45 9PZ,828914,161486.09
Ministry of Defence,Defence Science and Technology Laboratory,26/08/2011,Sub Contracted Research,Programme Office,AEROSYSTEMS INTERNATIONAL LIMITED,,V - 9000135580 - 00114730,160522.12
Ministry of Defence,Ministry of Defence,26/08/2011,Design services and minor equipment purchases,Land Forces,SERCO LIMITED,RG27 9UY,837055,160405.38
Ministry of Defence,Ministry of Defence,19/08/2011,Design services and minor equipment purchases,Land Forces,DEFENCE SCIENCE & TECHNOLOGY LABORATORY,PO14 9HL,833857,159800
Ministry of Defence,Ministry of Defence,15/08/2011,Estate management,Defence Infrastructure Organisation ,SCHAL INTERNATIONAL MANAGEMENT LIMITED,CR9 0AU,831945,157647.06
Ministry of Defence,Defence Science and Technology Laboratory,31/08/2011,Repairs & Maintenance,Infrastructure,SERCO LIMITED,,V - 9000135677 - 00116768,155516.05
Ministry of Defence,Defence Support Group,19/08/2011,Barclaycard Control a/c,Corporate,Barclays Bank ( Visa),,10134329,155083.29
Ministry of Defence,Ministry of Defence,17/08/2011,Nuclear decommissioning and restoration,Defence Equipment & Support,DEVONPORT ROYAL DOCKYARD LIMITED,PL1 4SG,832681,154148.99
Ministry of Defence,Ministry of Defence,12/08/2011,Payment of utilities,Defence Equipment & Support,SSE ENERGY SUPPLY LIMITED,PH1 3AQ,831461,154032.01
Ministry of Defence,Ministry of Defence,03/08/2011,Payment of utilities,Defence Infrastructure Organisation ,MABANAFT DEUTSCHLAND GMBH,,5000060584,153823.58
Ministry of Defence,Ministry of Defence,10/08/2011,Research and development,Central TLB,DEFENCE SCIENCE & TECHNOLOGY LABORATORY,PO14 9HL,830049,153779.84
Ministry of Defence,Defence Support Group,26/08/2011,Payroll Processing Costs,Corporate,Department for Work and Pensions,,10134745,153264
Ministry of Defence,Ministry of Defence,11/08/2011,Rent and rates,Defence Infrastructure Organisation ,VALE OF WHITE HORSE DISTRICT COUNCIL,OX14 3JH,830922,152789.42
Ministry of Defence,Ministry of Defence,26/08/2011,Estate management,Central TLB,SINCLAIR KNIGHT MERZ (EUROPE) LTD,M3 2WJ,837060,152593.94
Ministry of Defence,Ministry of Defence,16/08/2011,IT and communication services,Defence Equipment & Support,L.A. INTERNATIONAL COMPUTER  CONSULTANTS LIMITED,ST1 5UB,832290,151882.5
Ministry of Defence,Ministry of Defence,30/08/2011,Purchase of buildings and military equipment ,Defence Equipment & Support,ASPIRE DEFENCE LIMITED,SP9 7QD,837201,151499.69
Ministry of Defence,Ministry of Defence,09/08/2011,IT and communication services,Defence Equipment & Support,LOCKHEED MARTIN UK LIMITED,GU14 6TQ,2000012401,151441.72
Ministry of Defence,Ministry of Defence,02/08/2011,IT and communication services,Defence Equipment & Support,GREENROAD TECHNOLOGIES UK  LIMITED,W1W 5NA,826823,150524.64
Ministry of Defence,Ministry of Defence,23/08/2011,Estate management,Defence Infrastructure Organisation ,QINETIQ LIMITED,PO12 2AG,835366,150469.17
Ministry of Defence,Ministry of Defence,19/08/2011,Purchase of buildings and military equipment ,Defence Equipment & Support,SONOSITE LTD.,SG4 0AP,834179,149789.52
Ministry of Defence,Ministry of Defence,04/08/2011,IT and communication services,Defence Equipment & Support,AMADEUS IT GROUP SA,,3000005791,149525.47
Ministry of Defence,Ministry of Defence,22/08/2011,Estate management,Air Command,CARILLIONENTERPRISE LIMITED,B75 7RL,834377,148756.58
Ministry of Defence,Defence Science and Technology Laboratory,23/08/2011,Sub Contracted Research,Programme Office,SYSTEMS ENGINEERING & ASSESSMENT LIMITED,,V - 9000135442 - 00113290,148475
Ministry of Defence,Ministry of Defence,25/08/2011,Payments made in advance,Central TLB,NATO,,5000061684,144294.58
Ministry of Defence,Ministry of Defence,16/08/2011,"Purchase of munitions, other inventory or fuel",Defence Equipment & Support,EDSL LIMITED,CO12 5JW,832219,143615.23
Ministry of Defence,Ministry of Defence,10/08/2011,Energy conservation and environmental charges.,Land Forces,DEFENCE SCIENCE & TECHNOLOGY LABORATORY,PO14 9HL,830049,139401.26
Ministry of Defence,Ministry of Defence,04/08/2011,Payment of utilities,Land Forces,GB OILS LIMITED,FK5 4RB,827859,139208.83
Ministry of Defence,Ministry of Defence,16/08/2011,"Transporation of personnel, freight and travel expenses",Defence Equipment & Support,DHL GLOBAL FORWARDING (UK)  LIMITED,TW18 4BP,832186,138817.5
Ministry of Defence,Ministry of Defence,30/08/2011,Payment of utilities,Defence Infrastructure Organisation ,TOTAL GAS & POWER LIMITED,RH1 1RX,837756,138726.04
Ministry of Defence,Ministry of Defence,03/08/2011,Design services and minor equipment purchases,Defence Equipment & Support,BABCOCK MARINE (ROSYTH) LTD,KY11 2YD,827140,138392.52
Ministry of Defence,Ministry of Defence,17/08/2011,Purchase of buildings and military equipment ,Defence Infrastructure Organisation ,ISG JACKSON LIMITED,IP3 0NA,832748,138090.9
Ministry of Defence,Ministry of Defence,15/08/2011,Externally delivered education and training,Land Forces,RYDER PUBLIC LIMITED COMPANY,SK16 4UL,831940,138000.37
Ministry of Defence,Ministry of Defence,03/08/2011,Design services and minor equipment purchases,Defence Equipment & Support,LOCKHEED MARTIN OVERSEAS CORPORATION,,827376,138000
Ministry of Defence,Ministry of Defence,09/08/2011,Estate management,Defence Infrastructure Organisation ,BEZIRKSREGIERUNG DUESSELDORF,,5000060923,136801.94
Ministry of Defence,Ministry of Defence,18/08/2011,Purchase of inventory and services ,Defence Equipment & Support,BOC LIMITED,M28 2UT,833150,136699
Ministry of Defence,Ministry of Defence,02/08/2011,Purchase of inventory and services ,Defence Equipment & Support,HESCO BASTION LTD,LS9 0NP,826833,136370.16
Ministry of Defence,Defence Science and Technology Laboratory,26/08/2011,Capital Asset expenditure,Infrastructure,STERIA LIMITED,,V - 9000135547 - 00115356,135892.27
Ministry of Defence,Defence Science and Technology Laboratory,05/08/2011,Sub Contracted Research,Programme Office,QINETIQ LIMITED,,V - 9000134988 - 00112904,135000
Ministry of Defence,Ministry of Defence,04/08/2011,Food and clothing,Defence Equipment & Support,SODEXO LTD,M50 0AL,828175,134810.65
Ministry of Defence,Ministry of Defence,09/08/2011,Food and clothing,Air Command,ARAMARK LTD,LS16 6QY,829440,133475.13
Ministry of Defence,Ministry of Defence,23/08/2011,Rent and rates,Defence Infrastructure Organisation ,THE MORAY COUNCIL,IV30 1BX,835442,133361.91
Ministry of Defence,Ministry of Defence,26/08/2011,Medical treatment & stores and welfare services,Land Forces,NHS FIFE,KY1 3NB,2.00E+11,133132
Ministry of Defence,Ministry of Defence,03/08/2011,Rent and rates,Navy Command,FAST TRAINING SERVICES LIMITED,PO9 1SA,827284,133061.85
Ministry of Defence,Defence Science and Technology Laboratory,05/08/2011,IS Development,Corporate,STERIA LIMITED,,V - 9000134960 - 00113286,132966.98
Ministry of Defence,Ministry of Defence,26/08/2011,Medical treatment & stores and welfare services,Command Joint Operations,NATS (SERVICES) LIMITED,EH12 5HG,836887,132916.66
Ministry of Defence,Ministry of Defence,17/08/2011,Design services and minor equipment purchases,Defence Equipment & Support,FR AVIATION LIMITED,BH23 6NE,832718,132339.67
Ministry of Defence,Ministry of Defence,18/08/2011,Purchase of buildings and military equipment ,Defence Equipment & Support,FR AVIATION LIMITED,BH23 6NE,833319,131754.72
Ministry of Defence,Ministry of Defence,30/08/2011,Purchase of buildings and military equipment ,Defence Infrastructure Organisation ,MODERN HOUSING SOLUTIONS (PRIME)LIMITED,PE28 4QG,837475,131511.45
Ministry of Defence,Ministry of Defence,11/07/2011,Medical treatment & stores and welfare services,Central TLB,St Pauls Primary School,,49,130937.5
Ministry of Defence,Ministry of Defence,10/08/2011,Preparation of land & buildings for disposal,Defence Infrastructure Organisation ,CORPS OF COMMISSIONAIRES  MANAGEMENT LIMITED,RH10 9WE,830031,130691.78
Ministry of Defence,Ministry of Defence,04/08/2011,Food and clothing,Defence Infrastructure Organisation ,AVENANCE PLC,SK11 6ET,827681,130599.3
Ministry of Defence,Ministry of Defence,25/08/2011,Design services and minor equipment purchases,Defence Equipment & Support,ATLAS ELEKTRONIK UK LIMITED,NP19 4SS,836055,128910
Ministry of Defence,Defence Science and Technology Laboratory,05/08/2011,Sub Contracted Research,Programme Office,QINETIQ LIMITED,,V - 9000134988 - 00114067,128844.5
Ministry of Defence,Ministry of Defence,11/08/2011,Rent and rates,Defence Infrastructure Organisation ,WYCOMBE DISTRICT COUNCIL,HP11 1BB,830964,128656.66
Ministry of Defence,Ministry of Defence,25/08/2011,Purchase of plant and machinery,Defence Equipment & Support,KELLOGG BROWN & ROOT LIMITED,KT22 7NL,836303,128221.7
Ministry of Defence,Defence Science and Technology Laboratory,05/08/2011,Sub Contracted Research,Programme Office,QINETIQ LIMITED,,V - 9000134988 - 00114021,128191
Ministry of Defence,Ministry of Defence,02/08/2011,IT and communication services,Defence Equipment & Support,AGILE IDEAS LIMITED,SW6 3JD,826683,127117.97
Ministry of Defence,Ministry of Defence,04/08/2011,Transport hire charges,Land Forces,BUSVERKEHR OSTWESTFALEN GMBH,,5000060672,126756.1
Ministry of Defence,Ministry of Defence,15/08/2011,IT and communication services,Defence Equipment & Support,ATOS ORIGIN UK LIMITED,SK9 1BB,162510,126337.2
Ministry of Defence,Ministry of Defence,23/08/2011,Grants in aid,Navy Command,THE NATIONAL MUSEUM OF THE ROYAL NAVY,PO1 3NH,835443,126267.34
Ministry of Defence,Ministry of Defence,03/08/2011,Design services and minor equipment purchases,Air Command,COMPASS GROUP UK AND IRELAND LIMITED,B45 9PZ,827221,125974.58
Ministry of Defence,Ministry of Defence,03/08/2011,Estate management,Defence Infrastructure Organisation ,INTERSERVE (DEFENCE) LTD,BS34 8YU,5000060567,125739.82
Ministry of Defence,Ministry of Defence,12/08/2011,Administration,Navy Command,VT FLAGSHIP LTD,PO6 4PR,831528,125711.3
Ministry of Defence,Ministry of Defence,11/08/2011,Design services and minor equipment purchases,Defence Equipment & Support,DEVONPORT ROYAL DOCKYARD LIMITED,PL1 4SG,830525,125182.06
Ministry of Defence,Defence Science and Technology Laboratory,12/08/2011,Sub Contracted Work,Operations,G-NIUS UNMANNED GROUND SYSTEMS (UGS) LIMITED,,V - 0000001741 - 00114265,125000
Ministry of Defence,Ministry of Defence,12/08/2011,Purchase of plant and machinery,Defence Equipment & Support,M.K. SERVICES LIMITED,LU7 4TZ,831226,124744.8
Ministry of Defence,Ministry of Defence,09/08/2011,Fees for professional services,Central TLB,DEFENCE SCIENCE & TECHNOLOGY LABORATORY,PO14 9HL,829529,124225.25
Ministry of Defence,Ministry of Defence,22/08/2011,Rent and rates,Defence Infrastructure Organisation ,PLYMOUTH CITY COUNCIL,PL1 2AA,834780,124193.84
Ministry of Defence,Ministry of Defence,11/08/2011,Rent and rates,Defence Infrastructure Organisation ,WEST OXFORDSHIRE DISTRICT  COUNCIL,OX28 6JH,830943,124100.27
Ministry of Defence,Ministry of Defence,26/08/2011,Fees for professional services,Central TLB,DEPARTMENT FOR WORK AND PENSIONS,FY5 3TA,836712,123338.65
Ministry of Defence,Ministry of Defence,18/08/2011,"Transporation of personnel, freight and travel expenses",Defence Equipment & Support,ROYAL MAIL GROUP LIMITED,PE4 5PG,833572,123157.86
Ministry of Defence,Ministry of Defence,12/08/2011,Medical treatment & stores and welfare services,Central TLB,SOUTH STAFFORDSHIRE & SHROPSHIRE HEALTHCARE NHS FOUNDATION TRUST,ST16 3SR,2.00E+11,123064
Ministry of Defence,Ministry of Defence,05/08/2011,International contributions,Central TLB,DEFENCE SCIENCE & TECHNOLOGY LABORATORY,PO14 9HL,828399,122288.38
Ministry of Defence,Ministry of Defence,17/08/2011,Design services and minor equipment purchases,Defence Equipment & Support,BAE SYSTEMS (OPERATIONS) LIMITED,PR4 1AX,832624,121943.45
Ministry of Defence,Ministry of Defence,19/08/2011,Payment of utilities,Air Command,SSE ENERGY SUPPLY LIMITED,PH1 3AQ,834196,121770.84
Ministry of Defence,Ministry of Defence,03/08/2011,Estate management,Defence Infrastructure Organisation ,TURNER FACILITIES MANAGEMENT LTD,G51 3EQ,827600,121720.73
Ministry of Defence,Ministry of Defence,10/08/2011,Estate management,Defence Infrastructure Organisation ,ARAMARK LTD,LS16 6QY,829933,121394.12
Ministry of Defence,Ministry of Defence,19/08/2011,Rent and rates,Defence Infrastructure Organisation ,GOSPORT BOROUGH COUNCIL,PO12 1EB,833937,121160.19
Ministry of Defence,Defence Science and Technology Laboratory,05/08/2011,Sub Contracted Research,Programme Office,QINETIQ LIMITED,,V - 9000134988 - 00112884,121000
Ministry of Defence,Ministry of Defence,24/08/2011,Estate management,Defence Infrastructure Organisation ,ISS MEDICLEAN LIMITED,GU21 5RW,835691,120787.22
Ministry of Defence,Defence Science and Technology Laboratory,12/08/2011,Sub Contracted Research,Programme Office,QINETIQ LIMITED,,V - 9000135174 - 00115074,120000
Ministry of Defence,Ministry of Defence,30/08/2011,Payment of utilities,Defence Infrastructure Organisation ,NVV AG,,5000061825,119905.89
Ministry of Defence,Ministry of Defence,08/08/2011,Research and development,Central TLB,DEFENCE SCIENCE & TECHNOLOGY LABORATORY,PO14 9HL,828933,119370.66
Ministry of Defence,Ministry of Defence,01/08/2011,Payment of utilities,Land Forces,SSE ENERGY SUPPLY LIMITED,PH1 3AQ,826600,118740.76
Ministry of Defence,Ministry of Defence,25/08/2011,Design services and minor equipment purchases,Air Command,BABCOCK SUPPORT SERVICES LIMITED,BH23 6BS,836071,116434.07
Ministry of Defence,Ministry of Defence,15/08/2011,Food and clothing,Central TLB,SODEXO LTD,M50 0AL,831967,116221.92
Ministry of Defence,Ministry of Defence,26/08/2011,"Purchase of major spares armaments, medical & general stores",Defence Equipment & Support,ELECTRO SERVICES (MIDLANDS) LTD,TF3 3BD,836745,115446.7
Ministry of Defence,Defence Science and Technology Laboratory,05/08/2011,Sub Contracted Research,Programme Office,QINETIQ LIMITED,,V - 9000134988 - 00114819,115000
Ministry of Defence,Ministry of Defence,23/08/2011,Rent and rates,Defence Infrastructure Organisation ,LONDON BOROUGH OF HILLINGDON,UB8 1UW,835224,114926.65
Ministry of Defence,Ministry of Defence,25/08/2011,Fees for professional services,Defence Infrastructure Organisation ,OCS GROUP UK LIMITED,RH10 9PP,162807,114584.19
Ministry of Defence,Ministry of Defence,18/08/2011,Rent and rates,Defence Infrastructure Organisation ,COLCHESTER BOROUGH COUNCIL,CO1 1QY,833221,114553.45
Ministry of Defence,Ministry of Defence,15/08/2011,Estate management,Defence Infrastructure Organisation ,SERCO LIMITED,RG27 9UY,831953,113574.52
Ministry of Defence,Ministry of Defence,15/08/2011,Design services and minor equipment purchases,Defence Equipment & Support,THALES UK LIMITED,RH10 9HA,831998,113281.8
Ministry of Defence,Ministry of Defence,26/08/2011,Payment of utilities,Land Forces,SSE ENERGY SUPPLY LIMITED,PH1 3AQ,837078,113104.72
Ministry of Defence,Ministry of Defence,11/08/2011,Estate management,Defence Infrastructure Organisation ,AVENANCE PLC,SK11 6ET,830423,112972.28
Ministry of Defence,Ministry of Defence,04/08/2011,Design services and minor equipment purchases,Defence Equipment & Support,POWERFIELD LIMITED,CW7 2JZ,828121,112425
Ministry of Defence,Ministry of Defence,25/08/2011,"Purchase of munitions, other inventory or fuel",Defence Equipment & Support,FUCHS LUBRICANTS (UK) PLC,ST1 5HU,836234,112032.58
Ministry of Defence,Ministry of Defence,04/08/2011,Design services and minor equipment purchases,Defence Equipment & Support,ASSOCIATED IDEAS LTD,TA12 6JL,827675,111571
Ministry of Defence,Ministry of Defence,04/08/2011,Grants in aid,Navy Command,THE NATIONAL MUSEUM OF THE ROYAL NAVY,PO1 3NH,828216,111548.11
Ministry of Defence,Ministry of Defence,26/08/2011,IT and communication services,Defence Equipment & Support,LSC GROUP LIMITED,WS13 8RZ,836850,111193
Ministry of Defence,Ministry of Defence,11/08/2011,Research and development,Central TLB,DEFENCE SCIENCE & TECHNOLOGY LABORATORY,PO14 9HL,830519,110815.92
Ministry of Defence,Defence Science and Technology Laboratory,26/08/2011,Sub Contracted Research,Programme Office,QINETIQ LIMITED,,V - 9000135575 - 00114355,110000
Ministry of Defence,Ministry of Defence,17/08/2011,Purchase of inventory and services ,Defence Equipment & Support,AAH PHARMACEUTICALS LTD,CV2 2TX,832579,109583.56
Ministry of Defence,Ministry of Defence,15/08/2011,Fees for professional services,Land Forces,L.A. INTERNATIONAL COMPUTER  CONSULTANTS LIMITED,ST1 5UB,831779,109447.08
Ministry of Defence,Ministry of Defence,04/08/2011,Payment of utilities,Defence Infrastructure Organisation ,MABANAFT DEUTSCHLAND GMBH,,5000060700,109251.53
Ministry of Defence,Ministry of Defence,08/08/2011,Estate management,Defence Equipment & Support,DEBUT SERVICES (SOUTH WEST)LIMITED,BA1 5AB,828931,108017.29
Ministry of Defence,Ministry of Defence,03/08/2011,Fees for professional services,Central TLB,LOGICA UK LIMITED,KT22 7LP,827382,107198.44
Ministry of Defence,Ministry of Defence,17/08/2011,Fees for professional services,Central TLB,LOGICA UK LIMITED,KT22 7LP,832776,107198.44
Ministry of Defence,Ministry of Defence,25/08/2011,Design services and minor equipment purchases,Defence Equipment & Support,REPLY LIMITED,SL7 3HJ,162812,107000
Ministry of Defence,Ministry of Defence,03/08/2011,Payment of utilities,Central TLB,GB OILS LIMITED,FK5 4RB,827299,106824.97
Ministry of Defence,Ministry of Defence,30/08/2011,Fees for professional services,Air Command,M.P.I. AVIATION LTD,SG13 7DQ,837456,106731.72
Ministry of Defence,Defence Science and Technology Laboratory,26/08/2011,Professional Services,Operations,METROPOLITAN POLICE SERVICE,,V - 9000135572 - 00116008,106576.85
Ministry of Defence,Ministry of Defence,23/08/2011,Purchase of buildings and military equipment ,Defence Equipment & Support,DYTECNA ENGINEERING LIMITED,KT13 0TJ,835137,105731.21
Ministry of Defence,Ministry of Defence,17/08/2011,IT and communication services,Defence Equipment & Support,ACTICA CONSULTING LIMITED,GU2 7YF,832585,105541.87
Ministry of Defence,Ministry of Defence,04/08/2011,Fuel for military use,Air Command,ARVAL UK LTD,SN5 6PE,827673,105499.84
Ministry of Defence,Ministry of Defence,31/08/2011,Estate management,Defence Infrastructure Organisation ,TURNER FACILITIES MANAGEMENT LTD,G51 3EQ,838217,105401.05
Ministry of Defence,Ministry of Defence,25/08/2011,Estate management,Defence Infrastructure Organisation ,COMPASS SERVICES (U.K.) LIMITED,B45 9PZ,836151,105374.17
Ministry of Defence,Ministry of Defence,01/08/2011,Estate management,Defence Infrastructure Organisation ,PRIDE (SERP) LTD,GU11 2ER,826524,105303
Ministry of Defence,Ministry of Defence,26/08/2011,Food and clothing,Defence Infrastructure Organisation ,ARAMARK LTD,LS16 6QY,836612,104853.64
Ministry of Defence,Ministry of Defence,22/08/2011,Rent and rates,Defence Infrastructure Organisation ,SHROPSHIRE COUNCIL,SY2 6ND,834868,104751.46
Ministry of Defence,Ministry of Defence,16/08/2011,Food and clothing,Defence Infrastructure Organisation ,ARAMARK LTD,LS16 6QY,832078,104708.8
Ministry of Defence,Ministry of Defence,15/08/2011,Estate management,Central TLB,SODEXO LTD,M50 0AL,831967,104556.53
Ministry of Defence,Ministry of Defence,11/08/2011,"Purchase of munitions, other inventory or fuel",Defence Equipment & Support,FUCHS LUBRICANTS (UK) PLC,ST1 5HU,830587,104474.85
Ministry of Defence,Ministry of Defence,31/08/2011,Fuel for military use,Land Forces,EUROSHELL DEUTSCHLAND GMBH,,5000061854,104298.08
Ministry of Defence,Ministry of Defence,12/08/2011,Payment of utilities,Defence Infrastructure Organisation ,STADTWERKE BOEHMETAL GMBH,,5000061124,103690.16
Ministry of Defence,Ministry of Defence,12/08/2011,Fees for professional services,Land Forces,L.A. INTERNATIONAL COMPUTER  CONSULTANTS LIMITED,ST1 5UB,831213,103170
Ministry of Defence,Ministry of Defence,15/08/2011,Fees for professional services,Defence Equipment & Support,KPMG LLP,WD17 1DE,831776,102807
Ministry of Defence,Ministry of Defence,01/08/2011,Estate management,Defence Infrastructure Organisation ,LENGELING SERVICE GMBH,,5000060418,102763.86
Ministry of Defence,Ministry of Defence,11/08/2011,Design services and minor equipment purchases,Defence Equipment & Support,SOARING (OXFORD) LTD,NG23 5NG,830842,101582.87
Ministry of Defence,Ministry of Defence,01/08/2011,Purchase of plant and machinery,Navy Command,HEXAGON METROLOGY LIMITED,TF7 4PH,162184,101520
Ministry of Defence,Ministry of Defence,08/08/2011,Design services and minor equipment purchases,Defence Equipment & Support,TERADYNE LIMITED,SK3 0XG,829333,101438.98
Ministry of Defence,Ministry of Defence,04/08/2011,Payment of utilities,Defence Infrastructure Organisation ,STADTWERKE DUELMEN GMBH,,5000060728,101332.09
Ministry of Defence,Ministry of Defence,24/08/2011,Fees for professional services,Air Command,KELLOGG BROWN & ROOT LIMITED,KT22 7NL,835698,100928.24
Ministry of Defence,Ministry of Defence,11/08/2011,Research and development,Defence Equipment & Support,BRUHN NEWTECH LTD,SP4 6EB,830468,99957
Ministry of Defence,Ministry of Defence,23/08/2011,Rent and rates,Defence Infrastructure Organisation ,NORTH KESTEVEN DISTRICT COUNCIL,NG34 4GL,835320,99952.99
Ministry of Defence,Ministry of Defence,09/08/2011,"Purchase of munitions, other inventory or fuel",Defence Equipment & Support,NYCO SA,,3000005812,99933.2
Ministry of Defence,Defence Science and Technology Laboratory,31/08/2011,Sub Contracted Work,Operations,LOUGHBOROUGH UNIVERSITY,,V - 9000135640 - 00113879,99700
Ministry of Defence,Ministry of Defence,18/08/2011,Rent and rates,Defence Infrastructure Organisation ,CENTRAL BEDFORDSHIRE COUNCIL,LU6 9HE,833203,99600.85
Ministry of Defence,Defence Science and Technology Laboratory,05/08/2011,IS Support Service,Infrastructure,STERIA LIMITED,,V - 9000134961 - 00114680,99299.86
Ministry of Defence,Ministry of Defence,26/08/2011,Transport hire charges,Land Forces,BABCOCK LAND (WHITEFLEET MANAGEMENT) LIMITED,BH23 6BS,836630,99130.5
Ministry of Defence,Royal Hospital Chelsea GIA,04/08/2011,Property Management,Royal Hospital Chelsea,Norland Managed Services Ltd,,PIN118374,99128.5
Ministry of Defence,Ministry of Defence,12/08/2011,Payment of utilities,Defence Infrastructure Organisation ,GEMEINDEFREIER BEZIRK LOHHEIDE,,5000061093,99006.55
Ministry of Defence,Ministry of Defence,24/08/2011,Food and clothing,Central TLB,ISS MEDICLEAN LIMITED,GU21 5RW,835691,98800.27
Ministry of Defence,Ministry of Defence,15/08/2011,Estate management,Defence Infrastructure Organisation ,TURNER FACILITIES MANAGEMENT LTD,G51 3EQ,832014,98766.82
Ministry of Defence,Ministry of Defence,17/08/2011,Payment of utilities,Defence Infrastructure Organisation ,SSE ENERGY SUPPLY LIMITED,PH1 3AQ,832983,98751.21
Ministry of Defence,Ministry of Defence,17/08/2011,Purchase of buildings and military equipment ,Defence Equipment & Support,QINETIQ LIMITED,PO12 2AG,832930,98386
Ministry of Defence,Ministry of Defence,19/08/2011,Rent and rates,Defence Infrastructure Organisation ,HAMBLETON DISTRICT COUNCIL,DL6 2UU,833946,98317.7
Ministry of Defence,Ministry of Defence,01/08/2011,"Purchase of munitions, other inventory or fuel",Defence Equipment & Support,BP OIL INTERNATIONAL LIMITED,GL17 0WH,826210,97986.07
Ministry of Defence,Ministry of Defence,15/08/2011,Food and clothing,Defence Equipment & Support,ISS MEDICLEAN LIMITED,GU21 5RW,831764,97201.44
Ministry of Defence,Royal Hospital Chelsea GIA,04/08/2011,Property Management,Royal Hospital Chelsea,Norland Managed Services Ltd,,PIN118375,96886.27
Ministry of Defence,Ministry of Defence,19/08/2011,Rent and rates,Defence Infrastructure Organisation ,HART DISTRICT COUNCIL,GU51 4AE,833950,96522.37
Ministry of Defence,Ministry of Defence,26/08/2011,Payment of utilities,Air Command,SSE ENERGY SUPPLY LIMITED,PH1 3AQ,837078,96456.32
Ministry of Defence,Ministry of Defence,18/08/2011,Food and clothing,Defence Infrastructure Organisation ,ARAMARK LTD,LS16 6QY,833085,96435.91
Ministry of Defence,Ministry of Defence,12/08/2011,Fees for professional services,Land Forces,MARKET & OPINION RESEARCH INTERNATIONAL LTD,SE1 1FY,831237,96356.5
Ministry of Defence,Ministry of Defence,24/08/2011,Medical treatment & stores and welfare services,Central TLB,UNIVERSITY HOSPITAL BIRMINGHAM NHS FOUNDATION TRUST,B29 6JS,835983,96081.91
Ministry of Defence,Ministry of Defence,09/08/2011,Externally delivered education and training,Defence Infrastructure Organisation ,NUFFIELD HEALTH,KT3 4QF,829737,95554.26
Ministry of Defence,Ministry of Defence,22/08/2011,Estate management,Defence Infrastructure Organisation ,TURNER FACILITIES MANAGEMENT LTD,G51 3EQ,834958,95264.13
Ministry of Defence,Defence Science and Technology Laboratory,26/08/2011,Sub Contracted Research,Programme Office,QINETIQ LIMITED,,V - 9000135575 - 00115374,95139
Ministry of Defence,Ministry of Defence,19/08/2011,Estate management,Defence Infrastructure Organisation ,SODEXO LTD,M50 0AL,834173,95110.77
Ministry of Defence,Ministry of Defence,12/08/2011,Externally delivered education and training,Navy Command,VT FLAGSHIP LTD,PO6 4PR,831528,94696
Ministry of Defence,Ministry of Defence,08/08/2011,Estate management,Defence Infrastructure Organisation ,ARAMARK LTD,LS16 6QY,828824,94236.02
Ministry of Defence,Ministry of Defence,03/08/2011,Purchase of inventory and services ,Defence Equipment & Support,TEM UK LIMITED,TS25 2DL,827576,93610.8
Ministry of Defence,Ministry of Defence,26/08/2011,Preparation of land & buildings for disposal,Defence Infrastructure Organisation ,GRONTMIJ LIMITED,LS7 4DN,836784,93500.43
Ministry of Defence,Ministry of Defence,22/08/2011,"Transporation of personnel, freight and travel expenses",Land Forces,DSV AIR & SEA LIMITED,M22 4NY,834452,93152.35
Ministry of Defence,Ministry of Defence,04/08/2011,Purchase of buildings and military equipment ,Defence Infrastructure Organisation ,DEBUT SERVICES LIMITED,B75 7RL,827782,92896
Ministry of Defence,Ministry of Defence,31/03/2011,International contributions,Central TLB,PAE,,71,92592.46
Ministry of Defence,Ministry of Defence,12/08/2011,Payment of utilities,Defence Infrastructure Organisation ,GEMEINDEFREIER BEZIRK OSTERHEIDE,,5000061094,92501.18
Ministry of Defence,Ministry of Defence,02/08/2011,Food and clothing,Defence Equipment & Support,ARAMARK LTD,LS16 6QY,826703,92171.93
Ministry of Defence,Ministry of Defence,22/08/2011,"Transporation of personnel, freight and travel expenses",Defence Equipment & Support,DHL GLOBAL FORWARDING (UK)  LIMITED,TW18 4BP,834434,91799.5
Ministry of Defence,United Kingdom Hydrographic Office,11/08/2011,"Computers, peripherals, software",ICT Delivery Business Group,Insight Direct UK Ltd,,2000055449,91663.16
Ministry of Defence,Ministry of Defence,19/08/2011,Design services and minor equipment purchases,Air Command,SERCO LIMITED,RG27 9UY,834170,91546
Ministry of Defence,Ministry of Defence,18/08/2011,"Transporation of personnel, freight and travel expenses",Defence Equipment & Support,DHL GLOBAL FORWARDING (UK)  LIMITED,TW18 4BP,833251,91012.78
Ministry of Defence,Ministry of Defence,18/08/2011,Estate management,Defence Equipment & Support,SODEXO LTD,M50 0AL,833605,90861.69
Ministry of Defence,Ministry of Defence,22/08/2011,Rent and rates,Defence Infrastructure Organisation ,SOUTH OXFORDSHIRE DISTRICT  COUNCIL,OX10 8HQ,834886,90822.6
Ministry of Defence,Ministry of Defence,09/08/2011,Design services and minor equipment purchases,Defence Equipment & Support,DESMI FHS LTD,ST5 7UB,829532,90558
Ministry of Defence,Ministry of Defence,22/08/2011,Fees for professional services,Air Command,MOUCHEL MANAGEMENT CONSULTING LTD,GU21 6QX,834620,90504
Ministry of Defence,Defence Support Group,19/08/2011,Works Fees,Large Aircraft,Carillion Enterprise Ltd,,10134365,90203.42
Ministry of Defence,Ministry of Defence,18/08/2011,Estate management,Central TLB,BIRMINGHAM CITY UNIVERSITY,B42 2SU,833142,90092
Ministry of Defence,Defence Science and Technology Laboratory,05/08/2011,Sub Contracted Research,Programme Office,QINETIQ LIMITED,,V - 9000134988 - 00112886,90000
Ministry of Defence,Ministry of Defence,18/08/2011,Estate management,Defence Infrastructure Organisation ,SODEXO LTD,M50 0AL,833605,89908.45
Ministry of Defence,Ministry of Defence,22/08/2011,Rent and rates,Defence Infrastructure Organisation ,PORTSMOUTH CITY COUNCIL,PO1 2BE,834784,89681.18
Ministry of Defence,Ministry of Defence,17/08/2011,Estate management,Air Command,AVENANCE PLC,SK11 6ET,832611,89600.85
Ministry of Defence,Ministry of Defence,04/08/2011,Research and development,Defence Equipment & Support,THE FIRE PROTECTION ASSOCIATION,GL56 0RH,828214,89585
Ministry of Defence,Ministry of Defence,08/08/2011,"Purchase of munitions, other inventory or fuel",Command Joint Operations,UNIVAR LIMITED,BD1 5BD,829368,89025.77
Ministry of Defence,Ministry of Defence,22/08/2011,"Transporation of personnel, freight and travel expenses",Defence Equipment & Support,DSV AIR & SEA LIMITED,M22 4NY,834452,88948.74
Ministry of Defence,Ministry of Defence,22/08/2011,Design services and minor equipment purchases,Defence Equipment & Support,IBM UNITED KINGDOM LIMITED,PO6 3AE,834541,88716
Ministry of Defence,Ministry of Defence,03/08/2011,Transport hire charges,Defence Equipment & Support,BABCOCK LAND (WHITEFLEET MANAGEMENT) LIMITED,BH23 6BS,827137,88683.74
Ministry of Defence,Ministry of Defence,19/08/2011,Rent and rates,Defence Infrastructure Organisation ,CITY OF EDINBURGH COUNCIL,EH1 1UF,833833,88571.73
Ministry of Defence,Ministry of Defence,26/08/2011,Payment of utilities,Defence Equipment & Support,SSE ENERGY SUPPLY LIMITED,PH1 3AQ,837078,88555.37
Ministry of Defence,Ministry of Defence,24/08/2011,Grants to NDPBs,Central TLB,THE NATIONAL MEMORIAL ARBORETUM COMPANY LIMITED,DE13 7AR,835953,88205
Ministry of Defence,Ministry of Defence,16/08/2011,Estate management,Central TLB,ARAMARK LTD,LS16 6QY,832078,88081.71
Ministry of Defence,Defence Science and Technology Laboratory,05/08/2011,Sub Contracted Research,Programme Office,QINETIQ LIMITED,,V - 9000134988 - 00114678,88000
Ministry of Defence,Ministry of Defence,15/08/2011,Payment of utilities,Defence Infrastructure Organisation ,SSE ENERGY SUPPLY LIMITED,PH1 3AQ,831979,87935.22
Ministry of Defence,Council of Reserve Forces and Cadets Associations,25/08/2011,Rent and rates,Infrastructure,SEFTON METROPOLITAN BOROUGH COUNCIL,,3952,87685
Ministry of Defence,Ministry of Defence,16/08/2011,"Transporation of personnel, freight and travel expenses",Central TLB,RAIL SETTLEMENT PLAN LIMITED,SG1 2YN,832465,87636.5
Ministry of Defence,Ministry of Defence,02/08/2011,Purchase of inventory and services ,Defence Equipment & Support,AAH PHARMACEUTICALS LTD,CV2 2TX,826679,87503.78
Ministry of Defence,Ministry of Defence,17/08/2011,IT and communication services,Defence Equipment & Support,PROMETHEUS MEDICAL LIM,,GPC 001,87279.84
Ministry of Defence,Ministry of Defence,03/08/2011,Fees for professional services,Land Forces,LGC LTD,TW11 0LY,827372,86994.99
Ministry of Defence,Ministry of Defence,18/08/2011,Payment of utilities,Defence Infrastructure Organisation ,TOTAL GAS & POWER LIMITED,RH1 1RX,833661,86558.51
Ministry of Defence,Ministry of Defence,04/08/2011,Estate management,Defence Infrastructure Organisation ,ZWECKVERBAND ABFALLWIRTSCHAFT CELLE,,5000060739,86546.91
Ministry of Defence,Ministry of Defence,23/08/2011,Development costs for military equipment,Defence Equipment & Support,MBDA UK LIMITED,SG1 2DA,835241,86295.6
Ministry of Defence,Ministry of Defence,11/08/2011,Rent and rates,Defence Infrastructure Organisation ,TEST VALLEY BOROUGH COUNCIL,SP10 3AJ,830880,86113.63
Ministry of Defence,Ministry of Defence,03/08/2011,Externally delivered education and training,Land Forces,AUSTRIA GOVERNMENT,,5000060510,85629.73
Ministry of Defence,Ministry of Defence,17/08/2011,Estate management,Defence Infrastructure Organisation ,TURNER FACILITIES MANAGEMENT LTD,G51 3EQ,833014,85423.17
Ministry of Defence,Ministry of Defence,18/08/2011,Fees for professional services,Central TLB,DEFENCE SCIENCE & TECHNOLOGY LABORATORY,PO14 9HL,833243,85316.49
Ministry of Defence,Ministry of Defence,12/08/2011,Food and clothing,Defence Infrastructure Organisation ,AVENANCE PLC,SK11 6ET,831005,85085.97
Ministry of Defence,Defence Science and Technology Laboratory,26/08/2011,Materials & Equipment,Operations,SELEX GALILEO LIMITED,,V - 9000135577 - 00116262,85000
Ministry of Defence,Ministry of Defence,31/08/2011,Purchase of buildings and military equipment ,Defence Infrastructure Organisation ,TURNER FACILITIES MANAGEMENT LTD,G51 3EQ,838217,84555.43
Ministry of Defence,Defence Science and Technology Laboratory,19/08/2011,Sub Contracted Research,Programme Office,ROLLS ROYCE PLC,,V - 9000135320 - 00116123,84304
Ministry of Defence,Ministry of Defence,17/08/2011,Fuel for military use,Air Command,ARVAL UK LTD,SN5 6PE,832605,84054.49
Ministry of Defence,Ministry of Defence,17/08/2011,IT and communication services,Navy Command,BLUE ARROW,,GPC 002,83998.13
Ministry of Defence,Ministry of Defence,24/08/2011,Payment of utilities,Defence Infrastructure Organisation ,NVV AG,,5000061582,83938
Ministry of Defence,Ministry of Defence,05/08/2011,Estate management,Defence Infrastructure Organisation ,BEZIRKSREGIERUNG DUESSELDORF,,5000060747,83285.73
Ministry of Defence,Ministry of Defence,16/08/2011,"Transporation of personnel, freight and travel expenses",Air Command,DHL GLOBAL FORWARDING (UK)  LIMITED,TW18 4BP,832186,83256.77
Ministry of Defence,Ministry of Defence,05/08/2011,Purchase of plant and machinery,Defence Equipment & Support,G3 SYSTEMS LIMITED,DT5 1PY,828458,82955.56
Ministry of Defence,Ministry of Defence,03/08/2011,Design services and minor equipment purchases,Defence Equipment & Support,BABCOCK INTEGRATED TECHNOLOGY  LIMITED,BS3 2HQ,827135,82790
Ministry of Defence,Ministry of Defence,01/08/2011,Medical treatment & stores and welfare services,Land Forces,PROFESSOR DR. MED. BERTIN DUFAUX & PARTNERS T/AS LABOR KRONE,,5000060438,82595.88
Ministry of Defence,Ministry of Defence,19/08/2011,Purchase of buildings and military equipment ,Defence Infrastructure Organisation ,MODERN HOUSING SOLUTIONS (PRIME)LIMITED,PE28 4QG,834023,82304.6
Ministry of Defence,Ministry of Defence,11/08/2011,Design services and minor equipment purchases,Defence Equipment & Support,QINETIQ LIMITED,PO12 2AG,830790,82082
Ministry of Defence,Ministry of Defence,25/08/2011,"Transporation of personnel, freight and travel expenses",Central TLB,DEFENCE MANAGEMENT (WATCHFIELD) LIMITED,SN6 8TS,836173,81770.27
Ministry of Defence,Ministry of Defence,18/08/2011,Purchase of inventory and services ,Land Forces,AAH PHARMACEUTICALS LTD,CV2 2TX,833048,81543.52
Ministry of Defence,Ministry of Defence,24/08/2011,Estate management,Air Command,CARILLIONENTERPRISE LIMITED,B75 7RL,835566,81391.46
Ministry of Defence,Ministry of Defence,04/08/2011,Fuel for military use,Air Command,BP INTERNATIONAL LIMITED,HP2 4UL,2000012364,81176.22
Ministry of Defence,Ministry of Defence,22/08/2011,"Adminstration, claims, compensation and awards",Central TLB,FOREIGN & COMMONWEALTH OFFICE,MK10 1PX,2.00E+11,81064.73
Ministry of Defence,Defence Science and Technology Laboratory,19/08/2011,Sub Contracted Research,Programme Office,QINETIQ LIMITED,,V - 9000135400 - 00112861,81046
Ministry of Defence,Ministry of Defence,18/08/2011,Purchase of buildings and military equipment ,Defence Infrastructure Organisation ,TURNER FACILITIES MANAGEMENT LTD,G51 3EQ,833670,80003.86
Ministry of Defence,Ministry of Defence,05/08/2011,Payment of utilities,Defence Equipment & Support,SSE ENERGY SUPPLY LIMITED,PH1 3AQ,828716,79868.31
Ministry of Defence,Ministry of Defence,22/08/2011,Estate management,Defence Equipment & Support,DEBUT SERVICES (SOUTH WEST)LIMITED,BA1 5AB,834424,79608.37
Ministry of Defence,Ministry of Defence,03/08/2011,"Transporation of personnel, freight and travel expenses",Defence Equipment & Support,DHL GLOBAL FORWARDING (UK)  LIMITED,TW18 4BP,827245,79146.65
Ministry of Defence,Defence Science and Technology Laboratory,12/08/2011,Sub Contracted Work,Operations,CRANFIELD UNIVERSITY,,V - 9000135126 - 00105743,79100
Ministry of Defence,Defence Science and Technology Laboratory,31/08/2011,Sub Contracted Work,Operations,QINETIQ LIMITED,,V - 9000135655 - 00114822,78988
Ministry of Defence,Ministry of Defence,31/08/2011,Fuel for military use,Air Command,ARVAL UK LTD,SN5 6PE,837832,78538.52
Ministry of Defence,Ministry of Defence,09/08/2011,Payment of utilities,Defence Infrastructure Organisation ,STADTWERKE HAMELN,,5000060948,78265.49
Ministry of Defence,Defence Science and Technology Laboratory,26/08/2011,Sub Contracted Research,Programme Office,QINETIQ LIMITED,,V - 9000135575 - 00113729,78039
Ministry of Defence,Ministry of Defence,05/08/2011,IT and communication services,Defence Equipment & Support,L.A. INTERNATIONAL COMPUTER  CONSULTANTS LIMITED,ST1 5UB,828523,77936.71
Ministry of Defence,Defence Science and Technology Laboratory,31/08/2011,Sub Contracted Research,Programme Office,IBM UNITED KINGDOM LIMITED,,V - 9000135625 - 00115053,77853
Ministry of Defence,Ministry of Defence,19/08/2011,Rent and rates,Defence Infrastructure Organisation ,HARROGATE BOROUGH COUNCIL,HG1 2SG,833948,77659.68
Ministry of Defence,Ministry of Defence,22/08/2011,Rent and rates,Defence Infrastructure Organisation ,RUTLAND COUNTY COUNCIL  DISTRICT COUNCIL,LE15 6HP,834835,77169.16
Ministry of Defence,Ministry of Defence,03/08/2011,Payment of utilities,Defence Infrastructure Organisation ,ELECTRICITY AUTHORITY OF CYPRUS,BFPO 53,4000005512,77146.7
Ministry of Defence,Ministry of Defence,18/08/2011,IT and communication services,Defence Equipment & Support,SERCO LIMITED,RG27 9UY,833593,76978.55
Ministry of Defence,Ministry of Defence,25/08/2011,Fees for professional services,Central TLB,GIFFORD OWEN LTD,BA11 2WH,836244,76570
Ministry of Defence,Ministry of Defence,15/08/2011,Payment of utilities,Air Command,TOTAL GAS & POWER LIMITED,RH1 1RX,832013,76525.06
Ministry of Defence,Defence Support Group,26/08/2011,Payroll Processing Costs,Corporate,EQUINITI ICS LTD,,10134441,76250
Ministry of Defence,Ministry of Defence,25/08/2011,Research and development,Defence Equipment & Support,THE FIRE PROTECTION ASSOCIATION,GL56 0RH,836522,76071
Ministry of Defence,Ministry of Defence,26/08/2011,Estate management,Defence Infrastructure Organisation ,ARAMARK LTD,LS16 6QY,836612,75533.54
Ministry of Defence,Ministry of Defence,05/08/2011,Payment of utilities,Defence Equipment & Support,HENTY OIL LTD,L3 0AT,828489,75480.39
Ministry of Defence,Ministry of Defence,25/08/2011,IT and communication services,Defence Equipment & Support,L.A. INTERNATIONAL COMPUTER  CONSULTANTS LIMITED,ST1 5UB,836310,75382.03
Ministry of Defence,Ministry of Defence,22/08/2011,Fees for professional services,Central TLB,HP ENTERPRISE SERVICES DEFENCE & SECURITY UK LIMITED,RG27 9XA,834537,75290
Ministry of Defence,Ministry of Defence,24/08/2011,Estate management,Defence Infrastructure Organisation ,GEM MBH,,5000061559,75221.24
Ministry of Defence,Ministry of Defence,31/08/2011,Transport hire charges,Land Forces,BABCOCK LAND (WHITEFLEET MANAGEMENT) LIMITED,BH23 6BS,837844,75071.7
Ministry of Defence,Ministry of Defence,24/08/2011,Rent and rates,Land Forces,WELD ESTATE A FUND,BH20 5QS,836000,74988.32
Ministry of Defence,Ministry of Defence,11/08/2011,Rent and rates,Defence Infrastructure Organisation ,SURREY HEATH BOROUGH COUNCIL,GU15 3HD,830864,74867.36
Ministry of Defence,Ministry of Defence,01/08/2011,Purchase of information and communications technology,Command Joint Operations,COMROD AS,N 4120,3000005784,74800
Ministry of Defence,Ministry of Defence,25/08/2011,Fees for professional services,Land Forces,CENTRAL OFFICE OF INFORMATION,SE1 7DU,836130,74507.99
Ministry of Defence,Ministry of Defence,19/08/2011,Rent and rates,Defence Infrastructure Organisation ,FIFE COUNCIL,KY7 5LT,833907,74159.48
Ministry of Defence,Ministry of Defence,03/08/2011,Purchase of inventory and services ,Land Forces,CARWOOD MOTOR UNITS LTD,CV3 2RQ,827195,74068.1
Ministry of Defence,Ministry of Defence,25/08/2011,Medical treatment & stores and welfare services,Central TLB,DR MARTIN ERRINGTON T/A ERRINGTON ASSOCIATES,EH13 0DT,836203,73255
Ministry of Defence,Defence Science and Technology Laboratory,12/08/2011,IT Software,Operations,PHOENIX SOFTWARE LIMITED,,V - 9000135192 - 00115156,73172.44
Ministry of Defence,Ministry of Defence,03/08/2011,Medical treatment & stores and welfare services,Central TLB,CHAS.A.BLATCHFORD & SONS LIMITED,RG22 4AH,827205,73109.18
Ministry of Defence,Ministry of Defence,24/08/2011,Medical treatment & stores and welfare services,Central TLB,KINGS COLLEGE LONDON,SE1 8WA,835704,73056
Ministry of Defence,Ministry of Defence,09/08/2011,Estate management,Air Command,ARAMARK LTD,LS16 6QY,829440,73020.37
Ministry of Defence,Ministry of Defence,15/08/2011,Transport hire charges,Defence Equipment & Support,BABCOCK LAND (WHITEFLEET MANAGEMENT) LIMITED,BH23 6BS,831589,72747.01
Ministry of Defence,Ministry of Defence,09/08/2011,Purchase of buildings and military equipment ,Defence Equipment & Support,DYTECNA ENGINEERING LIMITED,KT13 0TJ,829552,72720.46
Ministry of Defence,Ministry of Defence,09/08/2011,Estate management,Defence Infrastructure Organisation ,OBERFINANZDIREKTION NIEDERSACHSEN,,5000060940,72641.53
Ministry of Defence,Ministry of Defence,26/08/2011,Design services and minor equipment purchases,Defence Equipment & Support,MEGGITT AEROSPACE LIMITED,CV6 4AA,836866,72618
Ministry of Defence,Ministry of Defence,17/08/2011,IT and communication services,Navy Command,QINETIQ LTD,,GPC 003,72612.46
Ministry of Defence,United Kingdom Hydrographic Office,22/08/2011,Computer maintenance & hire,ICT Delivery Business Group,Maritime Information Systems AS,,1500012555,72500
Ministry of Defence,Ministry of Defence,18/08/2011,Rent and rates,Defence Infrastructure Organisation ,ARGYLL & BUTE COUNCIL,PA28 JU,833086,72493.11
Ministry of Defence,Ministry of Defence,10/08/2011,"Transporation of personnel, freight and travel expenses",Defence Equipment & Support,CARTUS LTD,SN5 8RS,830006,72395.69
Ministry of Defence,Ministry of Defence,11/08/2011,"Purchase of munitions, other inventory or fuel",Air Command,BP INTERNATIONAL LIMITED,HP2 4UL,2000012426,72333.79
Ministry of Defence,Ministry of Defence,01/08/2011,"Transporation of personnel, freight and travel expenses",Defence Equipment & Support,DHL GLOBAL FORWARDING (UK)  LIMITED,TW18 4BP,826288,72239.71
Ministry of Defence,Ministry of Defence,22/08/2011,Fuel for military use,Land Forces,EXXONMOBIL PETROLEUM & CHEMICAL BVBA,KT22 8UX,2000012524,72235.15
Ministry of Defence,Ministry of Defence,24/08/2011,Payment of utilities,Air Command,SSE ENERGY SUPPLY LIMITED,PH1 3AQ,835917,72049.35
Ministry of Defence,Ministry of Defence,09/08/2011,Payment of utilities,Defence Infrastructure Organisation ,DEPARTMENT FOR REGIONAL DEVELOPMENT,BT1 9DJ,33057,72040.49
Ministry of Defence,Ministry of Defence,16/08/2011,Estate management,Defence Infrastructure Organisation ,QINETIQ LIMITED,PO12 2AG,832463,71979
Ministry of Defence,Defence Science and Technology Laboratory,09/08/2011,Sub Contracted Work,Operations,ROKE MANOR RESEARCH LIMITED,,V - 9000135036 - 00113053,71740
Ministry of Defence,Ministry of Defence,01/08/2011,Estate management,Defence Infrastructure Organisation ,PAUL PICHT,,5000060434,71584.7
Ministry of Defence,Ministry of Defence,23/08/2011,Payment of utilities,Air Command,SSE ENERGY SUPPLY LIMITED,PH1 3AQ,835423,71038.19
Ministry of Defence,Ministry of Defence,10/08/2011,Payment of utilities,Defence Infrastructure Organisation ,ANGLIAN WATER SERVICES LIMITED,LN5 7WR,829927,70965.35
Ministry of Defence,Ministry of Defence,08/08/2011,Purchase of buildings and military equipment ,Defence Infrastructure Organisation ,BABCOCK DYNCORP LIMITED,PE28 2EA,828841,70958.6
Ministry of Defence,Defence Support Group,12/08/2011,Works Fees,Business Stream 1,BABCOCK SUPPORT SERVICES LTD,,10133479,70794.22
Ministry of Defence,Ministry of Defence,04/08/2011,Fuel for military use,Defence Equipment & Support,ARVAL UK LTD,SN5 6PE,827673,70540.3
Ministry of Defence,Ministry of Defence,16/08/2011,Design services and minor equipment purchases,Defence Equipment & Support,DRAEGER SAFETY U K LTD,NE24 4RG,832205,70325.22
Ministry of Defence,Ministry of Defence,26/08/2011,Design services and minor equipment purchases,Defence Equipment & Support,MITCHELL DIESEL LIMITED,NG17 2JZ,836870,70190.97
Ministry of Defence,Ministry of Defence,18/08/2011,Design services and minor equipment purchases,Land Forces,BABCOCK LAND (WHITEFLEET MANAGEMENT) LIMITED,BH23 6BS,833114,70129.48
Ministry of Defence,Ministry of Defence,11/08/2011,Design services and minor equipment purchases,Air Command,COMPASS GROUP UK AND IRELAND LIMITED,B45 9PZ,830503,70068.14
Ministry of Defence,Ministry of Defence,05/08/2011,General services and support,Defence Equipment & Support,MARSHALL OF CAMBRIDGE AEROSPACE LIMITED,CB5 8RX,828548,70010.23
Ministry of Defence,Ministry of Defence,19/08/2011,Development costs for military equipment,Defence Equipment & Support,QINETIQ LIMITED,PO12 2AG,834123,70000
Ministry of Defence,Ministry of Defence,31/08/2011,Research and development,Defence Equipment & Support,QINETIQ LIMITED,PO12 2AG,838137,70000
Ministry of Defence,Defence Science and Technology Laboratory,26/08/2011,Consumable Materials,Operations,GILDEN PHOTONICS LIMITED,,V - 9000135564 - 00115340,69965
Ministry of Defence,Ministry of Defence,16/08/2011,Design services and minor equipment purchases,Defence Equipment & Support,GE AVIATION SYSTEMS LIMITED,GL52 8SF,832241,69795.25
Ministry of Defence,Defence Science and Technology Laboratory,16/08/2011,Audirors Fees - External,Corporate,NATIONAL AUDIT OFFICE,,V - 9000135241 - 00115372,69500
Ministry of Defence,Ministry of Defence,24/08/2011,Fees for professional services,Land Forces,FRONTIER MEDICAL SERVICES  LIMITED,GL17 0DD,835645,69490
Ministry of Defence,Ministry of Defence,26/08/2011,"Purchase of munitions, other inventory or fuel",Defence Equipment & Support,WINCANTON GROUP LIMITED,SN14 0WT,837151,69354.65
Ministry of Defence,Ministry of Defence,15/08/2011,Externally delivered education and training,Land Forces,FREDRICK SAMUEL JESSEL,,3000005831,68957.39
Ministry of Defence,Defence Science and Technology Laboratory,19/08/2011,Sub Contracted Research,Programme Office,COSWORTH ELECTRONICS LIMITED,,V - 9000135389 - 00115466,68698.74
Ministry of Defence,Ministry of Defence,08/08/2011,Estate management,Air Command,COMPASS SERVICES (U.K.) LIMITED,B45 9PZ,828915,68568.53
Ministry of Defence,United Kingdom Hydrographic Office,09/08/2011,Raw Material/ Finished Goods,Print & Supply,Elliott Baxter & Company ltd,,2000055386,68528.88
Ministry of Defence,Ministry of Defence,16/08/2011,Fuel for military use,Air Command,WORLD FUEL SERVICES EUROPE  LTD.,SW1E 5BH,2000012484,68246.56
Ministry of Defence,United Kingdom Hydrographic Office,11/08/2011,Project External Costs,IMT Business Group,HPUG (UK) ltd,,2000055434,67808.56
Ministry of Defence,Ministry of Defence,19/08/2011,Transport hire charges,Defence Equipment & Support,BABCOCK LAND (WHITEFLEET MANAGEMENT) LIMITED,BH23 6BS,833763,67707.86
Ministry of Defence,Ministry of Defence,10/08/2011,Design services and minor equipment purchases,Defence Equipment & Support,DEFENCE SCIENCE & TECHNOLOGY LABORATORY,PO14 9HL,830049,67601.79
Ministry of Defence,Ministry of Defence,12/08/2011,Payment of utilities,Central TLB,SSE ENERGY SUPPLY LIMITED,PH1 3AQ,831461,67426.4
Ministry of Defence,Ministry of Defence,09/08/2011,Design services and minor equipment purchases,Defence Equipment & Support,CARWOOD MOTOR UNITS LTD,CV3 2RQ,829502,67225.02
Ministry of Defence,Ministry of Defence,08/08/2011,Externally delivered education and training,Land Forces,WBL SERVICES LIMITED,OX2 9HA,829386,67008.33
Ministry of Defence,Ministry of Defence,22/08/2011,Estate management,Defence Infrastructure Organisation ,WREXHAM COUNTY BOROUGH COUNCIL,LL11 1WS,834987,67000
Ministry of Defence,Defence Science and Technology Laboratory,26/08/2011,Sub Contracted Work,Programme Office,NORTHROP GRUMMAN MISSION SYSTEMS EUROPE,,V - 9000135500 - 00115151,66993.39
Ministry of Defence,Ministry of Defence,15/08/2011,Research and development,Defence Equipment & Support,DEFENCE SCIENCE & TECHNOLOGY LABORATORY,PO14 9HL,831678,66848.41
Ministry of Defence,Ministry of Defence,09/08/2011,Purchase of plant and machinery,Defence Equipment & Support,G3 SYSTEMS LIMITED,DT5 1PY,829588,66557.88
Ministry of Defence,Defence Science and Technology Laboratory,19/08/2011,Sub Contracted Work,Operations,UNIVERSITY OF SOUTHAMPTON,,V - 9000135401 - 00114409,66476.67
Ministry of Defence,Ministry of Defence,23/08/2011,Rent and rates,Defence Infrastructure Organisation ,NORTH DORSET DISTRICT COUNCIL,DT11 7LL,835319,66235.76
Ministry of Defence,Ministry of Defence,09/08/2011,Estate management,Defence Equipment & Support,DEBUT SERVICES (SOUTH WEST)LIMITED,BA1 5AB,829528,66233.85
Ministry of Defence,Ministry of Defence,12/08/2011,Design services and minor equipment purchases,Defence Equipment & Support,BAE SYSTEMS (OPERATIONS) LIMITED,ME1 2XX,831022,66226
Ministry of Defence,Ministry of Defence,15/08/2011,Food and clothing,Land Forces,BRISTOL MANAGED SERVICES LTD,BS16 5LL,831618,66037.74
Ministry of Defence,Ministry of Defence,09/08/2011,"Transporation of personnel, freight and travel expenses",Defence Equipment & Support,DHL GLOBAL FORWARDING (UK)  LIMITED,TW18 4BP,829534,66023.51
Ministry of Defence,Defence Science and Technology Laboratory,26/08/2011,Professional Services,Operations,SELEX GALILEO LIMITED,,V - 9000135577 - 00116238,65902.45
Ministry of Defence,Ministry of Defence,26/08/2011,Payment of utilities,Air Command,GB OILS LIMITED,FK5 4RB,836771,65833.54
Ministry of Defence,Ministry of Defence,03/08/2011,Fees for professional services,Air Command,DEFENCE SCIENCE & TECHNOLOGY LABORATORY,PO14 9HL,827238,65771.01
Ministry of Defence,Ministry of Defence,22/08/2011,Transport hire charges,Land Forces,RAILION DEUTSCHLAND AG,,5000061450,65769.92
Ministry of Defence,Ministry of Defence,08/08/2011,"Purchase of munitions, other inventory or fuel",Defence Equipment & Support,UNIVAR LIMITED,BD1 5BD,829368,65753.22
Ministry of Defence,Ministry of Defence,03/08/2011,Transport hire charges,Air Command,BABCOCK LAND (WHITEFLEET MANAGEMENT) LIMITED,BH23 6BS,827137,65674.35
Ministry of Defence,Ministry of Defence,23/08/2011,Rent and rates,Defence Infrastructure Organisation ,BOROUGH COUNCIL OF KINGS LYNN & WEST NORFOLK,PE30 1PX,835071,65651.16
Ministry of Defence,Ministry of Defence,16/08/2011,Fees for professional services,Defence Infrastructure Organisation ,SECURITAS SECURITY PERSONNEL LIMITED,NN8 6GR,832491,65626.98
Ministry of Defence,Defence Science and Technology Laboratory,12/08/2011,Sub Contracted Work,Operations,CRANFIELD UNIVERSITY,,V - 9000135126 - 00114644,65600
Ministry of Defence,Ministry of Defence,16/08/2011,Food and clothing,Defence Infrastructure Organisation ,AVENANCE PLC,SK11 6ET,832081,65527.58
Ministry of Defence,Ministry of Defence,10/08/2011,Research and development,Defence Equipment & Support,DEFENCE SCIENCE & TECHNOLOGY LABORATORY,PO14 9HL,830049,65453.74
Ministry of Defence,Ministry of Defence,02/08/2011,Payment of utilities,Land Forces,SSE ENERGY SUPPLY LIMITED,PH1 3AQ,827030,65417.98
Ministry of Defence,Ministry of Defence,19/08/2011,Rent and rates,Defence Infrastructure Organisation ,GUILDFORD BOROUGH COUNCIL,GU2 4BB,833942,65273.23
Ministry of Defence,Defence Science and Technology Laboratory,31/08/2011,Sub Contracted Research,Programme Office,UNIVERSITY OF BIRMINGHAM,,V - 9000135644 - 00114084,65175.37
Ministry of Defence,Ministry of Defence,01/08/2011,"Transporation of personnel, freight and travel expenses",Land Forces,HOEBER-REISEN KG,,5000060397,65093.74
Ministry of Defence,United Kingdom Hydrographic Office,23/08/2011,Purchased Services  Building Product Capability,Infrastructure Programme,Atos IT Services UK Limited,,2000055581,65013
Ministry of Defence,Ministry of Defence,19/08/2011,Purchase of buildings and military equipment ,Defence Equipment & Support,BLAKLEY ELECTRICS LTD,DA1 4GA,833785,64949.3
Ministry of Defence,Ministry of Defence,23/08/2011,Estate management,Defence Infrastructure Organisation ,TURNER FACILITIES MANAGEMENT LTD,G51 3EQ,835453,64932.18
Ministry of Defence,Ministry of Defence,01/08/2011,Fuel for military use,Air Command,EXXONMOBIL PETROLEUM & CHEMICAL BVBA,KT22 8UX,2000012325,64902.79
Ministry of Defence,Defence Science and Technology Laboratory,12/08/2011,IT Hardware,Operations,EDGEWATER COMPUTER SYSTEMS LIMITED,,V - 0000001739 - 00115314,64616
Ministry of Defence,Ministry of Defence,30/08/2011,Purchase of buildings and military equipment ,Defence Equipment & Support,DEVONPORT ROYAL DOCKYARD LIMITED,PL1 4SG,837308,64580
Ministry of Defence,Ministry of Defence,19/08/2011,Rent and rates,Defence Infrastructure Organisation ,CORNWALL COUNCIL,PL27 6TW,833842,64578.39
Ministry of Defence,Ministry of Defence,15/08/2011,Transport hire charges,Air Command,BABCOCK LAND (WHITEFLEET MANAGEMENT) LIMITED,BH23 6BS,831589,64544.82
Ministry of Defence,Defence Science and Technology Laboratory,26/08/2011,Sub Contracted Research,Programme Office,QINETIQ LIMITED,,V - 9000135575 - 00114817,64500
Ministry of Defence,Ministry of Defence,12/08/2011,Payment of utilities,Defence Infrastructure Organisation ,TOTAL GAS & POWER LIMITED,RH1 1RX,831496,64483.62
Ministry of Defence,Ministry of Defence,15/08/2011,Purchase of buildings and military equipment ,Air Command,VT FLAGSHIP LTD,PO6 4PR,832037,64380.49
Ministry of Defence,Ministry of Defence,18/08/2011,Rent and rates,Defence Infrastructure Organisation ,AYLESBURY VALE DISTRICT COUNCIL,HP20 2TW,833106,63905.22
Ministry of Defence,Ministry of Defence,01/08/2011,Design services and minor equipment purchases,Air Command,SERCO LIMITED,RG27 9UY,826576,63717.88
Ministry of Defence,Ministry of Defence,17/08/2011,Medical treatment & stores and welfare services,Defence Equipment & Support,LEVEL PEAKS ASSOCIATES,,GPC 004,63594
Ministry of Defence,Ministry of Defence,17/08/2011,Food and clothing,Land Forces,NAVY ARMY AND AIR FORCE INSTITUES (THE),DL1 1YN,5000061269,63502.44
Ministry of Defence,Ministry of Defence,08/08/2011,IT and communication services,Defence Equipment & Support,ULTRA ELECTRONICS LIMITED,HP10 9UT,829362,63200.73
Ministry of Defence,Defence Science and Technology Laboratory,05/08/2011,Sub Contracted Research,Programme Office,QINETIQ LIMITED,,V - 9000134988 - 00114188,63200
Ministry of Defence,Ministry of Defence,22/08/2011,Estate management,Defence Infrastructure Organisation ,LENGELING SERVICE GMBH,,5000061434,63195.64
Ministry of Defence,Ministry of Defence,18/08/2011,Design services and minor equipment purchases,Defence Equipment & Support,SELEX SYSTEMS INTEGRATION LTD,AL7 1TW,833592,63117.99
Ministry of Defence,Ministry of Defence,31/03/2011,"Transporation of personnel, freight and travel expenses",Central TLB,Crown Agents,,70,63100.44
Ministry of Defence,Ministry of Defence,11/08/2011,Estate management,Land Forces,DEFENCE SUPPORT GROUP  (DSG),SP11 8HT,830521,63000
Ministry of Defence,Ministry of Defence,22/08/2011,Fees for professional services,Navy Command,HP ENTERPRISE SERVICES DEFENCE & SECURITY UK LIMITED,RG27 9XA,834537,62959
Ministry of Defence,Ministry of Defence,22/08/2011,Purchase of inventory and services ,Land Forces,CORPORATE DOCUMENT SERVICES  LIMITED,LS2 7LY,834412,62863.52
Ministry of Defence,Ministry of Defence,10/08/2011,Purchase of information and communications technology,Defence Equipment & Support,NORBECK LIMITED,BA14 0XD,830211,62816.4
Ministry of Defence,Ministry of Defence,22/08/2011,Payment of utilities,Defence Infrastructure Organisation ,BRITISH GAS TRADING LIMITED,OX4 2JY,834358,62791.94
Ministry of Defence,Ministry of Defence,04/08/2011,IT and communication services,Defence Equipment & Support,FUJITSU SERVICES LIMITED,TW18 3BF,827850,62518
Ministry of Defence,Defence Science and Technology Laboratory,05/08/2011,Sub Contracted Work,Operations,LGC LIMITED,,V - 9000134941 - 00114594,62500
Ministry of Defence,Ministry of Defence,16/08/2011,"Transporation of personnel, freight and travel expenses",Land Forces,RAIL SETTLEMENT PLAN LIMITED,SG1 2YN,832465,62434.85
Ministry of Defence,United Kingdom Hydrographic Office,24/08/2011,Purchased Services  Building Product Capability,Infrastructure Programme,Atos IT Services UK Limited,,2000055601,62353
Ministry of Defence,Ministry of Defence,25/08/2011,IT and communication services,Air Command,JEPPESEN U.K. LIMITED,RH10 9AD,836292,62304.08
Ministry of Defence,United Kingdom Hydrographic Office,03/08/2011,Purchased Services  Building Product Capability,Infrastructure Programme,Atos IT Services UK Limited,,2000055319,62272
Ministry of Defence,Ministry of Defence,04/08/2011,Fuel for military use,Central TLB,ARVAL UK LTD,SN5 6PE,827673,62115.29
Ministry of Defence,Ministry of Defence,09/08/2011,"Transporation of personnel, freight and travel expenses",Defence Equipment & Support,ROYAL MAIL GROUP LIMITED,PE4 5PG,829794,61978.51
Ministry of Defence,Ministry of Defence,05/08/2011,Externally delivered education and training,Air Command,AGUSTAWESTLAND LIMITED,BA20 2YB,828278,61833
Ministry of Defence,Ministry of Defence,17/08/2011,Design services and minor equipment purchases,Defence Equipment & Support,CATERPILLAR REMANUFACTURING LIMITED,NN10 6AZ,832660,61421.58
Ministry of Defence,Ministry of Defence,24/08/2011,"Transporation of personnel, freight and travel expenses",Defence Equipment & Support,PALLETWAYS (U K) LTD,WS13 8NE,835831,61254.4
Ministry of Defence,Defence Science and Technology Laboratory,26/08/2011,Other Services & Office costs,Infrastructure,BCD ENGINEERING (UK) LIMITED,,V - 9000135562 - 00115690,61214.23
Ministry of Defence,Ministry of Defence,30/08/2011,Estate management,Defence Infrastructure Organisation ,EUROPA FACILITIES MANAGEMENT LTD,M50 3SP,837343,61207.52
Ministry of Defence,Ministry of Defence,25/08/2011,Estate management,Defence Infrastructure Organisation ,SIEMENS AG GEBAUDEREINIGUNG,,5000061707,61115.68
Ministry of Defence,Royal Hospital Chelsea GIA,19/08/2011,Security,Royal Hospital Chelsea,Wilson James,,PIN118388,60981.46
Ministry of Defence,Ministry of Defence,24/01/2011,Rent and rates,Central TLB,DE RENT,,34974,60966.13
Ministry of Defence,Ministry of Defence,18/08/2011,Design services and minor equipment purchases,Defence Equipment & Support,KARCHER (U.K.) LTD,OX16 1TB,833383,60938.09
Ministry of Defence,Defence Support Group,04/08/2011,Telephone Lines and Rental,Corporate,British Telecommunications PLC,,10133366,60859.2
Ministry of Defence,Ministry of Defence,24/08/2011,Design services and minor equipment purchases,Land Forces,BABCOCK LAND (WHITEFLEET MANAGEMENT) LIMITED,BH23 6BS,835517,60811.38
Ministry of Defence,Ministry of Defence,10/08/2011,Externally delivered education and training,Navy Command,CARLISLE STAFFING PLC,LU1 3BA,830005,60741.13
Ministry of Defence,Ministry of Defence,19/08/2011,Fuel for military use,Air Command,BP INTERNATIONAL LIMITED,HP2 4UL,2000012511,60707.93
Ministry of Defence,Defence Science and Technology Laboratory,05/08/2011,Sub Contracted Work,Operations,MORF PRODUCTS LIMITED,,V - 0000000640 - 00114694,60411.89
Ministry of Defence,Ministry of Defence,01/08/2011,Transport hire charges,Land Forces,BABCOCK LAND (WHITEFLEET MANAGEMENT) LIMITED,BH23 6BS,826181,60370.02
Ministry of Defence,Ministry of Defence,19/08/2011,Estate management,Defence Infrastructure Organisation ,BEZIRKSREGIERUNG DUESSELDORF,,5000061340,60313.79
Ministry of Defence,Ministry of Defence,17/08/2011,Fuel for military use,Defence Equipment & Support,ARVAL UK LTD,SN5 6PE,832605,60305.11
Ministry of Defence,Ministry of Defence,26/08/2011,Payment of utilities,Land Forces,GB OILS LIMITED,FK5 4RB,836771,60251.15
Ministry of Defence,Ministry of Defence,30/08/2011,Research and development,Central TLB,SELEX GALILEO LTD,SS14 3EL,837688,60001
Ministry of Defence,Defence Science and Technology Laboratory,05/08/2011,Professional Services,Operations,LOUGHBOROUGH UNIVERSITY,,V - 9000134937 - 00114269,60000
Ministry of Defence,Defence Science and Technology Laboratory,05/08/2011,Sub Contracted Research,Programme Office,ATLAS ELEKTRONIK UK LIMITED,,V - 9000134992 - 00115068,60000
Ministry of Defence,Ministry of Defence,04/08/2011,Fuel for military use,Air Command,MULTI SERVICE AERO B.V.,,3000005794,59774.47
Ministry of Defence,Ministry of Defence,11/08/2011,Rent and rates,Defence Infrastructure Organisation ,WINDSOR AND MAIDENHEAD ROYAL BOROUGH COUNCIL,SL6 1RF,830955,59326.7
Ministry of Defence,Ministry of Defence,08/08/2011,Research and development,Defence Equipment & Support,DEFENCE SCIENCE & TECHNOLOGY LABORATORY,PO14 9HL,828933,59295.8
Ministry of Defence,Ministry of Defence,22/08/2011,Design services and minor equipment purchases,Defence Equipment & Support,RAYTHEON SYSTEMS LIMITED,CM19 5BB,834807,59235.31
Ministry of Defence,Ministry of Defence,24/08/2011,General services and support,Defence Equipment & Support,MARSHALL OF CAMBRIDGE AEROSPACE LIMITED,CB5 8RX,835728,59140.92
Ministry of Defence,Ministry of Defence,11/08/2011,Rent and rates,Defence Infrastructure Organisation ,TEWKESBURY BOROUGH COUNCIL,GL20 5TT,830881,59120.34
Ministry of Defence,Ministry of Defence,09/08/2011,Rent and rates,Defence Infrastructure Organisation ,INVERCLYDE COUNCIL,PA15 1LX,829620,58888
Ministry of Defence,Ministry of Defence,08/08/2011,Research and development,Land Forces,DEFENCE SCIENCE & TECHNOLOGY LABORATORY,PO14 9HL,828933,58827.73
Ministry of Defence,Ministry of Defence,31/05/2011,Food and clothing,Defence Equipment & Support,Alpha Fine Foods ,,203,58265.32
Ministry of Defence,Defence Science and Technology Laboratory,12/08/2011,Local Authority Rates,Infrastructure,SEVENOAKS DISTRICT COUNCIL,,V - 9000135143 - 00115367,58022
Ministry of Defence,Ministry of Defence,30/08/2011,Purchase of inventory and services ,Defence Equipment & Support,PROMETHEUS MEDICAL LTD,HR6 0PW,837636,57906
Ministry of Defence,Ministry of Defence,22/08/2011,Design services and minor equipment purchases,Defence Equipment & Support,LSC GROUP LIMITED,WS13 8RZ,834589,57804
Ministry of Defence,Ministry of Defence,23/08/2011,Design services and minor equipment purchases,Defence Equipment & Support,FRANCIS SEARCHLIGHTS LTD,BL2 2HJ,835158,57659.32
Ministry of Defence,Ministry of Defence,18/08/2011,Purchase of buildings and military equipment ,Air Command,WYG MANAGEMENT SERVICES LIMITED,L2 6RE,833711,57512.5
Ministry of Defence,Ministry of Defence,11/08/2011,Externally delivered education and training,Land Forces,THE BRITISH SCHOOL OF MOTORING LIMITED,BS32 4TR,162478,57483.12
Ministry of Defence,Ministry of Defence,02/08/2011,Transport hire charges,Land Forces,BABCOCK LAND (WHITEFLEET MANAGEMENT) LIMITED,BH23 6BS,826713,57334.75
Ministry of Defence,Ministry of Defence,16/08/2011,Design services and minor equipment purchases,Land Forces,DEFENCE SCIENCE & TECHNOLOGY LABORATORY,PO14 9HL,832179,57275
Ministry of Defence,Ministry of Defence,04/08/2011,Design services and minor equipment purchases,Defence Equipment & Support,STS DEFENCE LIMITED,PO12 1AF,162284,57243.61
Ministry of Defence,Ministry of Defence,24/08/2011,Rent and rates,Defence Infrastructure Organisation ,DIRECTOR OF FINANCE PROPERTY  SERVICES,SW1A 1AA,835610,57222
Ministry of Defence,Ministry of Defence,15/08/2011,Estate management,Defence Infrastructure Organisation ,AVENANCE PLC,SK11 6ET,831583,57111.54
Ministry of Defence,Ministry of Defence,12/08/2011,Estate management,Air Command,VT FLAGSHIP LTD,PO6 4PR,831528,57067
Ministry of Defence,Ministry of Defence,04/08/2011,"Transporation of personnel, freight and travel expenses",Defence Equipment & Support,DHL GLOBAL FORWARDING (UK)  LIMITED,TW18 4BP,827790,57057.57
Ministry of Defence,Ministry of Defence,23/08/2011,Purchase of general transport equipment,Land Forces,TEAM LEYLAND INTERNATIONAL LIMITED,PR6 0BL,835432,56924
Ministry of Defence,Ministry of Defence,17/08/2011,Estate management,Defence Infrastructure Organisation ,AVENANCE PLC,SK11 6ET,832611,56726.59
Ministry of Defence,Ministry of Defence,31/08/2011,Fuel for military use,Air Command,EUROSHELL DEUTSCHLAND GMBH,,5000061853,56511.84
Ministry of Defence,Ministry of Defence,12/08/2011,Research and development,Defence Equipment & Support,QINETIQ LIMITED,PO12 2AG,831381,56365
Ministry of Defence,Ministry of Defence,05/08/2011,Food and clothing,Defence Infrastructure Organisation ,AVENANCE PLC,SK11 6ET,828302,56311.43
Ministry of Defence,Ministry of Defence,08/08/2011,Design services and minor equipment purchases,Defence Equipment & Support,DEFENCE SCIENCE & TECHNOLOGY LABORATORY,PO14 9HL,828933,56308.11
Ministry of Defence,Ministry of Defence,16/08/2011,Fees for professional services,Central TLB,DEFENCE SCIENCE & TECHNOLOGY LABORATORY,PO14 9HL,832179,56188.68
Ministry of Defence,Ministry of Defence,08/08/2011,Purchase of inventory and services ,Defence Equipment & Support,AAH PHARMACEUTICALS LTD,CV2 2TX,828795,56052.15
Ministry of Defence,Ministry of Defence,24/08/2011,IT and communication services,Defence Equipment & Support,SERCO LIMITED,RG27 9UY,835895,56034.74
Ministry of Defence,Ministry of Defence,22/08/2011,Rent and rates,Defence Infrastructure Organisation ,SHEPWAY DISTRICT COUNCIL,CT20 2QY,834865,55985.02
Ministry of Defence,Ministry of Defence,03/08/2011,Food and clothing,Land Forces,NAVY ARMY AND AIR FORCE INSTITUES (THE),DL1 1YN,5000060607,55890.97
Ministry of Defence,Ministry of Defence,03/08/2011,Design services and minor equipment purchases,Defence Equipment & Support,BAE SYSTEMS (OPERATIONS) LIMITED,PR4 1AX,827147,55573.55
Ministry of Defence,Ministry of Defence,15/08/2011,Development costs for military equipment,Defence Equipment & Support,BAE SYSTEMS INTEGRATED SYSTEM TECHNOLOGIES LIMITED,PO31 8PF,831600,55536
Ministry of Defence,Defence Science and Technology Laboratory,16/08/2011,Energy & Utility,Infrastructure,SCOTTISH HYDRO ELECTRIC GAS LIMITED,,V - 9000135280 - 00115694,55515.6
Ministry of Defence,Ministry of Defence,30/08/2011,Fuel for military use,Air Command,SHELL U.K. OIL PRODUCTS LTD,G1 3RN,837697,55483.89
Ministry of Defence,Ministry of Defence,10/08/2011,"Transporation of personnel, freight and travel expenses",Land Forces,ROYAL BRUNEI AIRLINES SDN BHD,,830270,55314.26
Ministry of Defence,Ministry of Defence,31/08/2011,"Transporation of personnel, freight and travel expenses",Central TLB,RAIL SETTLEMENT PLAN LIMITED,SG1 2YN,838139,55302.05
Ministry of Defence,Ministry of Defence,10/08/2011,IT and communication services,Navy Command,DEFENCE SCIENCE & TECHNOLOGY LABORATORY,PO14 9HL,830049,55225.63
Ministry of Defence,Ministry of Defence,25/08/2011,Development costs for military equipment,Defence Equipment & Support,QINETIQ LIMITED,PO12 2AG,836436,55000
Ministry of Defence,Ministry of Defence,12/08/2011,Payment of utilities,Defence Infrastructure Organisation ,PHOENIX NATURAL GAS LTD,BT3 9ED,33099,54992.75
Ministry of Defence,Ministry of Defence,18/08/2011,IT and communication services,Air Command,INFORMATION SECURITY SYSTEMS  LIMITED,HP12 3RL,833367,54953.85
Ministry of Defence,Ministry of Defence,19/08/2011,Transport hire charges,Air Command,BABCOCK LAND (WHITEFLEET MANAGEMENT) LIMITED,BH23 6BS,833763,54929.9
Ministry of Defence,Ministry of Defence,03/08/2011,Estate management,Defence Infrastructure Organisation ,LENGELING SERVICE GMBH,,5000060582,54889.4
Ministry of Defence,Ministry of Defence,10/08/2011,Payment of utilities,Air Command,GB OILS LIMITED,FK5 4RB,830109,54693.35
Ministry of Defence,Ministry of Defence,11/08/2011,Payment of utilities,Land Forces,GB OILS LIMITED,FK5 4RB,830592,54611.04
Ministry of Defence,Ministry of Defence,16/08/2011,Purchase of inventory and services ,Central TLB,DEFENCE MANAGEMENT (WATCHFIELD) LIMITED,SN6 8TS,832178,54279.7
Ministry of Defence,Ministry of Defence,23/08/2011,Grants to NDPBs,Navy Command,THE NATIONAL MUSEUM OF THE ROYAL NAVY,PO1 3NH,835443,54254
Ministry of Defence,Ministry of Defence,18/08/2011,Purchase of information and communications technology,Defence Equipment & Support,PARITY SOLUTIONS LTD,SW19 3RU,833521,54194
Ministry of Defence,Ministry of Defence,01/08/2011,"Transporation of personnel, freight and travel expenses",Land Forces,WELTER TOURS,,5000060461,53973.2
Ministry of Defence,Ministry of Defence,31/08/2011,Fees for professional services,Air Command,DEFENCE SCIENCE & TECHNOLOGY LABORATORY,PO14 9HL,837913,53816.14
Ministry of Defence,Ministry of Defence,30/08/2011,Design services and minor equipment purchases,Defence Equipment & Support,DETICA LIMITED,GU2 7YP,837306,53700
Ministry of Defence,Defence Science and Technology Laboratory,19/08/2011,Sub Contracted Research,Programme Office,MBDA UK LIMITED,,V - 0000000718 - 00113568,53601.48
Ministry of Defence,Ministry of Defence,09/08/2011,Administration,Air Command,CIVIL AVIATION AUTHORITY,RH6 0YR,829514,53500
Ministry of Defence,Ministry of Defence,25/08/2011,Estate management,Defence Equipment & Support,COMPASS SERVICES (U.K.) LIMITED,B45 9PZ,836151,53471.18
Ministry of Defence,Defence Science and Technology Laboratory,26/08/2011,Energy & Utility,Infrastructure,TOTAL GAS & POWER LIMITED,,V - 9000135568 - 00116341,53412.92
Ministry of Defence,Ministry of Defence,04/08/2011,Purchase of buildings and military equipment ,Defence Infrastructure Organisation ,BEZIRKSREGIERUNG DUESSELDORF,,5000060668,53303.88
Ministry of Defence,Ministry of Defence,10/08/2011,Food and clothing,Land Forces,ARAMARK LTD,LS16 6QY,829933,53068.09
Ministry of Defence,Ministry of Defence,22/08/2011,IT and communication services,Defence Infrastructure Organisation ,INFOTECH ENTERPRISES EUROPE LTD,WC1V 6RL,834544,52900
Ministry of Defence,Ministry of Defence,24/08/2011,Rent and rates,Land Forces,BAMFORDS TRUST PLC,NW1 4LJ,835533,52875
Ministry of Defence,Ministry of Defence,03/08/2011,Purchase of buildings and military equipment ,Defence Infrastructure Organisation ,TURNER FACILITIES MANAGEMENT LTD,G51 3EQ,827600,52800
Ministry of Defence,Ministry of Defence,16/08/2011,Transport hire charges,Central TLB,BABCOCK LAND (WHITEFLEET MANAGEMENT) LIMITED,BH23 6BS,832089,52760.13
Ministry of Defence,Ministry of Defence,10/08/2011,"Transporation of personnel, freight and travel expenses",Land Forces,B+B AUTOVERMIETUNG GMBH,,5000060957,52715.09
Ministry of Defence,Ministry of Defence,16/08/2011,Design services and minor equipment purchases,Defence Equipment & Support,TERBERG DTS (UK) LIMITED,HX5 9HD,832536,52670.25
Ministry of Defence,Ministry of Defence,12/08/2011,Administration,Defence Equipment & Support,CANON (UK) LIMITED,RH2 8BF,831060,52518.42
Ministry of Defence,Ministry of Defence,22/08/2011,Rent and rates,Defence Infrastructure Organisation ,SOUTH CAMBRIDGESHIRE DISTRICT COUNCIL,CB3 6EA,834880,52467.08
Ministry of Defence,Ministry of Defence,28/02/2011,Rent and rates,Central TLB,DE RENT,,35053,52461.11
Ministry of Defence,Ministry of Defence,09/08/2011,Medical treatment & stores and welfare services,Central TLB,1ST DENTAL PRODUCTS LIMITED,HG2 7AB,829406,52317.51
Ministry of Defence,Ministry of Defence,18/08/2011,Property leases,Defence Infrastructure Organisation ,ASPIRE DEFENCE LIMITED,SP9 7QD,833094,52250.1
Ministry of Defence,Ministry of Defence,04/08/2011,Fuel for military use,Navy Command,ARVAL UK LTD,SN5 6PE,827673,52204.82
Ministry of Defence,Ministry of Defence,24/08/2011,IT and communication services,Defence Equipment & Support,MICROSOFT LTD,,33184,52100
Ministry of Defence,Ministry of Defence,23/08/2011,Externally delivered education and training,Air Command,NORWEGIAN DEFENCE,,2095397,52080.97
Ministry of Defence,Defence Support Group,12/08/2011,Electricity,Business Stream 2,Scottish Hydro Electric,,10133860,52057.34
Ministry of Defence,Ministry of Defence,12/08/2011,Design services and minor equipment purchases,Air Command,CENTRAL OFFICE OF INFORMATION,SE1 7DU,831069,51961.64
Ministry of Defence,Ministry of Defence,31/08/2011,Fuel for military use,Defence Equipment & Support,ARVAL UK LTD,SN5 6PE,837832,51950.02
Ministry of Defence,Ministry of Defence,16/08/2011,Purchase of buildings and military equipment ,Defence Equipment & Support,JACOBS U.K. LTD,G2 7HX,832280,51939
Ministry of Defence,Ministry of Defence,29/03/2011,Medical treatment & stores and welfare services,Central TLB,DE RENT,,35220,51922.76
Ministry of Defence,Ministry of Defence,10/08/2011,Estate management,Defence Infrastructure Organisation ,BABCOCK SUPPORT SERVICES LIMITED,BA1 5AB,829951,51856.82
Ministry of Defence,Ministry of Defence,04/08/2011,Fees for professional services,Land Forces,LGC LTD,TW11 0LY,827943,51799.31
Ministry of Defence,Ministry of Defence,04/08/2011,Medical treatment & stores and welfare services,Central TLB,SPIRE HEALTHCARE LIMITED,PO9 5NP,828184,51765.4
Ministry of Defence,Defence Science and Technology Laboratory,12/08/2011,Sub Contracted Work,Operations,ATLAS ELEKTRONIK UK LIMITED,,V - 9000135179 - 00113552,51668.11
Ministry of Defence,Ministry of Defence,22/08/2011,Fees for professional services,Air Command,HP ENTERPRISE SERVICES DEFENCE & SECURITY UK LIMITED,RG27 9XA,834537,51491
Ministry of Defence,Defence Science and Technology Laboratory,31/08/2011,Sub Contracted Work,Programme Office,THALES RESEARCH & TECHNOLOGY (UK) LIMITED,,V - 9000135635 - 00115433,51476
Ministry of Defence,Ministry of Defence,19/08/2011,Property leases,Defence Infrastructure Organisation ,ASPIRE DEFENCE LIMITED,SP9 7QD,833748,51440.26
Ministry of Defence,Ministry of Defence,30/08/2011,Transport hire charges,Land Forces,LEASEDRIVE VELO RENTAL  MANAGEMENT LIMITED,RG40 3GA,837438,51284.04
Ministry of Defence,Defence Science and Technology Laboratory,19/08/2011,Sub Contracted Research,Programme Office,ALTA INNOVATIONS LIMITED,,V - 9000135296 - 00113855,51230
Ministry of Defence,Ministry of Defence,18/08/2011,Fees for professional services,Land Forces,LGC LTD,TW11 0LY,833402,51213.22
Ministry of Defence,Ministry of Defence,19/08/2011,Rent and rates,Defence Infrastructure Organisation ,EAST HAMPSHIRE DISTRICT COUNCIL,GU31 4EX,833881,51164.39
Ministry of Defence,Ministry of Defence,05/08/2011,Payment of utilities,Defence Infrastructure Organisation ,GB OILS LIMITED,FK5 4RB,828463,51080.54
Ministry of Defence,Ministry of Defence,19/08/2011,Purchase of inventory and services ,Defence Equipment & Support,AUSTIN HAYES LTD,LS19 7BD,833756,51030.34
Ministry of Defence,Ministry of Defence,15/08/2011,Externally delivered education and training,Land Forces,REMPLOY LIMITED,SA12 7AX,831926,51000
Ministry of Defence,Defence Science and Technology Laboratory,19/08/2011,Materials & Equipment,Operations,VWR INTERNATIONAL,,V - 9000135414 - 00115864,50838.58
Ministry of Defence,Ministry of Defence,11/08/2011,Rent and rates,Defence Infrastructure Organisation ,WINCHESTER CITY COUNCIL,SO23 9LJ,830954,50809.75
Ministry of Defence,Ministry of Defence,19/08/2011,"Public relations, including marketing and advertising.",Navy Command,CENTRAL OFFICE OF INFORMATION,SE1 7DU,833822,50788.73
Ministry of Defence,Ministry of Defence,16/08/2011,Administration,Central TLB,G4S ASSESSMENT SERVICES (UK) LIMITED,GL20 8NB,162552,50758
Ministry of Defence,Ministry of Defence,10/08/2011,Design services and minor equipment purchases,Defence Equipment & Support,UNIVERSITY OF NEWCASTLE UPON TYNE,NE1 7RU,830360,50629.1
Ministry of Defence,Ministry of Defence,05/08/2011,Design services and minor equipment purchases,Defence Equipment & Support,ULTRA ELECTRONICS LIMITED,UB6 8UA,828759,50552.13
Ministry of Defence,Ministry of Defence,24/08/2011,Estate management,Defence Infrastructure Organisation ,SECURITY SERVICES GROUP,SN6 8LA,2.00E+11,50314.93
Ministry of Defence,Defence Science and Technology Laboratory,12/08/2011,Sub Contracted Research,Programme Office,ATLAS ELEKTRONIK UK LIMITED,,V - 9000135179 - 00115558,50178.76
Ministry of Defence,Defence Science and Technology Laboratory,05/08/2011,Sub Contracted Work,Operations,UNIVERSITY COLLEGE OF LONDON,,V - 9000134974 - 00114009,50000
Ministry of Defence,Ministry of Defence,10/08/2011,Fees for professional services,Land Forces,DEVON & CORNWALL CONSTABULARY,EX2 7HQ,830053,50000
Ministry of Defence,Defence Science and Technology Laboratory,12/08/2011,Sub Contracted Research,Programme Office,ELEMENT SIX LIMITED,,V - 9000135165 - 00115092,50000
Ministry of Defence,Ministry of Defence,26/08/2011,Rent and rates,Defence Equipment & Support,AIRTANKER LIMITED,WC2A 1AL,836594,49993
Ministry of Defence,Ministry of Defence,15/08/2011,Medical treatment & stores and welfare services,Land Forces,HONEYBEERECRUITMENT.COM LTD,TW12 1PD,831754,49901.16
Ministry of Defence,Ministry of Defence,23/08/2011,Rent and rates,Defence Infrastructure Organisation ,HUNTINGDONSHIRE DISTRICT COUNCIL,PE29 3TN,835192,49790.08
Ministry of Defence,Ministry of Defence,24/08/2011,Payment of utilities,Defence Infrastructure Organisation ,WEST ENERGIE UND VERKEHR (1),,5000061605,49766.51
Ministry of Defence,Ministry of Defence,25/08/2011,Transport hire charges,Air Command,BABCOCK LAND (WHITEFLEET MANAGEMENT) LIMITED,BH23 6BS,836066,49693.98
Ministry of Defence,Defence Support Group,19/08/2011,IT Services,Corporate,Insight Direct (uk) Ltd,,10132949,49631.58
Ministry of Defence,Ministry of Defence,09/08/2011,"Purchase of munitions, other inventory or fuel",Defence Equipment & Support,BAE SYSTEMS INTEGRATED SYSTEM TECHNOLOGIES LIMITED,PO31 8PF,829460,49502.4
Ministry of Defence,Ministry of Defence,22/08/2011,Purchase of inventory and services ,Navy Command,CORPORATE DOCUMENT SERVICES  LIMITED,LS2 7LY,834412,49486.43
Ministry of Defence,Ministry of Defence,22/08/2011,Rent and rates,Defence Infrastructure Organisation ,PURBECK DISTRICT COUNCIL,BH20 4PP,834794,49455.31
Ministry of Defence,Ministry of Defence,15/08/2011,Design services and minor equipment purchases,Defence Equipment & Support,MARSHALL OF CAMBRIDGE AEROSPACE LIMITED,CB5 8RX,831806,49422.01
Ministry of Defence,Ministry of Defence,17/08/2011,"Transporation of personnel, freight and travel expenses",Defence Equipment & Support,DHL GLOBAL FORWARDING (UK)  LIMITED,TW18 4BP,832682,49292.87
Ministry of Defence,United Kingdom Hydrographic Office,11/08/2011,Electricity,Facilities Management,Scottish Hydro Electric,,2000055452,49270.36
Ministry of Defence,Defence Science and Technology Laboratory,26/08/2011,Sub Contracted Work,Operations,UK DEFENCE PROCUREMENT OFFICE,,V - 0000000653 - 00113197,49203.66
Ministry of Defence,Defence Science and Technology Laboratory,31/08/2011,Sub Contracted Research,Programme Office,UNIVERSITY OF BATH,,V - 9000135639 - 00116234,49101.22
Ministry of Defence,Ministry of Defence,09/08/2011,Payment of utilities,Defence Infrastructure Organisation ,SSE ENERGY SUPPLY LIMITED,PH1 3AQ,829835,48900.76
Ministry of Defence,Defence Science and Technology Laboratory,19/08/2011,Publications/Subscriptions,Infrastructure,BARCLAYCARD,,G - 9000135415 - 00116696,48883.8
Ministry of Defence,Ministry of Defence,15/08/2011,Transport hire charges,Defence Equipment & Support,DAWSONRENTALS TRUCK & TRAILER LTD,MK15 8JH,831675,48733
Ministry of Defence,Ministry of Defence,15/08/2011,Design services and minor equipment purchases,Land Forces,THE AUTOMOBILE ASSOCIATION LIMITED,RG21 4EA,162542,48251.4
Ministry of Defence,Ministry of Defence,12/08/2011,Payment of utilities,Defence Infrastructure Organisation ,BRITISH GAS TRADING LIMITED,OX4 2JY,831047,48160.44
Ministry of Defence,Ministry of Defence,23/08/2011,Fuel for military use,Air Command,BP INTERNATIONAL LIMITED,HP2 4UL,2000012538,48128.82
Ministry of Defence,Ministry of Defence,01/08/2011,Payment of utilities,Defence Infrastructure Organisation ,ELECTRICITY AUTHORITY OF CYPRUS,BFPO 53,4000005509,48041.73
Ministry of Defence,Ministry of Defence,11/08/2011,Medical treatment & stores and welfare services,Central TLB,QUEEN ELIZABETHS FOUNDATION FOR DISABLED PEOPLE,KT22 0BN,830791,48016.86
Ministry of Defence,Ministry of Defence,01/08/2011,Estate management,Defence Infrastructure Organisation ,TURNER ESTATE SOLUTIONS LIMITED,KY11 2BL,826643,48000
Ministry of Defence,Ministry of Defence,01/08/2011,Grants to Reserves Forces and Cadets Association,Land Forces,THE ARMY CADET FORCE ASSOCIATION,EC2A 4DW,826621,48000
Ministry of Defence,Ministry of Defence,31/08/2011,Fees for professional services,Defence Equipment & Support,DEVONPORT ROYAL DOCKYARD LIMITED,PL1 4SG,837916,47950.64
Ministry of Defence,Ministry of Defence,15/08/2011,Transport hire charges,Land Forces,RYDER PUBLIC LIMITED COMPANY,SK16 4UL,831940,47911.63
Ministry of Defence,Ministry of Defence,17/08/2011,Fuel for military use,Central TLB,ARVAL UK LTD,SN5 6PE,832605,47899.79
Ministry of Defence,Ministry of Defence,17/08/2011,Administration,Defence Equipment & Support,EREBUS UK LTD,,GPC 005,47847
Ministry of Defence,Ministry of Defence,08/08/2011,IT and communication services,Defence Equipment & Support,ACTICA CONSULTING LIMITED,GU2 7YF,828800,47788
Ministry of Defence,Ministry of Defence,18/08/2011,Fuel for military use,Air Command,SHELL U.K. OIL PRODUCTS LTD,G1 3RN,833597,47758.57
Ministry of Defence,Ministry of Defence,04/08/2011,IT and communication services,Air Command,INFORMATION SECURITY SYSTEMS  LIMITED,HP12 3RL,827899,47729.63
Ministry of Defence,Ministry of Defence,09/08/2011,General services and support,Defence Equipment & Support,THALES ATM LIMITED,KT9 1TB,829853,47601.84
Ministry of Defence,Ministry of Defence,17/08/2011,IT and communication services,Navy Command,BLUE ARROW,,GPC 006,47530.73
Ministry of Defence,Ministry of Defence,05/08/2011,Payment of utilities,Air Command,GB OILS LIMITED,FK5 4RB,828463,47475.15
Ministry of Defence,Ministry of Defence,31/05/2011,Food and clothing,Defence Equipment & Support,Lenana Grocers,,204,47355.37
Ministry of Defence,Ministry of Defence,25/08/2011,Transport hire charges,Defence Equipment & Support,BABCOCK LAND (WHITEFLEET MANAGEMENT) LIMITED,BH23 6BS,836066,47220.29
Ministry of Defence,Ministry of Defence,23/08/2011,Estate management,Defence Infrastructure Organisation ,MODERN HOUSING SOLUTIONS (PRIME)LIMITED,PE28 4QG,835256,47175.04
Ministry of Defence,Ministry of Defence,12/08/2011,Service and civilian recruitment,Air Command,CENTRAL OFFICE OF INFORMATION,SE1 7DU,831069,47108.49
Ministry of Defence,Ministry of Defence,22/08/2011,Rent and rates,Defence Infrastructure Organisation ,ST EDMUNDSBURY BOROUGH COUNCIL,IP33 3YS,834903,47002.07
Ministry of Defence,Ministry of Defence,30/08/2011,Payment of utilities,Land Forces,TOTAL GAS & POWER LIMITED,RH1 1RX,837756,46977.39
Ministry of Defence,Ministry of Defence,10/08/2011,IT and communication services,Central TLB,BOXX LTD,WD6 1JG,829978,46944
Ministry of Defence,Defence Science and Technology Laboratory,05/08/2011,Energy & Utility,Infrastructure,TOTAL GAS & POWER LIMITED,,V - 9000134979 - 00114349,46931.28
Ministry of Defence,Ministry of Defence,22/08/2011,Estate management,Land Forces,V.D. REIJT MESTSTOFFEN BV,,5000061470,46911.5
Ministry of Defence,Ministry of Defence,05/08/2011,Payment of utilities,Defence Equipment & Support,GB OILS LIMITED,FK5 4RB,828463,46790.8
Ministry of Defence,Ministry of Defence,26/08/2011,Medical treatment & stores and welfare services,Land Forces,HONEYBEERECRUITMENT.COM LTD,TW12 1PD,836809,46770.97
Ministry of Defence,Ministry of Defence,01/08/2011,"Transporation of personnel, freight and travel expenses",Air Command,EUROCONTROL,,5000060384,46453.9
Ministry of Defence,Ministry of Defence,04/08/2011,Payment of utilities,Central TLB,DEFENCE MANAGEMENT (WATCHFIELD) LIMITED,SN6 8TS,827783,46434.63
Ministry of Defence,Ministry of Defence,03/08/2011,Fuel for military use,Air Command,SHELL U.K. OIL PRODUCTS LTD,G1 3RN,827534,46237.86
Ministry of Defence,Ministry of Defence,22/08/2011,Rent and rates,Defence Infrastructure Organisation ,SOUTH SOMERSET DISTRICT COUNCIL,BH20 2DH,834887,46172.74
Ministry of Defence,Ministry of Defence,09/08/2011,Estate management,Defence Infrastructure Organisation ,ISS MEDICLEAN LIMITED,GU21 5RW,829625,46087.19
Ministry of Defence,Ministry of Defence,12/08/2011,Externally delivered education and training,Land Forces,RIGHT MANAGEMENT LIMITED,EC4N 7BE,831396,46049.32
Ministry of Defence,Ministry of Defence,25/08/2011,Rent and rates,Defence Infrastructure Organisation ,MEDWAY COUNCIL,ME4 4TR,836327,46028.38
Ministry of Defence,Ministry of Defence,17/08/2011,Fees for professional services,Central TLB,RIGHT MANAGEMENT LIMITED,EC4N 7BE,832943,45785.5
Ministry of Defence,Ministry of Defence,23/08/2011,Rent and rates,Defence Infrastructure Organisation ,PETERBOROUGH CITY COUNCIL,PE1 1HQ,835353,45722.65
Ministry of Defence,Ministry of Defence,12/08/2011,Estate management,Defence Infrastructure Organisation ,TKL GMBH.,,5000061128,45451.18
Ministry of Defence,Ministry of Defence,23/08/2011,Estate management,Defence Infrastructure Organisation ,OBERFINANZDIREKTION NIEDERSACHSEN,,5000061518,45000.88
Ministry of Defence,Ministry of Defence,04/08/2011,Externally delivered education and training,Navy Command,CRUSADER LEISURE LIMITED,TW1 3NR,827776,45000
Ministry of Defence,Ministry of Defence,08/08/2011,Design services and minor equipment purchases,Defence Equipment & Support,SCORE MARINE LTD,AB42 0YX,829288,45000
Ministry of Defence,Ministry of Defence,25/08/2011,IT and communication services,Defence Equipment & Support,VEGA CONSULTING SERVICES LTD,AL7 1TW,836549,44737
Ministry of Defence,Ministry of Defence,10/08/2011,Purchase of inventory and services ,Central TLB,CORPORATE DOCUMENT SERVICES  LIMITED,LS2 7LY,830030,44553.74
Ministry of Defence,Ministry of Defence,22/08/2011,Rent and rates,Defence Infrastructure Organisation ,SOUTH GLOUCESTERSHIRE COUNCIL,BS37 5YU,834882,44318.2
Ministry of Defence,Ministry of Defence,25/08/2011,Estate management,Defence Infrastructure Organisation ,INTERSERVE (DEFENCE) LTD,BS34 8YU,5000061654,44284.93
Ministry of Defence,Ministry of Defence,09/08/2011,"Transporation of personnel, freight and travel expenses",Land Forces,RAIL SETTLEMENT PLAN LIMITED,SG1 2YN,829776,44230
Ministry of Defence,Ministry of Defence,25/08/2011,Design services and minor equipment purchases,Defence Equipment & Support,TYNE SLIPWAY & ENGINEERING CO LIMITED,NE33 5PL,836540,44170.82
Ministry of Defence,Ministry of Defence,03/08/2011,IT and communication services,Defence Equipment & Support,LOCKHEED MARTIN UK LIMITED,GU14 6TQ,827379,44161.64
Ministry of Defence,Ministry of Defence,30/08/2011,Estate management,Defence Infrastructure Organisation ,BEZIRKSREGIERUNG DUESSELDORF,,5000061800,44050.33
Ministry of Defence,Ministry of Defence,04/08/2011,Fuel for military use,Defence Infrastructure Organisation ,ARVAL UK LTD,SN5 6PE,827673,44010.93
Ministry of Defence,Ministry of Defence,12/08/2011,Estate management,Air Command,SODEXO LTD,M50 0AL,831445,44006.79
Ministry of Defence,Ministry of Defence,15/08/2011,Design services and minor equipment purchases,Central TLB,DEFENCE SCIENCE & TECHNOLOGY LABORATORY,PO14 9HL,831678,43918.57
Ministry of Defence,Ministry of Defence,11/08/2011,Rent and rates,Defence Infrastructure Organisation ,CITY OF YORK COUNCIL,YO1 7DU,830501,43592.25
Ministry of Defence,Ministry of Defence,11/08/2011,Fuel for military use,Air Command,EUROSHELL DEUTSCHLAND GMBH,,5000061040,43270.08
Ministry of Defence,Ministry of Defence,09/08/2011,Rent and rates,Central TLB,FOREIGN & COMMONWEALTH OFFICE,MK10 1PX,2.00E+11,43144.42
Ministry of Defence,Ministry of Defence,11/08/2011,Rent and rates,Defence Infrastructure Organisation ,WEST BERKSHIRE DISTRICT COUNCIL,RG14 5LD,830939,43067.45
Ministry of Defence,Ministry of Defence,30/08/2011,Payment of utilities,Air Command,TOTAL GAS & POWER LIMITED,RH1 1RX,837756,43066.63
Ministry of Defence,Ministry of Defence,19/08/2011,Rent and rates,Defence Infrastructure Organisation ,FAREHAM BOROUGH COUNCIL,PO16 7PU,833904,43057.76
Ministry of Defence,Ministry of Defence,23/08/2011,"Purchase of munitions, other inventory or fuel",Defence Equipment & Support,GBR TECHNOLOGY LIMITED,RG7 8NN,835166,43017.76
Ministry of Defence,Ministry of Defence,15/08/2011,Grants to Reserves Forces and Cadets Association,Land Forces,THE ARMY CADET FORCE ASSOCIATION,EC2A 4DW,832001,43000
Ministry of Defence,Ministry of Defence,08/08/2011,"Purchase of munitions, other inventory or fuel",Defence Equipment & Support,GBR TECHNOLOGY LIMITED,RG7 8NN,828998,42995.53
Ministry of Defence,Ministry of Defence,18/08/2011,Design services and minor equipment purchases,Air Command,BABCOCK LAND (WHITEFLEET MANAGEMENT) LIMITED,BH23 6BS,833114,42976.82
Ministry of Defence,Ministry of Defence,31/08/2011,Fuel for military use,Central TLB,ARVAL UK LTD,SN5 6PE,837832,42905.97
Ministry of Defence,Ministry of Defence,22/08/2011,Estate management,Defence Infrastructure Organisation ,WILHELM AHLERS GMBH & CO KG,,5000061472,42862.1
Ministry of Defence,Ministry of Defence,02/08/2011,"Transporation of personnel, freight and travel expenses",Land Forces,RAIL SETTLEMENT PLAN LIMITED,SG1 2YN,826988,42849.45
Ministry of Defence,Ministry of Defence,11/08/2011,Design services and minor equipment purchases,Defence Equipment & Support,PARK AIR SYSTEMS LTD,PE6 8UE,830767,42802.37
Ministry of Defence,Ministry of Defence,26/08/2011,Design services and minor equipment purchases,Defence Equipment & Support,FBS LIMITED,RG24 8AG,836755,42796.8
Ministry of Defence,Ministry of Defence,24/08/2011,Medical treatment & stores and welfare services,Land Forces,HONEYBEERECRUITMENT.COM LTD,TW12 1PD,835681,42689.74
Ministry of Defence,National Army Museum  GIA,23/08/2011,Exhibition costs,Public Programmes,MER SERVICES LTD,,642/1,42567.3
Ministry of Defence,Ministry of Defence,24/08/2011,Design services and minor equipment purchases,Defence Equipment & Support,AMETEK AIRTECHNOLOGY GROUP LIMITED,TW16 7EF,835495,42554.6
Ministry of Defence,Ministry of Defence,24/08/2011,Purchase of inventory and services ,Central TLB,EBSCO INTERNATIONAL INC,EN5 1NZ,835626,42470.4
Ministry of Defence,Ministry of Defence,17/08/2011,Design services and minor equipment purchases,Defence Equipment & Support,TYNE SLIPWAY & ENGINEERING CO LIMITED,NE33 5PL,833017,42438.71
Ministry of Defence,Ministry of Defence,08/08/2011,Estate management,Defence Infrastructure Organisation ,BRYCE GARTEN & LANDSCHAFTSBAU,,5000060812,42320.3
Ministry of Defence,Ministry of Defence,25/08/2011,Rent and rates,Land Forces,SAVILLS COMMERCIAL LTD,M2 4AW,836467,42233.87
Ministry of Defence,Ministry of Defence,16/08/2011,Fees for professional services,Central TLB,FIELD FISHER WATERHOUSE LLP,EC3N 2AA,162551,42220
Ministry of Defence,Ministry of Defence,24/08/2011,Payment of utilities,Central TLB,SSE ENERGY SUPPLY LIMITED,PO9 5DD,835916,42160.75
Ministry of Defence,Defence Science and Technology Laboratory,23/08/2011,Sub Contracted Work,Programme Office,EPSRC,,V - 9000135428 - 00116303,42136.51
Ministry of Defence,Ministry of Defence,22/08/2011,"Transporation of personnel, freight and travel expenses",Central TLB,CARTUS LTD,SN5 8RS,834378,42106.43
Ministry of Defence,Ministry of Defence,24/08/2011,Estate management,Defence Infrastructure Organisation ,LANKES ENTSORGUNG UND UMWELTSERVICE GMBH,,5000061571,42093.23
Ministry of Defence,Defence Science and Technology Laboratory,05/08/2011,Repairs & Maintenance,Infrastructure,SERCO LIMITED,,V - 9000134990 - 00114605,42066.99
Ministry of Defence,Ministry of Defence,03/08/2011,Transport hire charges,Central TLB,BABCOCK LAND (WHITEFLEET MANAGEMENT) LIMITED,BH23 6BS,827137,42059.05
Ministry of Defence,Defence Science and Technology Laboratory,26/08/2011,Sub Contracted Research,Programme Office,UNIVERSITY OF EDINBURGH,,V - 9000135526 - 00113302,42000
Ministry of Defence,Ministry of Defence,11/08/2011,Rent and rates,Defence Infrastructure Organisation ,WOKINGHAM DISTRICT COUNCIL,RG40 1BN,830957,41905.3
Ministry of Defence,Ministry of Defence,22/08/2011,"Adminstration, claims, compensation and awards",Land Forces,BUNDESANSTALT FUER IMMOBILIENAUFGABEN,,5000061388,41902.21
Ministry of Defence,United Kingdom Hydrographic Office,10/08/2011,"Computers, peripherals, software",ICT Delivery Business Group,Insight Direct UK Ltd,,2000055410,41826.4
Ministry of Defence,Ministry of Defence,02/08/2011,Estate management,Navy Command,CORPS OF COMMISSIONAIRES  MANAGEMENT LIMITED,RH10 9WE,826774,41625.79
Ministry of Defence,Ministry of Defence,16/08/2011,Estate management,Navy Command,CORPS OF COMMISSIONAIRES  MANAGEMENT LIMITED,RH10 9WE,832167,41625.79
Ministry of Defence,Ministry of Defence,05/08/2011,Design services and minor equipment purchases,Defence Equipment & Support,FREQUENTIS AG,,3000005800,41536.59
Ministry of Defence,Ministry of Defence,17/08/2011,Payment of utilities,Defence Infrastructure Organisation ,MABANAFT DEUTSCHLAND GMBH,,5000061261,41492.3
Ministry of Defence,Defence Science and Technology Laboratory,19/08/2011,Sub Contracted Research,Programme Office,QINETIQ LIMITED,,V - 9000135400 - 00109970,41418
Ministry of Defence,Ministry of Defence,26/08/2011,Medical treatment & stores and welfare services,Land Forces,AMD TUEV ARBEITSMED DIENSTE GMBH,,5000061735,41370
Ministry of Defence,Ministry of Defence,31/08/2011,Design services and minor equipment purchases,Land Forces,BABCOCK LAND (WHITEFLEET MANAGEMENT) LIMITED,BH23 6BS,837844,41290.69
Ministry of Defence,Defence Science and Technology Laboratory,26/08/2011,Sub Contracted Research,Programme Office,QINETIQ LIMITED,,V - 9000135575 - 00110529,41202
Ministry of Defence,Ministry of Defence,03/08/2011,Rental of plant and machinery,Defence Equipment & Support,BARLOWORLD HANDLING LTD,WA3 3JD,827156,41188.06
Ministry of Defence,Ministry of Defence,04/08/2011,Estate management,Defence Infrastructure Organisation ,VSM ESTATES LIMITED,B32 1AF,828249,41153
Ministry of Defence,Defence Science and Technology Laboratory,16/08/2011,Repairs & Maintenance,Infrastructure,SERCO LIMITED,,V - 9000135282 - 00115634,41059.57
Ministry of Defence,Defence Science and Technology Laboratory,16/08/2011,Energy & Utility,Infrastructure,SCOTTISH HYDRO ELECTRIC GAS LIMITED,,V - 9000135280 - 00115692,41016.7
Ministry of Defence,Defence Science and Technology Laboratory,09/08/2011,Sub Contracted Work,Operations,ROKE MANOR RESEARCH LIMITED,,V - 9000135036 - 00113051,41000
Ministry of Defence,Defence Science and Technology Laboratory,02/08/2011,Materials & Equipment,Operations,SELEX COMMUNICATIONS LIMITED,,V - 9000134889 - 00113927,40960
Ministry of Defence,Ministry of Defence,12/08/2011,Payment of utilities,Air Command,SSE ENERGY SUPPLY LIMITED,PH1 3AQ,831461,40921.19
Ministry of Defence,Ministry of Defence,04/08/2011,Fees for professional services,Central TLB,Government Actuary's Department,EC4A 1AB,2.00E+11,40915.25
Ministry of Defence,Ministry of Defence,12/08/2011,"Purchase of munitions, other inventory or fuel",Defence Equipment & Support,UNIVAR LIMITED,BD1 5BD,831511,40857.15
Ministry of Defence,Ministry of Defence,05/08/2011,Estate management,Air Command,SODEXO LTD,M50 0AL,828701,40832.89
Ministry of Defence,Ministry of Defence,10/08/2011,Fees for professional services,Air Command,DEFENCE SCIENCE & TECHNOLOGY LABORATORY,PO14 9HL,830049,40829.23
Ministry of Defence,Ministry of Defence,18/08/2011,Externally delivered education and training,Land Forces,TQ EDUCATION AND TRAINING  LIMITED,DE74 2SJ,833663,40770
Ministry of Defence,Ministry of Defence,24/08/2011,Transport hire charges,Defence Equipment & Support,FBS LIMITED,RG24 8AG,835636,40749.98
Ministry of Defence,Ministry of Defence,05/08/2011,Design services and minor equipment purchases,Defence Equipment & Support,J C SYS LIMITED,GU10 3HQ,828512,40718.5
Ministry of Defence,Ministry of Defence,31/08/2011,"Transporation of personnel, freight and travel expenses",Defence Equipment & Support,DSV AIR & SEA LIMITED,M22 4NY,837926,40711.37
Ministry of Defence,Ministry of Defence,24/08/2011,Design services and minor equipment purchases,Land Forces,FBS LIMITED,RG24 8AG,835636,40640.85
Ministry of Defence,Ministry of Defence,26/08/2011,Payment of utilities,Defence Infrastructure Organisation ,GB OILS LIMITED,FK5 4RB,836771,40626.49
Ministry of Defence,Ministry of Defence,26/08/2011,Food and clothing,Land Forces,FRIGO RENT SERVICES GMBH.,,5000061757,40605.12
Ministry of Defence,Ministry of Defence,17/08/2011,Fuel for military use,Defence Infrastructure Organisation ,ARVAL UK LTD,SN5 6PE,832605,40593.38
Ministry of Defence,Ministry of Defence,24/08/2011,"Adminstration, claims, compensation and awards",Central TLB,FOREIGN & COMMONWEALTH OFFICE,MK10 1PX,2.00E+11,40567.68
Ministry of Defence,Defence Science and Technology Laboratory,31/08/2011,Materials & Equipment,Operations,FISHER SCIENTIFIC UK LIMITED,,V - 9000135694 - 00116843,40464
Ministry of Defence,Ministry of Defence,24/08/2011,Research and development,Air Command,HOBSON & SONS (LONDON) LIMITED,SS7 3AF,835676,40438.58
Ministry of Defence,Ministry of Defence,19/08/2011,Rent and rates,Defence Infrastructure Organisation ,HCR LTD,RG21 7DT,833953,40419.64
Ministry of Defence,Ministry of Defence,11/08/2011,Design services and minor equipment purchases,Defence Equipment & Support,CONWAY PACKING SERVICES LTD,DY4 7UD,830505,40390.44
Ministry of Defence,Ministry of Defence,03/08/2011,Food and clothing,Defence Equipment & Support,SERCO LIMITED,RG27 9UY,827531,40386.9
Ministry of Defence,Ministry of Defence,02/08/2011,Purchase of inventory and services ,Defence Equipment & Support,LAERDAL MEDICAL LTD,BR6 0HX,826862,40230.12
Ministry of Defence,Ministry of Defence,17/08/2011,Fuel for military use,Navy Command,ARVAL UK LTD,SN5 6PE,832605,40200
Ministry of Defence,Ministry of Defence,18/08/2011,Rent and rates,Defence Infrastructure Organisation ,CHICHESTER DISTRICT COUNCIL,PO19 1TY,833211,40191.79
Ministry of Defence,Ministry of Defence,19/08/2011,Rent and rates,Defence Infrastructure Organisation ,HERTSMERE BOROUGH COUNCIL,WD6 1WA,833959,40133.94
Ministry of Defence,Ministry of Defence,09/03/2011,Design services and minor equipment purchases,Central TLB,Meks Limited,,24,40092.59
Ministry of Defence,Ministry of Defence,09/08/2011,Research and development,Central TLB,DEFENCE SCIENCE & TECHNOLOGY LABORATORY,PO14 9HL,829529,40046.33
Ministry of Defence,Ministry of Defence,12/08/2011,Design services and minor equipment purchases,Defence Equipment & Support,MAN DIESEL & TURBO UK LIMITED,SK7 5BP,831228,39698.97
Ministry of Defence,Ministry of Defence,12/08/2011,Medical treatment & stores and welfare services,Defence Equipment & Support,MARKET & OPINION RESEARCH INTERNATIONAL,W1U 6NS,831236,39600
Ministry of Defence,Ministry of Defence,01/08/2011,Food and clothing,Land Forces,C V FITNESS LTD,NG11 7EP,826232,39510
Ministry of Defence,Ministry of Defence,17/08/2011,Building maintenance and accommodation stores,Defence Infrastructure Organisation ,GODFREY SYRETT LTD,,GPC 007,39475.56
Ministry of Defence,Defence Science and Technology Laboratory,16/08/2011,Energy & Utility,Infrastructure,SCOTTISH HYDRO ELECTRIC GAS LIMITED,,V - 9000135280 - 00115691,39297.71
Ministry of Defence,Ministry of Defence,10/08/2011,Property leases,Defence Infrastructure Organisation ,ASPIRE DEFENCE LIMITED,SP9 7QD,829938,39251.38
Ministry of Defence,Ministry of Defence,18/08/2011,Payment of utilities,Defence Infrastructure Organisation ,GB OILS LIMITED,FK5 4RB,833325,39187.72
Ministry of Defence,Ministry of Defence,26/08/2011,Externally delivered education and training,Land Forces,J A MAFFIA T/A JOHNS SCHOOL OF MOTORING,N18 2QD,836823,39170
Ministry of Defence,Defence Science and Technology Laboratory,19/08/2011,Consumable Materials,Operations,AGILENT TECHNOLOGIES UK LIMITED,,V - 9000135311 - 00108755,39160
Ministry of Defence,Ministry of Defence,17/08/2011,Payment of utilities,Defence Infrastructure Organisation ,NEW ENERGIE GMBH,,5000061270,39158.44
Ministry of Defence,Ministry of Defence,23/08/2011,Estate management,Defence Infrastructure Organisation ,BEZIRKSREGIERUNG DUESSELDORF,,5000061484,39140.1
Ministry of Defence,Ministry of Defence,05/08/2011,Purchase of inventory and services ,Defence Equipment & Support,MINNESOTA THERMAL SCIENCE LLC,,2000012389,39123.58
Ministry of Defence,National Army Museum  GIA,04/08/2011,Casual Security ,Operations,G4 SECURITY SERVICES LTD,,2593,39101.13
Ministry of Defence,Ministry of Defence,04/08/2011,General services and support,Navy Command,C V FITNESS LTD,NG11 7EP,827735,39079.2
Ministry of Defence,Ministry of Defence,30/08/2011,Fees for professional services,Air Command,CARILLIONENTERPRISE LIMITED,B75 7RL,837271,39045.95
Ministry of Defence,Ministry of Defence,31/08/2011,Design services and minor equipment purchases,Land Forces,HORSTMAN DEFENCE SYSTEMS LTD,BA1 3EX,837972,38945.67
Ministry of Defence,United Kingdom Hydrographic Office,10/08/2011,Admiralty Promotional Programme/ OEM support,"Marketing, CS & Channel Management",JBA Training Design Ltd,,2000055418,38941.38
Ministry of Defence,Defence Science and Technology Laboratory,05/08/2011,Repairs & Maintenance,Operations,BECKMAN COULTER UNITED KINGDOM LIMITED,,V - 9000134905 - 00113445,38921.05
Ministry of Defence,Ministry of Defence,23/08/2011,Purchase of buildings and military equipment ,Defence Infrastructure Organisation ,DEBUT SERVICES LIMITED,B75 7RL,835115,38801.17
Ministry of Defence,Ministry of Defence,10/08/2011,IT and communication services,Navy Command,VEGA CONSULTING SERVICES LTD,AL7 1TW,830366,38718
Ministry of Defence,Ministry of Defence,01/08/2011,Purchase of inventory and services ,Central TLB,THE ROYAL MINT,CF72 8YT,826630,38684.24
Ministry of Defence,Ministry of Defence,25/08/2011,Purchase of inventory and services ,Defence Equipment & Support,AUSTIN HAYES LTD,LS19 7BD,836057,38660.3
Ministry of Defence,Ministry of Defence,24/08/2011,Estate management,Navy Command,OCS GROUP UK LIMITED,LA3 3BJ,835820,38650.28
Ministry of Defence,Ministry of Defence,31/08/2011,Fuel for military use,Defence Infrastructure Organisation ,ARVAL UK LTD,SN5 6PE,837832,38610.57
Ministry of Defence,Ministry of Defence,03/08/2011,"Transporation of personnel, freight and travel expenses",Defence Equipment & Support,DSV AIR & SEA LIMITED,M22 4NY,827262,38548.55
Ministry of Defence,Defence Science and Technology Laboratory,05/08/2011,Sub Contracted Work,Operations,FRAZER-NASH CONSULTANCY LIMITED,,V - 0000001725 - 00114282,38500
Ministry of Defence,Defence Science and Technology Laboratory,05/08/2011,Sub Contracted Work,Operations,FRAZER-NASH CONSULTANCY LIMITED,,V - 9000134903 - 00111727,38500
Ministry of Defence,United Kingdom Hydrographic Office,04/08/2011,Raw Material/ Finished Goods,Print & Supply,Antalis McNaughton,,2000055336,38480
Ministry of Defence,Ministry of Defence,23/08/2011,Purchase of inventory and services ,Air Command,XMA LTD,NG11 7EP,835474,38391.97
Ministry of Defence,Ministry of Defence,16/08/2011,Estate management,Defence Infrastructure Organisation ,ARAMARK LTD,LS16 6QY,832078,38340.6
Ministry of Defence,Ministry of Defence,08/08/2011,Design services and minor equipment purchases,Defence Equipment & Support,AGUSTAWESTLAND LIMITED,BA20 2YB,828802,38321.27
Ministry of Defence,Ministry of Defence,19/08/2011,"Purchase of munitions, other inventory or fuel",Defence Equipment & Support,FUCHS LUBRICANTS (UK) PLC,ST1 5HU,833919,38305.92
Ministry of Defence,Defence Science and Technology Laboratory,26/08/2011,Repairs & Maintenance,Infrastructure,TARMAC LIMITED,,V - 9000135578 - 00115030,38218.38
Ministry of Defence,Ministry of Defence,05/08/2011,Purchase of inventory and services ,Central TLB,THE ROYAL MINT,CF72 8YT,828750,38159.24
Ministry of Defence,Ministry of Defence,10/08/2011,Medical treatment & stores and welfare services,Land Forces,HAYS SPECIALIST RECRUITMENT LIMITED,SW1W 0NT,830122,38097.15
Ministry of Defence,Ministry of Defence,31/08/2011,Estate management,Defence Infrastructure Organisation ,BEZIRKSREGIERUNG DUESSELDORF,,5000061849,37996.15
Ministry of Defence,Ministry of Defence,22/08/2011,Purchase of inventory and services ,Air Command,XMA LTD,NG11 7EP,834992,37961.5
Ministry of Defence,Ministry of Defence,08/08/2011,Estate management,Air Command,SODEXO LTD,M50 0AL,829304,37902.76
Ministry of Defence,Defence Science and Technology Laboratory,26/08/2011,Repairs & Maintenance,Operations,THERMO FISHER SCIENTIFIC,,V - 9000135552 - 00116155,37815.55
Ministry of Defence,Defence Science and Technology Laboratory,31/08/2011,Materials & Equipment,Operations,IDEXX LABORATORIES LIMITED,,V - 9000135671 - 00116792,37750
Ministry of Defence,Ministry of Defence,26/08/2011,"Transporation of personnel, freight and travel expenses",Air Command,BAA BUSINESS SUPPORT CENTRE  LIMITED,G52 4YG,836628,37688.88
Ministry of Defence,Ministry of Defence,19/08/2011,Purchase of inventory and services ,Land Forces,AAH PHARMACEUTICALS LTD,CV2 2TX,833720,37635.55
Ministry of Defence,Ministry of Defence,10/08/2011,IT and communication services,Defence Equipment & Support,COKER LOGISTICS SOLUTIONS INC,,830025,37627.08
Ministry of Defence,Defence Science and Technology Laboratory,05/08/2011,Sub Contracted Research,Programme Office,PROKYMA TECHNOLOGIES LIMITED,,V - 9000134972 - 00113875,37600
Ministry of Defence,Ministry of Defence,12/08/2011,"Transporation of personnel, freight and travel expenses",Defence Equipment & Support,CARTUS LTD,SN5 8RS,831063,37500
Ministry of Defence,Ministry of Defence,18/08/2011,Research and development,Central TLB,DEFENCE SCIENCE & TECHNOLOGY LABORATORY,PO14 9HL,833243,37396.01
Ministry of Defence,Ministry of Defence,15/08/2011,"Transporation of personnel, freight and travel expenses",Defence Equipment & Support,DHL GLOBAL FORWARDING (UK)  LIMITED,TW18 4BP,831685,37307.49
Ministry of Defence,Ministry of Defence,11/08/2011,Fees for professional services,Defence Equipment & Support,PHOENIX STRATEGIC LTD,PE7 8FA,830776,37285
Ministry of Defence,Ministry of Defence,15/08/2011,Estate management,Land Forces,COMPASS CONTRACT SERVICES (U K)LIMITED,B45 9PZ,831662,37180.23
Ministry of Defence,Ministry of Defence,23/08/2011,Food and clothing,Defence Infrastructure Organisation ,ARAMARK LTD,LS16 6QY,835032,37106.67
Ministry of Defence,Ministry of Defence,01/08/2011,Food and clothing,Defence Infrastructure Organisation ,ARAMARK LTD,LS16 6QY,826172,36982.34
Ministry of Defence,Ministry of Defence,24/08/2011,Grants to NDPBs,Central TLB,THE ARMED FORCES MEMORIAL TRUST,DE13 7AR,835944,36862
Ministry of Defence,Defence Science and Technology Laboratory,26/08/2011,Sub Contracted Research,Programme Office,QINETIQ LIMITED,,V - 9000135575 - 00110876,36846
Ministry of Defence,Defence Science and Technology Laboratory,05/08/2011,Sub Contracted Work,Operations,UNIVERSITY OF SURREY,,V - 9000134938 - 00114161,36827
Ministry of Defence,Ministry of Defence,04/08/2011,Estate management,Navy Command,VT FLAGSHIP LTD,PO6 4PR,828250,36809
Ministry of Defence,Ministry of Defence,22/08/2011,Fuel for military use,Air Command,WORLD FUEL SERVICES EUROPE  LTD.,SW1E 5BH,2000012536,36736.51
Ministry of Defence,Ministry of Defence,24/03/2011,Design services and minor equipment purchases,Central TLB,Adnan Elia Nassim,,93,36731.38
Ministry of Defence,Ministry of Defence,26/08/2011,Purchase of inventory and services ,Navy Command,AAH PHARMACEUTICALS LTD,CV2 2TX,836577,36718.71
Ministry of Defence,Ministry of Defence,12/08/2011,Estate management,Defence Infrastructure Organisation ,SODEXO LTD,M50 0AL,831445,36710.69
Ministry of Defence,Ministry of Defence,30/08/2011,Fuel for military use,Air Command,EXETER & DEVON AIRPORT LTD,EX5 2BD,837345,36704.73
Ministry of Defence,Ministry of Defence,05/08/2011,IT and communication services,Defence Equipment & Support,ACTICA CONSULTING LIMITED,GU2 7YF,828272,36545.05
Ministry of Defence,Ministry of Defence,17/08/2011,Purchase of buildings and military equipment ,Defence Equipment & Support,CALUMET MOD,,GPC 008,36492
Ministry of Defence,Ministry of Defence,30/08/2011,"Transporation of personnel, freight and travel expenses",Defence Equipment & Support,DHL GLOBAL FORWARDING (UK)  LIMITED,TW18 4BP,837309,36326.33
Ministry of Defence,Ministry of Defence,17/08/2011,Building maintenance and accommodation stores,Defence Infrastructure Organisation ,GODFREY SYRETT LTD,,GPC 009,36297.19
Ministry of Defence,Ministry of Defence,26/08/2011,Payment of utilities,Defence Equipment & Support,GB OILS LIMITED,FK5 4RB,836771,36225.41
Ministry of Defence,Defence Science and Technology Laboratory,12/08/2011,Sub Contracted Work,Operations,QINETIQ LIMITED,,V - 9000135174 - 00115064,36195.11
Ministry of Defence,Ministry of Defence,12/08/2011,Estate management,Air Command,SAFESKYS LTD,HP11 1LT,831418,36094.75
Ministry of Defence,Ministry of Defence,04/08/2011,Estate management,Air Command,SODEXO LTD,M50 0AL,828175,36056.48
Ministry of Defence,Ministry of Defence,01/08/2011,Fees for professional services,Defence Infrastructure Organisation ,RIDER LEVETT BUCKNALL UK LIMITED,B4 7XG,826545,36008
Ministry of Defence,Defence Science and Technology Laboratory,19/08/2011,Sub Contracted Research,Programme Office,ASTON UNIVERSITY,,V - 9000135332 - 00114725,36000
Ministry of Defence,Ministry of Defence,31/08/2011,General services and support,Land Forces,C V FITNESS LTD,NG11 7EP,837878,35904
Ministry of Defence,Ministry of Defence,24/08/2011,Estate management,Central TLB,ISS MEDICLEAN LIMITED,GU21 5RW,835691,35894.67
Ministry of Defence,Ministry of Defence,05/08/2011,Research and development,Defence Equipment & Support,DEFENCE SCIENCE & TECHNOLOGY LABORATORY,PO14 9HL,828399,35712.26
Ministry of Defence,Ministry of Defence,30/08/2011,Fuel for military use,Air Command,INFRATIL KENT AIRPORT LTD,KA9 2PL,837403,35581.72
Ministry of Defence,Ministry of Defence,30/08/2011,Fuel for military use,Air Command,POOL AVIATION (N.W.) LTD,FY4 2QS,837630,35539.85
Ministry of Defence,Ministry of Defence,03/08/2011,Design services and minor equipment purchases,Defence Equipment & Support,LSC GROUP LIMITED,WS13 8RZ,827386,35539.22
Ministry of Defence,Ministry of Defence,01/08/2011,Estate management,Defence Infrastructure Organisation ,KOCH & THUENER GMBH,,5000060415,35381.34
Ministry of Defence,Ministry of Defence,03/08/2011,Payment of utilities,Land Forces,GB OILS LIMITED,FK5 4RB,827299,35286.43
Ministry of Defence,Ministry of Defence,22/08/2011,Design services and minor equipment purchases,Defence Equipment & Support,TERBERG DTS (UK) LIMITED,HX5 9HD,834924,35283.43
Ministry of Defence,Ministry of Defence,12/08/2011,Design services and minor equipment purchases,Defence Equipment & Support,MARSHALL OF CAMBRIDGE AEROSPACE LIMITED,CB5 8RX,831238,35218.36
Ministry of Defence,Ministry of Defence,19/08/2011,Rent and rates,Defence Infrastructure Organisation ,THE HEREFORDSHIRE COUNCIL,HR1 2XW,834220,35215.44
Ministry of Defence,Ministry of Defence,16/08/2011,Estate management,Defence Infrastructure Organisation ,LENGELING SERVICE GMBH,,5000061201,35160.74
Ministry of Defence,Ministry of Defence,09/08/2011,Design services and minor equipment purchases,Defence Equipment & Support,KELLOGG BROWN & ROOT LIMITED,KT22 7NL,829638,35109.6
Ministry of Defence,Ministry of Defence,26/08/2011,Design services and minor equipment purchases,Land Forces,BABCOCK LAND (WHITEFLEET MANAGEMENT) LIMITED,BH23 6BS,836630,35101.07
Ministry of Defence,Ministry of Defence,25/08/2011,Rent and rates,Navy Command,NW1.04 LIMITED,M14 4HB,836403,35034.6
Ministry of Defence,Ministry of Defence,04/08/2011,Research and development,Central TLB,RUSI TRADING LIMITED,SW1A 2ET,828153,35000
Ministry of Defence,Defence Science and Technology Laboratory,23/08/2011,Professional Services,Operations,QINETIQ LIMITED,,V - 9000135480 - 00115726,35000
Ministry of Defence,Ministry of Defence,24/08/2011,Medical treatment & stores and welfare services,Central TLB,DEPLOYMENT MEDICINE INTERNATIONAL UK LTD,HR9 6LL,835604,35000
Ministry of Defence,Ministry of Defence,17/08/2011,Food and clothing,Defence Equipment & Support,AVENANCE PLC,SK11 6ET,832611,34973.96
Ministry of Defence,Ministry of Defence,10/08/2011,Estate management,Defence Infrastructure Organisation ,J. J. MCADAM & SONS LIMITED,BT62 1SU,33074,34872
Ministry of Defence,Ministry of Defence,11/08/2011,Rent and rates,Defence Infrastructure Organisation ,VALE OF GLAMORGAN COUNCIL,CF63 4YN,830921,34852.86
Ministry of Defence,Defence Support Group,19/08/2011,IT Services,Corporate,Insight Direct (uk) Ltd,,10134388,34818.71
Ministry of Defence,Ministry of Defence,18/08/2011,Rent and rates,Defence Infrastructure Organisation ,CHERWELL DISTRICT COUNCIL,OX15 4BH,833209,34815.24
Ministry of Defence,Ministry of Defence,04/08/2011,Medical treatment & stores and welfare services,Central TLB,BRAIN INJURY REHABILITATION  TRUST,RH13 0TP,827713,34662.61
Ministry of Defence,Ministry of Defence,04/08/2011,Estate management,Defence Infrastructure Organisation ,BRYCE GARTEN & LANDSCHAFTSBAU,,5000060671,34630.08
Ministry of Defence,Ministry of Defence,18/08/2011,Rent and rates,Defence Infrastructure Organisation ,BRACKNELL FOREST BOROUGH COUNCIL,RG12 1AQ,833153,34542.73
Ministry of Defence,Ministry of Defence,17/08/2011,Purchase of buildings and military equipment ,Defence Equipment & Support,JACOBS U.K. LTD,G2 7HX,832753,34520
Ministry of Defence,Ministry of Defence,11/08/2011,Research and development,Defence Equipment & Support,ATKINS LIMITED,WR5 1TX,830420,34507
Ministry of Defence,Ministry of Defence,18/08/2011,Rent and rates,Defence Infrastructure Organisation ,BRECKLAND COUNCIL,NR19 1EE,833159,34480.09
Ministry of Defence,United Kingdom Hydrographic Office,17/08/2011,Raw Material/ Finished Goods,Print & Supply,Antalis McNaughton,,2000055508,34480
Ministry of Defence,Ministry of Defence,26/08/2011,IT and communication services,Defence Equipment & Support,TRANSFLO INSTRUMENTS LIMITED,TN12 0QD,837123,34311.5
Ministry of Defence,Ministry of Defence,11/08/2011,Design services and minor equipment purchases,Defence Equipment & Support,BMT RELIABILITY CONSULTANTS LTD,PO15 5SU,830455,34242.65
Ministry of Defence,Ministry of Defence,19/08/2011,Rent and rates,Defence Infrastructure Organisation ,EAST LINDSEY DISTRICT COUNCIL,LN11 8XN,833882,34234.53
Ministry of Defence,Ministry of Defence,08/08/2011,Design services and minor equipment purchases,Defence Equipment & Support,ULTRA ELECTRONICS LIMITED,HP10 9UT,829363,34223
Ministry of Defence,Ministry of Defence,10/08/2011,Payment of utilities,Defence Infrastructure Organisation ,E.ON UK PLC,NG1 9AH,830081,34138.76
Ministry of Defence,Ministry of Defence,01/08/2011,Food and clothing,Defence Equipment & Support,ARAMARK LTD,LS16 6QY,826172,34129.1
Ministry of Defence,Ministry of Defence,19/08/2011,Rent and rates,Defence Infrastructure Organisation ,GREENWICH COUNCIL,SE18 6BU,833939,34104.01
Ministry of Defence,Ministry of Defence,23/08/2011,Rent and rates,Defence Infrastructure Organisation ,NORTH DEVON DISTRICT COUNCIL,EX31 1EA,835318,34041.72
Ministry of Defence,Ministry of Defence,01/08/2011,Design services and minor equipment purchases,Defence Equipment & Support,HELMET INTEGRATED SYSTEMS LTD,SG6 2TU,826355,34008.18
Ministry of Defence,Ministry of Defence,10/08/2011,Externally delivered education and training,Land Forces,UNIVERSITY OF MANCHESTER,M13 9PL,830359,34000
Ministry of Defence,Ministry of Defence,16/08/2011,Design services and minor equipment purchases,Defence Equipment & Support,CONWAY PACKING SERVICES LTD,DY4 7UD,832163,33941.59
Ministry of Defence,Ministry of Defence,15/08/2011,Payment of utilities,Defence Infrastructure Organisation ,TOTAL GAS & POWER LIMITED,RH1 1RX,832013,33913.58
Ministry of Defence,Ministry of Defence,23/08/2011,Design services and minor equipment purchases,Defence Equipment & Support,IBM UNITED KINGDOM LIMITED,PO6 3AE,835194,33812.33
Ministry of Defence,Ministry of Defence,12/06/2011,Food and clothing,Defence Equipment & Support,Alpha Fine Foods ,,136,33809.6
Ministry of Defence,Ministry of Defence,01/08/2011,Estate management,Defence Infrastructure Organisation ,BEZIRKSREGIERUNG DUESSELDORF,,5000060358,33797.06
Ministry of Defence,Ministry of Defence,09/08/2011,Payment of utilities,Defence Infrastructure Organisation ,E.ON,,5000060928,33729.44
Ministry of Defence,Defence Science and Technology Laboratory,12/08/2011,Sub Contracted Research,Programme Office,MBDA UK LIMITED,,V - 9000135107 - 00114597,33670.52
Ministry of Defence,Ministry of Defence,16/08/2011,"Transporation of personnel, freight and travel expenses",Land Forces,DHL GLOBAL FORWARDING (UK)  LIMITED,TW18 4BP,832186,33669.61
Ministry of Defence,Ministry of Defence,18/08/2011,Estate management,Defence Infrastructure Organisation ,ASPIRE DEFENCE LIMITED,SP9 7QD,833094,33596.01
Ministry of Defence,Defence Science and Technology Laboratory,05/08/2011,Repairs & Maintenance,Infrastructure,SERCO LIMITED,,V - 9000134990 - 00114762,33595.8
Ministry of Defence,Ministry of Defence,17/08/2011,IT and communication services,Navy Command,QINETIQ LTD,,GPC 011,33545.3
Ministry of Defence,Ministry of Defence,30/08/2011,Rent and rates,Land Forces,YORKSHIRE BUILDING SOCIETY,BD5 8LJ,837799,33454.5
Ministry of Defence,Ministry of Defence,02/08/2011,Medical treatment & stores and welfare services,Land Forces,HONEYBEERECRUITMENT.COM LTD,TW12 1PD,826836,33430.55
Ministry of Defence,Ministry of Defence,30/08/2011,Design services and minor equipment purchases,Land Forces,HORSTMAN DEFENCE SYSTEMS LTD,BA1 3EX,837390,33393.5
Ministry of Defence,Ministry of Defence,19/08/2011,Design services and minor equipment purchases,Defence Equipment & Support,KIDDE GRAVINER LIMITED,SL3 0HB,833990,33316.52
Ministry of Defence,Ministry of Defence,18/08/2011,Rent and rates,Defence Infrastructure Organisation ,BABERGH DISTRICT COUNCIL,IP7 6SJ,833119,33212.06
Ministry of Defence,Ministry of Defence,23/08/2011,"Transporation of personnel, freight and travel expenses",Defence Equipment & Support,DHL GLOBAL FORWARDING (UK)  LIMITED,TW18 4BP,835125,33206.35
Ministry of Defence,Ministry of Defence,04/08/2011,Food and clothing,Defence Infrastructure Organisation ,ARAMARK LTD,LS16 6QY,827668,33205.17
Ministry of Defence,Ministry of Defence,15/08/2011,Payment of utilities,Defence Infrastructure Organisation ,SOUTHERN ELECTRIC GAS LTD,PO9 5JB,831976,33185.74
Ministry of Defence,Ministry of Defence,26/08/2011,Medical treatment & stores and welfare services,Land Forces,SSAFA FAMILY HEALTH SERVICES,SE1 2LP,837074,33028.45
Ministry of Defence,Ministry of Defence,26/08/2011,Purchase of inventory and services ,Air Command,AAH PHARMACEUTICALS LTD,CV2 2TX,836577,33027.52
Ministry of Defence,Ministry of Defence,23/08/2011,Estate management,Defence Infrastructure Organisation ,SODEXO LTD,M50 0AL,835411,32979.46
Ministry of Defence,Ministry of Defence,23/08/2011,Payment of utilities,Defence Infrastructure Organisation ,SWALEC GAS LIMITED,PO9 5JB,835425,32969.77
Ministry of Defence,Ministry of Defence,23/08/2011,Medical treatment & stores and welfare services,Command Joint Operations,YGIA POLYCLINIC LTD,,5000061541,32958.29
Ministry of Defence,Ministry of Defence,04/08/2011,Estate management,Defence Infrastructure Organisation ,AVENANCE PLC,SK11 6ET,827681,32933.78
Ministry of Defence,Ministry of Defence,23/08/2011,Rent and rates,Defence Infrastructure Organisation ,NEW FOREST DISTRICT COUNCIL,SO41 9ZG,835271,32920.29
Ministry of Defence,Ministry of Defence,26/08/2011,Purchase of inventory and services ,Air Command,BOC LIMITED,M28 2UT,836652,32903.48
Ministry of Defence,Ministry of Defence,30/08/2011,Rent and rates,Defence Infrastructure Organisation ,CLINTON DEVON ESTATES,EX9 7DP,837286,32873
Ministry of Defence,Ministry of Defence,31/08/2011,Design services and minor equipment purchases,Defence Equipment & Support,ONTIC ENGINEERING &  MANUFACTURING UK LIMITED,SL1 4DE,838116,32834.23
Ministry of Defence,Ministry of Defence,09/08/2011,"Adminstration, claims, compensation and awards",Central TLB,FOREIGN & COMMONWEALTH OFFICE,MK10 1PX,2.00E+11,32816.28
Ministry of Defence,Ministry of Defence,01/08/2011,Fees for professional services,Defence Equipment & Support,FRESHFIELDS BRUCKHAUS DERINGER..,EC4Y 1HS,162181,32789.79
Ministry of Defence,Ministry of Defence,25/08/2011,Building maintenance and accommodation stores,Defence Infrastructure Organisation ,HELENSBURGH FLOORPLAN (1983) LIMITED,G84 8UN,836260,32760
Ministry of Defence,Ministry of Defence,31/08/2011,Payment of utilities,Defence Equipment & Support,TOTAL GAS & POWER LIMITED,RH1 1RX,838213,32591.12
Ministry of Defence,Ministry of Defence,25/08/2011,Estate management,Defence Infrastructure Organisation ,BLUM GMBH.,,5000061616,32552.67
Ministry of Defence,Defence Support Group,19/08/2011,Works Fees,Business Stream 1,BABCOCK SUPPORT SERVICES LTD,,10134039,32522.71
Ministry of Defence,Ministry of Defence,04/08/2011,Research and development,Defence Equipment & Support,SYSTEMATIC SOFTWARE ENGINEERING LTD,GU15 3YL,828199,32500
Ministry of Defence,Ministry of Defence,03/08/2011,Purchase of buildings and military equipment ,Defence Equipment & Support,ROLLS-ROYCE POWER ENGINEERING PLC,DE21 7XX,827502,32499.5
Ministry of Defence,Ministry of Defence,23/08/2011,Rent and rates,Defence Infrastructure Organisation ,MID SUFFOLK DISTRICT COUNCIL,IP6 8DL,835250,32405.04
Ministry of Defence,Ministry of Defence,08/08/2011,IT and communication services,Defence Equipment & Support,VEGA CONSULTING SERVICES LTD,AL7 1TW,829376,32404.45
Ministry of Defence,United Kingdom Hydrographic Office,23/08/2011,Raw Material/ Finished Goods,Print & Supply,Antalis McNaughton,,2000055576,32320
Ministry of Defence,Ministry of Defence,04/08/2011,Payment of utilities,Defence Infrastructure Organisation ,RWE WESTFALEN-WESER-EMS AG,,5000060718,32278.76
Ministry of Defence,Ministry of Defence,25/08/2011,Design services and minor equipment purchases,Defence Equipment & Support,HELITUNE LTD,EX38 7HP,836261,32247.68
Ministry of Defence,Ministry of Defence,26/08/2011,Estate management,Air Command,ARAMARK LTD,LS16 6QY,836612,32228.64
Ministry of Defence,Ministry of Defence,26/08/2011,Medical treatment & stores and welfare services,Central TLB,NO SMOKING DAY,E2 7DJ,836889,32219
Ministry of Defence,Ministry of Defence,11/08/2011,Purchase of inventory and services ,Land Forces,CARWOOD MOTOR UNITS LTD,CV3 2RQ,830485,32207.72
Ministry of Defence,Ministry of Defence,03/08/2011,Estate management,Defence Equipment & Support,FALCON SUPPORT SERVICES LIMITED,RG10 9JU,827283,32195.15
Ministry of Defence,Ministry of Defence,23/08/2011,Purchase of inventory and services ,Defence Equipment & Support,AAH PHARMACEUTICALS LTD,CV2 2TX,834999,32045.54
Ministry of Defence,Ministry of Defence,04/08/2011,Rent and rates,Air Command,SERVICE FUNDS RAF BRIZE NORTON,OX18 3LX,162282,32022
Ministry of Defence,Defence Science and Technology Laboratory,02/08/2011,Sub Contracted Work,Operations,THALES UK LIMITED,,V - 9000134848 - 00114415,31950
Ministry of Defence,Ministry of Defence,19/08/2011,Purchase of buildings and military equipment ,Defence Infrastructure Organisation ,COUNCIL OF RESERVE FORCES' AND CADETS' ASSOCIATIONS,EC2A 4EY,833847,31908
Ministry of Defence,Defence Science and Technology Laboratory,19/08/2011,Communications,Infrastructure,VODAFONE CORPORATE LIMITED,,V - 9000135340 - 00116134,31887.3
Ministry of Defence,Ministry of Defence,26/08/2011,IT and communication services,Defence Equipment & Support,VEGA CONSULTING SERVICES LTD,AL7 1TW,837138,31884
Ministry of Defence,Ministry of Defence,16/08/2011,Purchase of inventory and services ,Land Forces,XMA LTD,NG11 7EP,832570,31873.98
Ministry of Defence,Ministry of Defence,15/08/2011,Design services and minor equipment purchases,Land Forces,DEFENCE SCIENCE & TECHNOLOGY LABORATORY,PO14 9HL,831678,31860
Ministry of Defence,Ministry of Defence,22/08/2011,Payment of utilities,Defence Infrastructure Organisation ,BZE Electricity Ltd,,84,31817.2
Ministry of Defence,Ministry of Defence,15/08/2011,Estate management,Defence Infrastructure Organisation ,OBERFINANZDIREKTION NIEDERSACHSEN,,5000061170,31794.14
Ministry of Defence,Ministry of Defence,30/08/2011,Rent and rates,Air Command,SCC (SOUTH WEST) LIMITED,PL4 8HB,837678,31761.75
Ministry of Defence,Defence Science and Technology Laboratory,09/08/2011,Sub Contracted Work,Operations,QINETIQ LIMITED,,V - 9000135074 - 00114820,31661.42
Ministry of Defence,Ministry of Defence,25/08/2011,Design services and minor equipment purchases,Defence Equipment & Support,HASKEL EUROPE LTD,SR5 3JD,836257,31636.98
Ministry of Defence,Ministry of Defence,01/08/2011,"Transporation of personnel, freight and travel expenses",Land Forces,DSV AIR & SEA LIMITED,M22 4NY,826298,31572.83
Ministry of Defence,Ministry of Defence,19/08/2011,Transport hire charges,Navy Command,BABCOCK LAND (WHITEFLEET MANAGEMENT) LIMITED,BH23 6BS,833763,31540.72
Ministry of Defence,Ministry of Defence,26/08/2011,Medical treatment & stores and welfare services,Land Forces,SSAFA FAMILY HEALTH SERVICES,SE1 2LP,5000061783,31491.45
Ministry of Defence,Ministry of Defence,16/08/2011,IT and communication services,Defence Equipment & Support,TELINDUS LTD,GU15 3YL,832535,31481.47
Ministry of Defence,Ministry of Defence,16/08/2011,"Transporation of personnel, freight and travel expenses",Air Command,RAIL SETTLEMENT PLAN LIMITED,SG1 2YN,832465,31455.55
Ministry of Defence,Defence Science and Technology Laboratory,02/08/2011,Repairs & Maintenance,Infrastructure,SERCO LIMITED,,V - 9000134888 - 00114602,31399.03
Ministry of Defence,Ministry of Defence,03/08/2011,Administration,Air Command,CANON (UK) LIMITED,RH2 8BF,827189,31387.54
Ministry of Defence,Ministry of Defence,08/08/2011,Food and clothing,Land Forces,TECHNOGYM U K LIMITED,RG12 8PE,829330,31364.31
Ministry of Defence,Ministry of Defence,04/08/2011,Estate management,Air Command,SAFESKYS LTD,HP11 1LT,828157,31309.14
Ministry of Defence,Ministry of Defence,10/08/2011,Design services and minor equipment purchases,Defence Equipment & Support,IMES LTD.,BS32 4NF,830136,31290.29
Ministry of Defence,Ministry of Defence,11/08/2011,Rent and rates,Defence Infrastructure Organisation ,CITY OF WESTMINSTER,SW1E 6QP,830500,31225.6
Ministry of Defence,Ministry of Defence,05/08/2011,"Transporation of personnel, freight and travel expenses",Defence Equipment & Support,DHL GLOBAL FORWARDING (UK)  LIMITED,TW18 4BP,828406,31224.05
Ministry of Defence,Ministry of Defence,11/08/2011,Food and clothing,Defence Equipment & Support,SODEXO LTD,M50 0AL,830843,31202.75
Ministry of Defence,Ministry of Defence,17/08/2011,Purchase of buildings and military equipment ,Defence Infrastructure Organisation ,TURNER FACILITIES MANAGEMENT LTD,G51 3EQ,833014,31189.19
Ministry of Defence,Defence Science and Technology Laboratory,12/08/2011,Sub Contracted Work,Operations,QINETIQ LIMITED,,V - 9000135174 - 00113230,31083
Ministry of Defence,Ministry of Defence,25/08/2011,"Transporation of personnel, freight and travel expenses",Land Forces,RAIL SETTLEMENT PLAN LIMITED,SG1 2YN,836440,31035.35
Ministry of Defence,Ministry of Defence,19/08/2011,"Transporation of personnel, freight and travel expenses",Defence Equipment & Support,DHL GLOBAL FORWARDING (UK)  LIMITED,TW18 4BP,833863,30962.73
Ministry of Defence,Ministry of Defence,03/08/2011,Design services and minor equipment purchases,Defence Infrastructure Organisation ,GEOMATRIX EARTH SCIENCE LIMITED,LU7 4TZ,827305,30898.8
Ministry of Defence,Ministry of Defence,17/08/2011,Purchase of inventory and services ,Land Forces,AAH PHARMACEUTICALS LTD,CV2 2TX,832579,30851.09
Ministry of Defence,Ministry of Defence,11/08/2011,Purchase of general transport equipment,Central TLB,FOREIGN & COMMONWEALTH OFFICE,MK10 1PX,2.00E+11,30827.17
Ministry of Defence,Ministry of Defence,30/08/2011,Estate management,Air Command,ARAMARK LTD,LS16 6QY,837199,30824.85
Ministry of Defence,Ministry of Defence,15/08/2011,Design services and minor equipment purchases,Land Forces,BABCOCK LAND (WHITEFLEET MANAGEMENT) LIMITED,BH23 6BS,831589,30822.77
Ministry of Defence,Ministry of Defence,30/08/2011,Rent and rates,Land Forces,NIGEL A COLLINS,WC2H 7JD,837525,30750
Ministry of Defence,Defence Science and Technology Laboratory,19/08/2011,Staff Training,Corporate,BARCLAYCARD,,G - 9000135415 - 00116696,30735.36
Ministry of Defence,Defence Science and Technology Laboratory,23/08/2011,Repairs & Maintenance,Infrastructure,SERCO LIMITED,,V - 9000135481 - 00115770,30698.39
Ministry of Defence,Ministry of Defence,02/08/2011,Medical treatment & stores and welfare services,Defence Equipment & Support,DR K BOYD AND PARTNERS T/A THE CONCORD MEDICAL CENTRE,BS34 6BQ,826795,30688.08
Ministry of Defence,Ministry of Defence,04/08/2011,Design services and minor equipment purchases,Land Forces,BABCOCK LAND (WHITEFLEET MANAGEMENT) LIMITED,BH23 6BS,827691,30610.92
Ministry of Defence,Ministry of Defence,23/08/2011,Payment of utilities,Defence Infrastructure Organisation ,STADTWERKE BIELEFELD GMBH,,5000061526,30590.47
Ministry of Defence,Defence Science and Technology Laboratory,31/08/2011,Sub Contracted Work,Programme Office,RED SCIENTIFIC LIMITED,,V - 9000135673 - 00116149,30570
Ministry of Defence,Defence Science and Technology Laboratory,31/08/2011,Sub Contracted Research,Programme Office,ATLAS ELEKTRONIK UK LIMITED,,V - 9000135682 - 00116690,30567
Ministry of Defence,Council of Reserve Forces and Cadets Associations,23/08/2011,Rent and rates,Infrastructure,Oxford City Council,,5267,30527
Ministry of Defence,Ministry of Defence,30/08/2011,Estate management,Defence Infrastructure Organisation ,LANDMARC SUPPORT SERVICES LIMITED,SP3 4RS,837433,30522.78
Ministry of Defence,Ministry of Defence,15/08/2011,Design services and minor equipment purchases,Defence Equipment & Support,MANITOWOC CRANE GROUP (UK) LTD,MK18 4FD,831801,30521.1
Ministry of Defence,Ministry of Defence,24/08/2011,Fuel for military use,Land Forces,EUROSHELL DEUTSCHLAND GMBH,,5000061558,30519.4
Ministry of Defence,Ministry of Defence,19/08/2011,Estate management,Defence Infrastructure Organisation ,ISS MEDICLEAN LIMITED,GU21 5RW,833976,30458.33
Ministry of Defence,Ministry of Defence,24/08/2011,Rent and rates,Air Command,DTZ DTL LTD A/C RE:COMMON RECEIPTS,B4 6AJ,835622,30453.55
Ministry of Defence,Ministry of Defence,09/08/2011,Fees for professional services,Land Forces,NATIONAL PROBATION SERVICE FOR ENGLAND AND WALES,SO23 8DQ,829689,30401.67
Ministry of Defence,Ministry of Defence,12/08/2011,Purchase of inventory and services ,Defence Equipment & Support,AUSTIN HAYES LTD,LS19 7BD,831004,30349.78
Ministry of Defence,Ministry of Defence,11/08/2011,Estate management,Air Command,SODEXO LTD,M50 0AL,830843,30223.62
Ministry of Defence,Defence Science and Technology Laboratory,19/08/2011,Sub Contracted Research,Programme Office,LANCASTER UNIVERSITY,,V - 9000135348 - 00113315,30171.77
Ministry of Defence,Ministry of Defence,22/08/2011,Payment of utilities,Defence Infrastructure Organisation ,RWE WESTFALEN-WESER-EMS AG,,5000061452,30150.45
Ministry of Defence,Ministry of Defence,15/08/2011,Fees for professional services,Defence Infrastructure Organisation ,PRICEWATERHOUSECOOPERS LLP,E14 9SQ,831912,30115.64
Ministry of Defence,Ministry of Defence,18/08/2011,"Transporation of personnel, freight and travel expenses",Central TLB,FOREIGN & COMMONWEALTH OFFICE,MK10 1PX,2.00E+11,30114.69
Ministry of Defence,Ministry of Defence,31/08/2011,Purchase of inventory and services ,Defence Equipment & Support,BOC LIMITED,M28 2UT,837859,30066.39
Ministry of Defence,Ministry of Defence,04/08/2011,Fuel for military use,Land Forces,BP OIL INTERNATIONAL LIMITED,TW16 7BP,2000012365,30010.95
Ministry of Defence,Ministry of Defence,15/08/2011,Externally delivered education and training,Central TLB,BABYLON SCHOOL OF ARABIC LANGUAGE,SP1 2EE,831593,30000
Ministry of Defence,Defence Science and Technology Laboratory,19/08/2011,Sub Contracted Research,Programme Office,QINETIQ LIMITED,,V - 9000135400 - 00114824,30000
Ministry of Defence,Ministry of Defence,25/08/2011,Research and development,Defence Equipment & Support,QINETIQ LIMITED,PO12 2AG,836436,30000
Ministry of Defence,Defence Science and Technology Laboratory,31/08/2011,Sub Contracted Work,Operations,THALES UK LIMITED,,V - 9000135633 - 00116000,30000
Ministry of Defence,Defence Science and Technology Laboratory,23/08/2011,Consumable Materials,Operations,GILDEN PHOTONICS LIMITED,,V - 9000135476 - 00112296,29985
Ministry of Defence,Defence Science and Technology Laboratory,19/08/2011,Sub Contracted Research,Programme Office,QINETIQ LIMITED,,V - 9000135400 - 00115069,29954
Ministry of Defence,Ministry of Defence,01/08/2011,Estate management,Defence Infrastructure Organisation ,KONRAD PETERS NACHF GMBH,,5000060416,29938.78
Ministry of Defence,Ministry of Defence,15/08/2011,Estate management,Defence Infrastructure Organisation ,RANDSTAD DEUTSCHLAND GMBH,,5000061173,29928.29
Ministry of Defence,Ministry of Defence,01/08/2011,Purchase of inventory and services ,Land Forces,XMA LTD,NG11 7EP,826673,29849.59
Ministry of Defence,Ministry of Defence,12/08/2011,IT and communication services,Land Forces,L.A. INTERNATIONAL COMPUTER  CONSULTANTS LIMITED,ST1 5UB,831213,29830
Ministry of Defence,Ministry of Defence,16/08/2011,Research and development,Defence Equipment & Support,NATO CONSULTATION COMMAND AND CONTROL AGENCY,,5000061203,29679.94
Ministry of Defence,Ministry of Defence,25/08/2011,Design services and minor equipment purchases,Defence Equipment & Support,GE AVIATION SYSTEMS LIMITED,GL52 8SF,836240,29664.25
Ministry of Defence,Ministry of Defence,05/08/2011,Fees for professional services,Land Forces,GROSVENOR TELEVISION PRODUCTIONS LIMITED,W1F 9AD,828476,29650
Ministry of Defence,Ministry of Defence,05/08/2011,"Adminstration, claims, compensation and awards",Land Forces,LEGAL SERVICES COMMISSION,NG1 2AS,828528,29640
Ministry of Defence,Ministry of Defence,10/08/2011,Food and clothing,Land Forces,FOX FEEDS LIMITED,SG9 OHJ,830102,29616.07
Ministry of Defence,Ministry of Defence,10/08/2011,Fees for professional services,Central TLB,CORPS OF COMMISSIONAIRES  MANAGEMENT LIMITED,RH10 9WE,830031,29614.24
Ministry of Defence,Ministry of Defence,16/08/2011,"Transporation of personnel, freight and travel expenses",Navy Command,RAIL SETTLEMENT PLAN LIMITED,SG1 2YN,832465,29601.9
Ministry of Defence,Ministry of Defence,18/08/2011,Rent and rates,Defence Infrastructure Organisation ,CANTERBURY CITY COUNCIL,CT1 1YW,833185,29584.68
Ministry of Defence,Defence Science and Technology Laboratory,05/08/2011,Materials & Equipment,Operations,COBHAM CTS LIMITED,,V - 9000134998 - 00114802,29569
Ministry of Defence,Ministry of Defence,23/08/2011,Rent and rates,Defence Infrastructure Organisation ,NORTHUMBERLAND COUNTY COUNCIL,NE61 2EF,835325,29533.44
Ministry of Defence,Ministry of Defence,16/08/2011,IT and communication services,Defence Equipment & Support,CAPGEMINI UK PLC,GU21 6DB,832139,29505
Ministry of Defence,British Defence Staff -United States,02/08/2011,"Transporation of personnel, freight and travel expenses",Central TLB,INTERSTATE,,280214,29495.82
Ministry of Defence,Council of Reserve Forces and Cadets Associations,15/08/2011,Purchase of buildings and military equipment ,Capital Expenditure,Pyramid Construction (UK) Ltd,,3356,29479.2
Ministry of Defence,Ministry of Defence,15/08/2011,International contributions,Central TLB,INTERNATIONAL SCIENCE AND TECHNOLOGY CENTRE,,2000012465,29447.85
Ministry of Defence,Ministry of Defence,10/08/2011,Design services and minor equipment purchases,Defence Equipment & Support,POYRY ENERGY LIMITED,RH13 5UZ,830247,29443.64
Ministry of Defence,Defence Science and Technology Laboratory,19/08/2011,Sub Contracted Work,Operations,UNIVERSITY OF ST ANDREWS,,V - 9000135333 - 00116175,29435.43
Ministry of Defence,Ministry of Defence,15/08/2011,"Purchase of munitions, other inventory or fuel",Defence Equipment & Support,METAL PRODUCTS (ARDEN) LIMITED,WS7 0AE,831814,29405.76
Ministry of Defence,Ministry of Defence,23/08/2011,Rent and rates,Defence Infrastructure Organisation ,MAIDSTONE BOROUGH COUNCIL,ME15 6JQ,835231,29388.31
Ministry of Defence,Ministry of Defence,23/08/2011,Rent and rates,Defence Infrastructure Organisation ,ROYAL BOROUGH OF KINGSTON  UPON THAMES,KT1 1EU,835384,29371.23
Ministry of Defence,Ministry of Defence,09/08/2011,Food and clothing,Air Command,TURNER VIRR & CO. LTD,LS25 2DY,829875,29283.09
Ministry of Defence,Ministry of Defence,15/08/2011,Design services and minor equipment purchases,Defence Equipment & Support,GE AVIATION SYSTEMS LIMITED,GL52 8SF,831737,29279.17
Ministry of Defence,Ministry of Defence,09/08/2011,"Adminstration, claims, compensation and awards",Central TLB,FOREIGN & COMMONWEALTH OFFICE,MK10 1PX,2.00E+11,29268.29
Ministry of Defence,Ministry of Defence,10/08/2011,Purchase of inventory and services ,Navy Command,CORPORATE DOCUMENT SERVICES  LIMITED,LS2 7LY,830030,29185.98
Ministry of Defence,Ministry of Defence,30/08/2011,IT and communication services,Defence Equipment & Support,L.A. INTERNATIONAL COMPUTER  CONSULTANTS LIMITED,ST1 5UB,837430,29185.2
Ministry of Defence,Ministry of Defence,31/08/2011,Purchase of inventory and services ,Land Forces,XMA LTD,NG11 7EP,838235,29178.35
Ministry of Defence,Ministry of Defence,04/08/2011,Purchase of inventory and services ,Land Forces,CARWOOD MOTOR UNITS LTD,CV3 2RQ,827746,29171.98
Ministry of Defence,Ministry of Defence,23/08/2011,Rent and rates,Defence Infrastructure Organisation ,MIDLOTHIAN COUNCIL,EH22 1YB,835252,29158.26
Ministry of Defence,Ministry of Defence,17/08/2011,IT and communication services,Defence Equipment & Support,HP ENTERPRISE SERVICES DEFENCE & SECURITY UK LIMITED,OX25 1LP,832740,29157.62
Ministry of Defence,Ministry of Defence,12/06/2011,Transport hire charges,Land Forces,Avenue Service Station,,132,29156.44
Ministry of Defence,Ministry of Defence,03/08/2011,Purchase of general transport equipment,Central TLB,TEAM LEYLAND INTERNATIONAL LIMITED,PR6 0BL,5000060648,29070.8
Ministry of Defence,Ministry of Defence,11/08/2011,Transport hire charges,Land Forces,LEASEDRIVE VELO RENTAL  MANAGEMENT LIMITED,RG40 3GA,830655,29058.2
Ministry of Defence,Ministry of Defence,04/08/2011,Payment of utilities,Land Forces,WATSON PETROLEUM LTD,SN15 5DN,828253,29037.25
Ministry of Defence,Ministry of Defence,26/08/2011,Purchase of inventory and services ,Defence Equipment & Support,AAH PHARMACEUTICALS LTD,CV2 2TX,836577,29025.86
Ministry of Defence,Ministry of Defence,22/08/2011,Payment of utilities,Defence Infrastructure Organisation ,TOTAL GAS & POWER LIMITED,RH1 1RX,834950,29004.47
Ministry of Defence,Ministry of Defence,19/08/2011,Transport hire charges,Central TLB,BABCOCK LAND (WHITEFLEET MANAGEMENT) LIMITED,BH23 6BS,833763,29003.51
Ministry of Defence,Ministry of Defence,12/06/2011,Food and clothing,Defence Equipment & Support,Lenana Grocers,,129,28967.4
Ministry of Defence,Defence Science and Technology Laboratory,26/08/2011,Sub Contracted Work,Operations,COSWORTH ELECTRONICS LIMITED,,V - 9000135569 - 00116343,28956.4
Ministry of Defence,Ministry of Defence,03/08/2011,Design services and minor equipment purchases,Air Command,SAFESKYS LTD,HP11 1LT,827516,28954.99
Ministry of Defence,Ministry of Defence,03/08/2011,Transport hire charges,Navy Command,BABCOCK LAND (WHITEFLEET MANAGEMENT) LIMITED,BH23 6BS,827137,28929.59
Ministry of Defence,Ministry of Defence,18/08/2011,"Purchase of munitions, other inventory or fuel",Defence Equipment & Support,PACE FUELCARE LIMITED,TW20 9AB,833518,28897.62
Ministry of Defence,Council of Reserve Forces and Cadets Associations,23/08/2011,Rent and rates,Infrastructure,Reading Borough Council,,5269,28794.5
Ministry of Defence,Ministry of Defence,11/08/2011,General services and support,Defence Equipment & Support,SOFTWARE BOX LTD,YO61 1ET,830845,28763.06
Ministry of Defence,Ministry of Defence,18/08/2011,Design services and minor equipment purchases,Air Command,MIDWAY ROADTANKER SERVICES  LIMITED,DE11 7PX,833435,28710.6
Ministry of Defence,Ministry of Defence,24/08/2011,"Purchase of munitions, other inventory or fuel",Defence Equipment & Support,NORTHERN DIVER (INTERNATIONAL) LTD,WN6 9AE,835815,28640.28
Ministry of Defence,Ministry of Defence,03/08/2011,"Transporation of personnel, freight and travel expenses",Defence Equipment & Support,CRONOS CONTAINERS LTD,SL7 3AB,827231,28615.9
Ministry of Defence,Ministry of Defence,11/08/2011,Rent and rates,Defence Infrastructure Organisation ,UTTLESFORD DISTRICT COUNCIL,CB11 4ER,830919,28613.55
Ministry of Defence,Ministry of Defence,23/08/2011,Estate management,Defence Infrastructure Organisation ,LENGELING SERVICE GMBH,,5000061511,28579.27
Ministry of Defence,Ministry of Defence,25/08/2011,Externally delivered education and training,Land Forces,CABLE TELECOMMUNICATIONS TRAINING SERVICES LIMITED,LN6 3QX,836115,28566.71
Ministry of Defence,Ministry of Defence,12/08/2011,Payment of utilities,Land Forces,SOUTHERN WATER SERVICES LIMITED,BN13 3NZ,831455,28561.52
Ministry of Defence,Ministry of Defence,23/08/2011,Purchase of inventory and services ,Land Forces,AAH PHARMACEUTICALS LTD,CV2 2TX,834999,28507.2
Ministry of Defence,Defence Science and Technology Laboratory,09/08/2011,Sub Contracted Work,Operations,QINETIQ LIMITED,,V - 9000135074 - 00114772,28494
Ministry of Defence,Defence Science and Technology Laboratory,19/08/2011,Travel & Subsistence,Operations,BARCLAYCARD,,G - 9000135415 - 00116696,28419.91
Ministry of Defence,Ministry of Defence,25/08/2011,Nuclear decommissioning and restoration,Defence Equipment & Support,DEVONPORT ROYAL DOCKYARD LIMITED,PL1 4SG,836178,28384
Ministry of Defence,Council of Reserve Forces and Cadets Associations,04/08/2011,Grants to Reserves Forces and Cadets Association,Estates Management,T GLENDINNING & CO LTD,,3564,28343
Ministry of Defence,Ministry of Defence,25/08/2011,Estate management,Defence Infrastructure Organisation ,MODERN HOUSING SOLUTIONS (PRIME)LIMITED,PE28 4QG,836331,28336.34
Ministry of Defence,Ministry of Defence,18/08/2011,Design services and minor equipment purchases,Defence Equipment & Support,CONWAY PACKING SERVICES LTD,DY4 7UD,833229,28311.4
Ministry of Defence,Ministry of Defence,15/08/2011,Externally delivered education and training,Navy Command,RIGHT MANAGEMENT LIMITED,EC4N 7BE,831930,28237.72
Ministry of Defence,Ministry of Defence,25/08/2011,Design services and minor equipment purchases,Defence Equipment & Support,SOMERS TOTALKARE LIMITED,B62 8RP,836490,28183.29
